BODY,BODY NAME,SERVICE CODE,ORGANISATIONAL UNIT,ORGANISATIONAL UNIT CODE,EXPENDITURE CATEGORY,EXPENDITURE CODE,DATE (POSTING DATE),TRANSACTION NUMBER,AMOUNT,SUPPLIER NAME,SUPPLIER ID
WARRINGTON BOROUGH COUNCIL,http://opendatacommunities.org/id/unitary-authority/warrington ,FWB,Care Purchase Budget,54490,CP ExternalOther Exp,440800,27-Mar-15,1900169478,152000,Bupa Care Homes,104572
WARRINGTON BOROUGH COUNCIL,http://opendatacommunities.org/id/unitary-authority/warrington ,FWB,Care Purchase Budget,54490,CP ExternalOther Exp,440800,04-Mar-15,1900166627,152000,Bupa Care Homes,104572
WARRINGTON BOROUGH COUNCIL,http://opendatacommunities.org/id/unitary-authority/warrington ,FWB,Care Purchase Budget,54490,CP ExternalOther Exp,440800,27-Mar-15,1900169479,140000,HC-One Limited Callands,109640
WARRINGTON BOROUGH COUNCIL,http://opendatacommunities.org/id/unitary-authority/warrington ,FWB,Care Purchase Budget,54490,CP ExternalOther Exp,440800,04-Mar-15,1900166619,140000,HC-One Limited Callands,109640
WARRINGTON BOROUGH COUNCIL,http://opendatacommunities.org/id/unitary-authority/warrington ,FWB,Contracts - OM HPHL Team,55940,Public Health Contract Payments,540000,05-Mar-15,1900167220,137500,Bridgewater Community Healthcare,108932
WARRINGTON BOROUGH COUNCIL,http://opendatacommunities.org/id/unitary-authority/warrington ,FWB,Care Purchase Budget,54490,CP ExternalOther Exp,440800,27-Mar-15,1900169482,130000,Leyton Healthcare,102517
WARRINGTON BOROUGH COUNCIL,http://opendatacommunities.org/id/unitary-authority/warrington ,FWB,Care Purchase Budget,54490,CP ExternalOther Exp,440800,04-Mar-15,1900166622,130000,Leyton Healthcare,102517
WARRINGTON BOROUGH COUNCIL,http://opendatacommunities.org/id/unitary-authority/warrington ,FWB,Care Purchase Budget,54490,CP ExternalOther Exp,440800,27-Mar-15,1900169476,120000,Ashberry Healthcare Ltd,104776
WARRINGTON BOROUGH COUNCIL,http://opendatacommunities.org/id/unitary-authority/warrington ,FWB,Care Purchase Budget,54490,CP ExternalOther Exp,440800,04-Mar-15,1900166620,120000,Ashberry Healthcare Ltd,104776
WARRINGTON BOROUGH COUNCIL,http://opendatacommunities.org/id/unitary-authority/warrington ,FWB,Supporting People Grant Payments,53260,Sheltd/Xtra Care Hsing and Comm Alarms,535050,23-Mar-15,1900168483,107000,Golden Gates Housing Trust,101005
WARRINGTON BOROUGH COUNCIL,http://opendatacommunities.org/id/unitary-authority/warrington ,HOL,Single Billing Holding Account,91130,Gas,210050,06-Mar-15,1900167223,104944,British Gas Business,104540
WARRINGTON BOROUGH COUNCIL,http://opendatacommunities.org/id/unitary-authority/warrington ,FWB,Care Purchase Budget,54490,CP ExternalOther Exp,440800,27-Mar-15,1900169483,87000,Leyton Healthcare Limited,108970
WARRINGTON BOROUGH COUNCIL,http://opendatacommunities.org/id/unitary-authority/warrington ,FWB,Care Purchase Budget,54490,CP ExternalOther Exp,440800,04-Mar-15,1900166621,87000,Leyton Healthcare Limited,108970
WARRINGTON BOROUGH COUNCIL,http://opendatacommunities.org/id/unitary-authority/warrington ,EE0,Planning Policy,43440,Legal Costs Incurred,440200,27-Mar-15,1900169473,84000,King & Wood Mallesons LLP Client,114297
WARRINGTON BOROUGH COUNCIL,http://opendatacommunities.org/id/unitary-authority/warrington ,HOL,Single Billing Holding Account,91130,Water & Sewerage Chg,240000,31-Mar-15,1900169703,82086,United Utilities Water Limited,104982
WARRINGTON BOROUGH COUNCIL,http://opendatacommunities.org/id/unitary-authority/warrington ,FWB,Care Purchase Budget,54490,CP ExternalOther Exp,440800,27-Mar-15,1900169485,75000,WCL - Warrington Community Living,105230
WARRINGTON BOROUGH COUNCIL,http://opendatacommunities.org/id/unitary-authority/warrington ,FWB,Care Purchase Budget,54490,CP ExternalOther Exp,440800,04-Mar-15,1900166625,75000,WCL - Warrington Community Living,105230
WARRINGTON BOROUGH COUNCIL,http://opendatacommunities.org/id/unitary-authority/warrington ,HOL,Single Billing Holding Account,91130,Electricity,210000,06-Mar-15,1900167227,73506,Npower Electricity,101884
WARRINGTON BOROUGH COUNCIL,http://opendatacommunities.org/id/unitary-authority/warrington ,HOL,Single Billing Holding Account,91130,Gas,210050,23-Mar-15,1900168383,73174,British Gas Business,104540
WARRINGTON BOROUGH COUNCIL,http://opendatacommunities.org/id/unitary-authority/warrington ,HOL,Single Billing Holding Account,91130,Agency Supply - GF,180000,23-Mar-15,1900168429,71678,Hays Specialist Recruitment Ltd,107512
WARRINGTON BOROUGH COUNCIL,http://opendatacommunities.org/id/unitary-authority/warrington ,FWB,Care Purchase Budget,54490,CP ExternalOther Exp,440800,27-Mar-15,1900169480,70000,Cls Care Services Ltd,104615
WARRINGTON BOROUGH COUNCIL,http://opendatacommunities.org/id/unitary-authority/warrington ,FWB,Care Purchase Budget,54490,CP ExternalOther Exp,440800,04-Mar-15,1900166623,70000,Cls Care Services Ltd,104615
WARRINGTON BOROUGH COUNCIL,http://opendatacommunities.org/id/unitary-authority/warrington ,FWB,Care Purchase Budget,54490,CP ExternalOther Exp,440800,27-Mar-15,1900169481,70000,London & Manchester Healthcare Ltd,109185
WARRINGTON BOROUGH COUNCIL,http://opendatacommunities.org/id/unitary-authority/warrington ,FWB,Care Purchase Budget,54490,CP ExternalOther Exp,440800,04-Mar-15,1900166626,70000,London & Manchester Healthcare Ltd,109185
WARRINGTON BOROUGH COUNCIL,http://opendatacommunities.org/id/unitary-authority/warrington ,FWB,Care Purchase Budget,54490,CP ExternalOther Exp,440800,27-Mar-15,1900169477,65000,Bondcare St Andrews,109634
WARRINGTON BOROUGH COUNCIL,http://opendatacommunities.org/id/unitary-authority/warrington ,FWB,Care Purchase Budget,54490,CP ExternalOther Exp,440800,04-Mar-15,1900166624,65000,Bondcare St Andrews,109634
WARRINGTON BOROUGH COUNCIL,http://opendatacommunities.org/id/unitary-authority/warrington ,FWB,Care Purchase - Learning Disability,54450,CP-Domicil.External,440950,25-Mar-15,1900169247,63643,Alternative Futures Group,104468
WARRINGTON BOROUGH COUNCIL,http://opendatacommunities.org/id/unitary-authority/warrington ,HOL,Single Billing Holding Account,91130,Electricity,210000,23-Mar-15,1900168381,62370,Npower Electricity,101884
WARRINGTON BOROUGH COUNCIL,http://opendatacommunities.org/id/unitary-authority/warrington ,HOL,Single Billing Holding Account,91130,Agency Supply - GF,180000,06-Mar-15,1900167224,59874,Hays Specialist Recruitment Ltd,107512
WARRINGTON BOROUGH COUNCIL,http://opendatacommunities.org/id/unitary-authority/warrington ,HOL,Single Billing Holding Account,91130,Agency Supply - GF,180000,31-Mar-15,1900169674,54590,Hays Specialist Recruitment Ltd,107512
WARRINGTON BOROUGH COUNCIL,http://opendatacommunities.org/id/unitary-authority/warrington ,HOL,Single Billing Holding Account,91130,Agency Supply - GF,180000,23-Mar-15,1900168384,53837,Hays Specialist Recruitment Ltd,107512
WARRINGTON BOROUGH COUNCIL,http://opendatacommunities.org/id/unitary-authority/warrington ,HOL,Single Billing Holding Account,91130,Agency Supply - GF,180000,06-Mar-15,1900167225,50428,Hays Specialist Recruitment Ltd,107512
WARRINGTON BOROUGH COUNCIL,http://opendatacommunities.org/id/unitary-authority/warrington ,HOL,Single Billing Holding Account,91130,Gas,210050,06-Mar-15,1900167223,49701,British Gas Business,104540
WARRINGTON BOROUGH COUNCIL,http://opendatacommunities.org/id/unitary-authority/warrington ,HOL,Single Billing Holding Account,91130,Gas,210050,23-Mar-15,1900168383,49219,British Gas Business,104540
WARRINGTON BOROUGH COUNCIL,http://opendatacommunities.org/id/unitary-authority/warrington ,FWB,Halton Music Grant - EXP,32219,Consult.& Prof. Serv,440000,13-Mar-15,1900167682,48924,Halton & Warr District Music Servic,104766
WARRINGTON BOROUGH COUNCIL,http://opendatacommunities.org/id/unitary-authority/warrington ,FWB,Catalyst Choices,54495,Insurance Premium,443350,23-Mar-15,1900168404,47700,Aon Ltd,102117
WARRINGTON BOROUGH COUNCIL,http://opendatacommunities.org/id/unitary-authority/warrington ,FWB,Care Purchase - Learning Disability,54450,CP-Domicil.External,440950,12-Mar-15,1900167619,47520,Future Directions Community Interes,111498
WARRINGTON BOROUGH COUNCIL,http://opendatacommunities.org/id/unitary-authority/warrington ,FWB,Care Purchase - Learning Disability,54450,CP-Domicil.External,440950,27-Mar-15,1900169410,47339,Future Directions Community Interes,111498
WARRINGTON BOROUGH COUNCIL,http://opendatacommunities.org/id/unitary-authority/warrington ,FWB,Care Purchase - Learning Disability,54450,CP-Nursing Care-External,441200,25-Mar-15,1900169238,45078,WCL - Warrington Community Living,105230
WARRINGTON BOROUGH COUNCIL,http://opendatacommunities.org/id/unitary-authority/warrington ,FWB,Care Purchase Budget,54490,CP ExternalOther Exp,440800,26-Mar-15,1900169274,45000,Ashberry Healthcare,101061
WARRINGTON BOROUGH COUNCIL,http://opendatacommunities.org/id/unitary-authority/warrington ,FWB,Care Purchase Budget,54490,CP ExternalOther Exp,440800,03-Mar-15,1900166592,45000,Ashberry Healthcare,101061
WARRINGTON BOROUGH COUNCIL,http://opendatacommunities.org/id/unitary-authority/warrington ,HOL,Single Billing Holding Account,91130,Agency Supply - GF,180000,23-Mar-15,1900168385,44587,Hays Specialist Recruitment Ltd,107512
WARRINGTON BOROUGH COUNCIL,http://opendatacommunities.org/id/unitary-authority/warrington ,HOL,Single Billing Holding Account,91130,Electricity,210000,06-Mar-15,1900167226,42594,Npower Electricity,101884
WARRINGTON BOROUGH COUNCIL,http://opendatacommunities.org/id/unitary-authority/warrington ,FWB,Care Purchase Budget,54490,CP ExternalOther Exp,440800,26-Mar-15,1900169275,42000,Embrace Group,109675
WARRINGTON BOROUGH COUNCIL,http://opendatacommunities.org/id/unitary-authority/warrington ,FWB,Care Purchase Budget,54490,CP ExternalOther Exp,440800,04-Mar-15,1900166665,42000,Embrace Group,109675
WARRINGTON BOROUGH COUNCIL,http://opendatacommunities.org/id/unitary-authority/warrington ,HOL,Single Billing Holding Account,91130,Electricity,210000,23-Mar-15,1900168382,41936,Npower Electricity,101884
WARRINGTON BOROUGH COUNCIL,http://opendatacommunities.org/id/unitary-authority/warrington ,FWB,Care Purchase Budget,54490,CP ExternalOther Exp,440800,26-Mar-15,1900169279,40000,Heathside Elderly Persons Home,104777
WARRINGTON BOROUGH COUNCIL,http://opendatacommunities.org/id/unitary-authority/warrington ,FWB,Care Purchase Budget,54490,CP ExternalOther Exp,440800,04-Mar-15,1900166672,40000,Heathside Elderly Persons Home,104777
WARRINGTON BOROUGH COUNCIL,http://opendatacommunities.org/id/unitary-authority/warrington ,FWB,Contracts - SM Commissioning Team 1,55910,Public Health Contract Payments,540000,25-Mar-15,1900169265,37811,Bridgewater Community Healthcare,108932
WARRINGTON BOROUGH COUNCIL,http://opendatacommunities.org/id/unitary-authority/warrington ,CYP,Childrens Other,81004,Contract Works,492550,05-Mar-15,1900167186,37747,Twinfix Ltd,114231
WARRINGTON BOROUGH COUNCIL,http://opendatacommunities.org/id/unitary-authority/warrington ,FWB,Care Purchase - IC,54290,CP - Intermediate Care - External,441300,27-Mar-15,1900169397,37602,CareConcepts (Appleton) Ltd,105804
WARRINGTON BOROUGH COUNCIL,http://opendatacommunities.org/id/unitary-authority/warrington ,FWB,Supporting People Grant Payments,53260,Sheltd/Xtra Care Hsing and Comm Alarms,535050,04-Mar-15,1900166736,36573,Golden Gates Housing Trust,101005
WARRINGTON BOROUGH COUNCIL,http://opendatacommunities.org/id/unitary-authority/warrington ,FWB,Care Purchase - Learning Disability,54450,CP-Domicil.External,440950,27-Mar-15,1900169402,36365,Creative Support Ltd,100902
WARRINGTON BOROUGH COUNCIL,http://opendatacommunities.org/id/unitary-authority/warrington ,FWB,Care Purchase Budget,54490,CP ExternalOther Exp,440800,26-Mar-15,1900169286,35000,St Marys Care Centre,101503
WARRINGTON BOROUGH COUNCIL,http://opendatacommunities.org/id/unitary-authority/warrington ,FWB,Care Purchase Budget,54490,CP ExternalOther Exp,440800,04-Mar-15,1900166608,35000,St Marys Care Centre,101503
WARRINGTON BOROUGH COUNCIL,http://opendatacommunities.org/id/unitary-authority/warrington ,FWB,Music Education Grant,32220,Consult.& Prof. Serv,440000,13-Mar-15,1900167678,34239,Halton & Warr District Music Servic,104766
WARRINGTON BOROUGH COUNCIL,http://opendatacommunities.org/id/unitary-authority/warrington ,HOL,Single Billing Holding Account,91130,Electricity,210000,23-Mar-15,1900168380,33428,Npower Electricity,101884
WARRINGTON BOROUGH COUNCIL,http://opendatacommunities.org/id/unitary-authority/warrington ,FWB,Care Purchase Budget,54490,CP ExternalOther Exp,440800,26-Mar-15,1900169280,33000,Keate House Residential Home,104849
WARRINGTON BOROUGH COUNCIL,http://opendatacommunities.org/id/unitary-authority/warrington ,FWB,Care Purchase Budget,54490,CP ExternalOther Exp,440800,04-Mar-15,1900166669,33000,Keate House Residential Home,104849
WARRINGTON BOROUGH COUNCIL,http://opendatacommunities.org/id/unitary-authority/warrington ,FWB,Care Purchase Budget,54490,CP ExternalOther Exp,440800,26-Mar-15,1900169278,33000,Wcl - Heathside Mews,101742
WARRINGTON BOROUGH COUNCIL,http://opendatacommunities.org/id/unitary-authority/warrington ,FWB,Care Purchase Budget,54490,CP ExternalOther Exp,440800,04-Mar-15,1900166674,33000,Wcl - Heathside Mews,101742
WARRINGTON BOROUGH COUNCIL,http://opendatacommunities.org/id/unitary-authority/warrington ,FWB,Older Peoples North Team,54422,CP-Nursing Care-External,441200,25-Mar-15,1900169248,30959,Barchester Homes Westvale House,105246
WARRINGTON BOROUGH COUNCIL,http://opendatacommunities.org/id/unitary-authority/warrington ,FWB,Care Purchase Budget,54490,CP ExternalOther Exp,440800,26-Mar-15,1900169290,30000,Summerville Nursing Home -Private C,105162
WARRINGTON BOROUGH COUNCIL,http://opendatacommunities.org/id/unitary-authority/warrington ,FWB,Care Purchase Budget,54490,CP ExternalOther Exp,440800,04-Mar-15,1900166610,30000,Summerville Nursing Home -Private C,105162
WARRINGTON BOROUGH COUNCIL,http://opendatacommunities.org/id/unitary-authority/warrington ,FWB,Care Purchase - Learning Disability,54450,CP-LongStayExternal,441150,06-Mar-15,1900167301,29774,WCL - Warrington Community Living,105230
WARRINGTON BOROUGH COUNCIL,http://opendatacommunities.org/id/unitary-authority/warrington ,FWB,Care Purchase AMH,54135,CP-Domicil.External,440950,25-Mar-15,1900168718,29190,Next Stage A Way Forward Ltd,101217
WARRINGTON BOROUGH COUNCIL,http://opendatacommunities.org/id/unitary-authority/warrington ,FWB,Care Purchase - Learning Disability,54450,CP-Nursing Care-External,441200,27-Mar-15,1900169401,27620,Community Care Matters Limited,102791
WARRINGTON BOROUGH COUNCIL,http://opendatacommunities.org/id/unitary-authority/warrington ,FWB,Older Peoples North Team,54422,CP-Domicil.External,440950,27-Mar-15,1900169484,27571,Premier Care Cheshire Ltd,105142
WARRINGTON BOROUGH COUNCIL,http://opendatacommunities.org/id/unitary-authority/warrington ,FWB,Older Peoples South Team,54421,CP-Nursing Care-External,441200,31-Mar-15,1900169629,27083,CareConcepts (Appleton) Ltd,105804
WARRINGTON BOROUGH COUNCIL,http://opendatacommunities.org/id/unitary-authority/warrington ,FWB,Care Purchase Budget,54490,CP ExternalOther Exp,440800,26-Mar-15,1900169281,27000,Minster Care Management Ltd,105179
WARRINGTON BOROUGH COUNCIL,http://opendatacommunities.org/id/unitary-authority/warrington ,FWB,Care Purchase Budget,54490,CP ExternalOther Exp,440800,04-Mar-15,1900166670,27000,Minster Care Management Ltd,105179
WARRINGTON BOROUGH COUNCIL,http://opendatacommunities.org/id/unitary-authority/warrington ,EE0,Industrial Estates,43570,Rent Gatewarth,220300,09-Mar-15,1900167332,26000,Combined Property Control,100133
WARRINGTON BOROUGH COUNCIL,http://opendatacommunities.org/id/unitary-authority/warrington ,FWB,Care Purchase Budget,54490,CP ExternalOther Exp,440800,26-Mar-15,1900169296,26000,W H Investments Ltd,111422
WARRINGTON BOROUGH COUNCIL,http://opendatacommunities.org/id/unitary-authority/warrington ,FWB,Care Purchase Budget,54490,CP ExternalOther Exp,440800,04-Mar-15,1900166617,26000,W H Investments Ltd,111422
WARRINGTON BOROUGH COUNCIL,http://opendatacommunities.org/id/unitary-authority/warrington ,FWB,Care Purchase Budget,54490,CP ExternalOther Exp,440800,26-Mar-15,1900169287,25000,Four Seasons ta St Oswalds Care Hom,109422
WARRINGTON BOROUGH COUNCIL,http://opendatacommunities.org/id/unitary-authority/warrington ,FWB,Care Purchase Budget,54490,CP ExternalOther Exp,440800,04-Mar-15,1900166609,25000,Four Seasons ta St Oswalds Care Hom,109422
WARRINGTON BOROUGH COUNCIL,http://opendatacommunities.org/id/unitary-authority/warrington ,CYP,Childrens Other,81004,Specific Work,200200,27-Mar-15,1900169475,25000,Shrewsbury Diocese,113443
WARRINGTON BOROUGH COUNCIL,http://opendatacommunities.org/id/unitary-authority/warrington ,RSC,ICT Networks,23400,ICT Comms - Line Rental,450200,13-Mar-15,1900167708,25000,Virgin Media Business,106824
WARRINGTON BOROUGH COUNCIL,http://opendatacommunities.org/id/unitary-authority/warrington ,COR,Corporate Planning Items,61020,Misc (Contingency),551250,10-Mar-15,1900167421,25000,Warrington Cultural Trust,100957
WARRINGTON BOROUGH COUNCIL,http://opendatacommunities.org/id/unitary-authority/warrington ,FWB,SLA - Grant Account,53920,Payment of Grants,470050,23-Mar-15,1900168434,24796,WIRED,109547
WARRINGTON BOROUGH COUNCIL,http://opendatacommunities.org/id/unitary-authority/warrington ,FWB,SLA - Grant Account,53920,Payment of Grants,470050,23-Mar-15,1900168427,24000,Warrington Voluntary Action,110206
WARRINGTON BOROUGH COUNCIL,http://opendatacommunities.org/id/unitary-authority/warrington ,FWB,Care Purchase - Learning Disability,54450,CP-Day Care-External,441100,20-Mar-15,1900168172,23851,Walton Lea Project,102953
WARRINGTON BOROUGH COUNCIL,http://opendatacommunities.org/id/unitary-authority/warrington ,EE0,Hatters Row,43710,Rent Of Premises,220000,16-Mar-15,1900167763,23844,Manchester & Provincial Car Pks Ltd,104918
WARRINGTON BOROUGH COUNCIL,http://opendatacommunities.org/id/unitary-authority/warrington ,FWB,Care Purchase - Learning Disability,54450,CP-Day Care-External,441100,04-Mar-15,1900166652,23827,Walton Lea Project,102953
WARRINGTON BOROUGH COUNCIL,http://opendatacommunities.org/id/unitary-authority/warrington ,FWB,Older Peoples South Team,54421,CP-Domicil.External,440950,27-Mar-15,1900169484,23228,Premier Care Cheshire Ltd,105142
WARRINGTON BOROUGH COUNCIL,http://opendatacommunities.org/id/unitary-authority/warrington ,FWB,Care Purchase Budget,54490,CP ExternalOther Exp,440800,26-Mar-15,1900169276,23000,Harbour Healthcare 1 Ltd,110527
WARRINGTON BOROUGH COUNCIL,http://opendatacommunities.org/id/unitary-authority/warrington ,FWB,Care Purchase Budget,54490,CP ExternalOther Exp,440800,04-Mar-15,1900166679,23000,Harbour Healthcare 1 Ltd,110527
WARRINGTON BOROUGH COUNCIL,http://opendatacommunities.org/id/unitary-authority/warrington ,FWB,Care Purchase Budget,54490,CP ExternalOther Exp,440800,26-Mar-15,1900169293,23000,Thelwall Grange Nursing Home,105174
WARRINGTON BOROUGH COUNCIL,http://opendatacommunities.org/id/unitary-authority/warrington ,FWB,Care Purchase Budget,54490,CP ExternalOther Exp,440800,04-Mar-15,1900166611,23000,Thelwall Grange Nursing Home,105174
WARRINGTON BOROUGH COUNCIL,http://opendatacommunities.org/id/unitary-authority/warrington ,FWB,Care Purchase Budget,54490,CP ExternalOther Exp,440800,31-Mar-15,1900169638,22567,Embrace Group,109675
WARRINGTON BOROUGH COUNCIL,http://opendatacommunities.org/id/unitary-authority/warrington ,FWB,Care Purchase Budget,54490,CP ExternalOther Exp,440800,18-Mar-15,1900167971,22314,Thelwall Grange Nursing Home,105174
WARRINGTON BOROUGH COUNCIL,http://opendatacommunities.org/id/unitary-authority/warrington ,FOL,Longbarn Primary School,35041,Electricity,210000,03-Mar-15,1700011074,22201,Npower Electricity,101884
WARRINGTON BOROUGH COUNCIL,http://opendatacommunities.org/id/unitary-authority/warrington ,RSC,Customer Contact Centre,52201,Rent Of Premises,220000,09-Mar-15,1900167312,22152,Whitecrest Estate Agents,106130
WARRINGTON BOROUGH COUNCIL,http://opendatacommunities.org/id/unitary-authority/warrington ,FOL,Longbarn Primary School,35041,Electricity,210000,03-Mar-15,1700011073,22100,Npower Electricity,101884
WARRINGTON BOROUGH COUNCIL,http://opendatacommunities.org/id/unitary-authority/warrington ,FWB,Care Purchase - OP & OT West,54470,CP-Nursing Care-External,441200,03-Mar-15,1900166589,21246,Barchester Homes Westvale House,105246
WARRINGTON BOROUGH COUNCIL,http://opendatacommunities.org/id/unitary-authority/warrington ,FWB,DSG Independent School Fees,32011,Independent School Fees,490200,09-Mar-15,1900167384,21093,Lakeside School Limited,103188
WARRINGTON BOROUGH COUNCIL,http://opendatacommunities.org/id/unitary-authority/warrington ,HOL,Single Billing Holding Account,91130,Specific Work,200200,23-Mar-15,1900168417,20600,Manchester Working Limited,105646
WARRINGTON BOROUGH COUNCIL,http://opendatacommunities.org/id/unitary-authority/warrington ,FWB,Older Peoples South Team,54421,CP - Housing with Care - External,494450,27-Mar-15,1900169408,20159,The Extracare Charitable Trust,100497
WARRINGTON BOROUGH COUNCIL,http://opendatacommunities.org/id/unitary-authority/warrington ,FWB,Care Purchase Budget,54490,CP ExternalOther Exp,440800,26-Mar-15,1900169282,20000,Old Rectory Private Nursing Home,104990
WARRINGTON BOROUGH COUNCIL,http://opendatacommunities.org/id/unitary-authority/warrington ,FWB,Care Purchase Budget,54490,CP ExternalOther Exp,440800,04-Mar-15,1900166667,20000,Old Rectory Private Nursing Home,104990
WARRINGTON BOROUGH COUNCIL,http://opendatacommunities.org/id/unitary-authority/warrington ,FWB,Care Purchase - Learning Disability,54450,CP-LongStayExternal,441150,23-Mar-15,1900168386,19951,Craegmoor Oxen Barn Priory,112933
WARRINGTON BOROUGH COUNCIL,http://opendatacommunities.org/id/unitary-authority/warrington ,FWB,DSG Independent School Fees,32011,Independent School Fees,490200,09-Mar-15,1900167385,18598,Lakeside School Limited,103188
WARRINGTON BOROUGH COUNCIL,http://opendatacommunities.org/id/unitary-authority/warrington ,FWB,DSG Independent School Fees,32011,Independent School Fees,490200,09-Mar-15,1900167359,18352,Cedar House School,111289
WARRINGTON BOROUGH COUNCIL,http://opendatacommunities.org/id/unitary-authority/warrington ,FWB,DSG Independent School Fees,32011,Independent School Fees,490200,09-Mar-15,1900167357,18352,Cedar House School,111289
WARRINGTON BOROUGH COUNCIL,http://opendatacommunities.org/id/unitary-authority/warrington ,FWB,Care Purchase - Learning Disability,54450,CP-Domicil.External,440950,31-Mar-15,1900169625,18279,Macintyre Care,104907
WARRINGTON BOROUGH COUNCIL,http://opendatacommunities.org/id/unitary-authority/warrington ,FWB,Care Purchase ,54440,CP-Domicil.External,440950,24-Mar-15,1900168667,18186,Creative Support Ltd,100902
WARRINGTON BOROUGH COUNCIL,http://opendatacommunities.org/id/unitary-authority/warrington ,FWB,Care Purchase Budget,54490,CP ExternalOther Exp,440800,26-Mar-15,1900169273,18000,GNR Care Limited,114127
WARRINGTON BOROUGH COUNCIL,http://opendatacommunities.org/id/unitary-authority/warrington ,FWB,Care Purchase Budget,54490,CP ExternalOther Exp,440800,03-Mar-15,1900166591,18000,GNR Care Limited,114127
WARRINGTON BOROUGH COUNCIL,http://opendatacommunities.org/id/unitary-authority/warrington ,EE0,Public Conveniences,43510,Rent Of Premises,220000,20-Mar-15,1900168199,17821,Jcdecaux Uk Ltd,104827
WARRINGTON BOROUGH COUNCIL,http://opendatacommunities.org/id/unitary-authority/warrington ,FWB,DSG Independent School Fees,32011,Independent School Fees,490200,09-Mar-15,1900167386,17608,Lakeside School Limited,103188
WARRINGTON BOROUGH COUNCIL,http://opendatacommunities.org/id/unitary-authority/warrington ,FWB,DSG Independent School Fees,32011,Independent School Fees,490200,09-Mar-15,1900167362,17608,Witherslack Hall School,112373
WARRINGTON BOROUGH COUNCIL,http://opendatacommunities.org/id/unitary-authority/warrington ,RSC,Housing Benefit,10340,Consult.& Prof. Serv,440000,31-Mar-15,1900169641,17500,Remploy Limited,105894
WARRINGTON BOROUGH COUNCIL,http://opendatacommunities.org/id/unitary-authority/warrington ,EE0,Planning Policy,43440,Consult.& Prof. Serv,440000,05-Mar-15,1900167202,17408,DLA Piper UK LLp,114116
WARRINGTON BOROUGH COUNCIL,http://opendatacommunities.org/id/unitary-authority/warrington ,FWB,Care Purchase - OP & OT West,54470,CP-Domicil.External,440950,04-Mar-15,1900166618,17131,Premier Care Cheshire Ltd,105142
WARRINGTON BOROUGH COUNCIL,http://opendatacommunities.org/id/unitary-authority/warrington ,HOL,Single Billing Holding Account,91130,Electricity,210000,23-Mar-15,1900168380,17023,Npower Electricity,101884
WARRINGTON BOROUGH COUNCIL,http://opendatacommunities.org/id/unitary-authority/warrington ,FWB,Care Purchase Budget,54490,CP ExternalOther Exp,440800,26-Mar-15,1900169277,17000,Heathfield Residental Home,100059
WARRINGTON BOROUGH COUNCIL,http://opendatacommunities.org/id/unitary-authority/warrington ,FWB,Care Purchase Budget,54490,CP ExternalOther Exp,440800,04-Mar-15,1900166676,17000,Heathfield Residental Home,100059
WARRINGTON BOROUGH COUNCIL,http://opendatacommunities.org/id/unitary-authority/warrington ,FWB,Care Purchase - OP & OT Central,54420,CP-Domicil.External,440950,04-Mar-15,1900166618,16848,Premier Care Cheshire Ltd,105142
WARRINGTON BOROUGH COUNCIL,http://opendatacommunities.org/id/unitary-authority/warrington ,FWB,Older Peoples South Team,54421,CP-Domicil.External,440950,27-Mar-15,1900169430,16825,Nightingales Homecare Services Agen,104972
WARRINGTON BOROUGH COUNCIL,http://opendatacommunities.org/id/unitary-authority/warrington ,FWB,Care Purchase - Learning Disability,54450,CP-Day Care-External,441100,17-Mar-15,1900167962,16423,Macintyre Care,104907
WARRINGTON BOROUGH COUNCIL,http://opendatacommunities.org/id/unitary-authority/warrington ,FWB,Care Purchase Budget,54490,CP ExternalOther Exp,440800,31-Mar-15,1900169632,16398,Bondcare St Andrews,109634
WARRINGTON BOROUGH COUNCIL,http://opendatacommunities.org/id/unitary-authority/warrington ,FWB,DAAT (PCT Funded),53820,Consult.& Prof. Serv,440000,11-Mar-15,1900167584,16236,Bond Dickenson LLP,113180
WARRINGTON BOROUGH COUNCIL,http://opendatacommunities.org/id/unitary-authority/warrington ,FWB,Older Peoples North Team,54422,CP-Domicil.External,440950,27-Mar-15,1900169430,16048,Nightingales Homecare Services Agen,104972
WARRINGTON BOROUGH COUNCIL,http://opendatacommunities.org/id/unitary-authority/warrington ,FWB,Care Purchase Budget,54490,CP ExternalOther Exp,440800,26-Mar-15,1900169284,16000,Rosevilla Residential Home,105084
WARRINGTON BOROUGH COUNCIL,http://opendatacommunities.org/id/unitary-authority/warrington ,FWB,Care Purchase Budget,54490,CP ExternalOther Exp,440800,04-Mar-15,1900166603,16000,Rosevilla Residential Home,105084
WARRINGTON BOROUGH COUNCIL,http://opendatacommunities.org/id/unitary-authority/warrington ,FWB,DSG Independent School Fees,32011,Independent School Fees,490200,09-Mar-15,1900167358,15969,Cedar House School,111289
WARRINGTON BOROUGH COUNCIL,http://opendatacommunities.org/id/unitary-authority/warrington ,FWB,DSG Independent School Fees,32011,Independent School Fees,490200,09-Mar-15,1900167379,15969,Pontville School,109772
WARRINGTON BOROUGH COUNCIL,http://opendatacommunities.org/id/unitary-authority/warrington ,FWB,DSG Independent School Fees,32011,Independent School Fees,490200,09-Mar-15,1900167378,15969,Pontville School,109772
WARRINGTON BOROUGH COUNCIL,http://opendatacommunities.org/id/unitary-authority/warrington ,CYP,Primary,81001,ICT Comms - Equipment Purchase,450100,05-Mar-15,1900167173,15864,CDEC Limited,109195
WARRINGTON BOROUGH COUNCIL,http://opendatacommunities.org/id/unitary-authority/warrington ,RSC,Head of Integrated Commissioning,53500,"Campaigns,  Projects and Events",491950,13-Mar-15,1900167688,15417,Hao2.eu,114252
WARRINGTON BOROUGH COUNCIL,http://opendatacommunities.org/id/unitary-authority/warrington ,HOL,Single Billing Holding Account,91130,Specific Work,200200,23-Mar-15,1900168413,15385,Manchester Working Limited,105646
WARRINGTON BOROUGH COUNCIL,http://opendatacommunities.org/id/unitary-authority/warrington ,FWB,Care Purchase Budget,54490,CP ExternalOther Exp,440800,27-Mar-15,1900169444,15368,Summerville Nursing Home -Private C,105162
WARRINGTON BOROUGH COUNCIL,http://opendatacommunities.org/id/unitary-authority/warrington ,FWB,Care Purchase - OP & OT Central,54420,CP-Nursing Care-External,441200,26-Mar-15,1900169357,15366,Leyton Healthcare Limited,108970
WARRINGTON BOROUGH COUNCIL,http://opendatacommunities.org/id/unitary-authority/warrington ,FWB,Care Purchase AMH,54135,CP-Domicil.External,440950,27-Mar-15,1900169425,15202,Independent Living Alliance,100726
WARRINGTON BOROUGH COUNCIL,http://opendatacommunities.org/id/unitary-authority/warrington ,RSC,Asst Director - Int Hlth & Scl Cr Comm,53000,Consult.& Prof. Serv,440000,30-Mar-15,1900169600,15000,Groundwork Cheshire,108731
WARRINGTON BOROUGH COUNCIL,http://opendatacommunities.org/id/unitary-authority/warrington ,COR,Corporate Planning Items,61020,Misc (Contingency),551250,23-Mar-15,1900168426,15000,Warrington Cultural Trust,100957
WARRINGTON BOROUGH COUNCIL,http://opendatacommunities.org/id/unitary-authority/warrington ,FWB,Care Purchase AMH,54135,CP-Domicil.External,440950,27-Mar-15,1900169422,14899,Independent Living Alliance,100726
WARRINGTON BOROUGH COUNCIL,http://opendatacommunities.org/id/unitary-authority/warrington ,FWB,Care Purchase - Learning Disability,54450,CP-Domicil.External,440950,25-Mar-15,1900168718,14747,Next Stage A Way Forward Ltd,101217
WARRINGTON BOROUGH COUNCIL,http://opendatacommunities.org/id/unitary-authority/warrington ,CYP,Childrens Other,81004,Contract Works,492550,02-Mar-15,1900166503,14670,Magenta Design & Build,113576
WARRINGTON BOROUGH COUNCIL,http://opendatacommunities.org/id/unitary-authority/warrington ,FWB,Catalyst Choices,54495,Insurance Premium,443350,23-Mar-15,1900168439,14356,Aon Ltd,102117
WARRINGTON BOROUGH COUNCIL,http://opendatacommunities.org/id/unitary-authority/warrington ,RSC,Head of Integrated Commissioning,53500,Transitional Beds,443800,11-Mar-15,1900167491,14086,HC-One Limited Callands,109640
WARRINGTON BOROUGH COUNCIL,http://opendatacommunities.org/id/unitary-authority/warrington ,FWB,Care Purchase Budget,54490,CP Free Nursing Care External,443500,24-Mar-15,1900168662,14067,Barchester Homes Westvale House,105246
WARRINGTON BOROUGH COUNCIL,http://opendatacommunities.org/id/unitary-authority/warrington ,CYP,Childrens Other,81004,Specific Work,200200,26-Mar-15,1900169304,14040,Diocese of Liverpool,114311
WARRINGTON BOROUGH COUNCIL,http://opendatacommunities.org/id/unitary-authority/warrington ,CYP,Childrens Other,81004,ICT Comms - Equipment Purchase,450100,05-Mar-15,1900167166,13850,Abtec Computer Solutions Ltd,107132
WARRINGTON BOROUGH COUNCIL,http://opendatacommunities.org/id/unitary-authority/warrington ,HOL,Single Billing Holding Account,91130,ICT Comms - Line Rental,450200,30-Mar-15,1900169525,13738,EE Airtime,104996
WARRINGTON BOROUGH COUNCIL,http://opendatacommunities.org/id/unitary-authority/warrington ,HOL,Single Billing Holding Account,91130,ICT Comms - Line Rental,450200,30-Mar-15,1900169524,13578,EE Airtime,104996
WARRINGTON BOROUGH COUNCIL,http://opendatacommunities.org/id/unitary-authority/warrington ,FWB,Care Purchase -OP & OT East,54430,CP-Domicil.External,440950,04-Mar-15,1900166618,13537,Premier Care Cheshire Ltd,105142
WARRINGTON BOROUGH COUNCIL,http://opendatacommunities.org/id/unitary-authority/warrington ,HOL,Single Billing Holding Account,91130,Specific Work,200200,23-Mar-15,1900168416,13459,Manchester Working Limited,105646
WARRINGTON BOROUGH COUNCIL,http://opendatacommunities.org/id/unitary-authority/warrington ,HOL,Single Billing Holding Account,91130,ICT Comms - Line Rental,450200,30-Mar-15,1900169523,13149,EE Airtime,104996
WARRINGTON BOROUGH COUNCIL,http://opendatacommunities.org/id/unitary-authority/warrington ,FWB,Care Purchase - Learning Disability,54450,CP-LongStayExternal,441150,04-Mar-15,1900166660,12890,The David Lewis Centre,104879
WARRINGTON BOROUGH COUNCIL,http://opendatacommunities.org/id/unitary-authority/warrington ,FWB,Care Purchase - Learning Disability,54450,CP-LongStayExternal,441150,24-Mar-15,1900168683,12744,Inclusive Lifestyles Ltd,101840
WARRINGTON BOROUGH COUNCIL,http://opendatacommunities.org/id/unitary-authority/warrington ,FWB,Care Purchase Budget,54490,CP Free Nursing Care External,443500,04-Mar-15,1900166653,12673,Barchester Homes Westvale House,105246
WARRINGTON BOROUGH COUNCIL,http://opendatacommunities.org/id/unitary-authority/warrington ,FWB,Older Peoples South Team,54421,CP-Domicil.External,440950,24-Mar-15,1900168665,12668,Mayfield Home Care Agency,104928
WARRINGTON BOROUGH COUNCIL,http://opendatacommunities.org/id/unitary-authority/warrington ,FWB,Care Purchase - Learning Disability,54450,CP-LongStayExternal,441150,24-Mar-15,1900168692,12613,Inclusive Lifestyles Ltd,101840
WARRINGTON BOROUGH COUNCIL,http://opendatacommunities.org/id/unitary-authority/warrington ,EE0,Town Centre,43840,Consult.& Prof. Serv,440000,31-Mar-15,1900169695,12500,REDACTED PERSONAL DATA,111305
WARRINGTON BOROUGH COUNCIL,http://opendatacommunities.org/id/unitary-authority/warrington ,FWB,Older Peoples North Team,54422,CP-Domicil.External,440950,27-Mar-15,1900169399,12451,Carewatch North Cheshire,104573
WARRINGTON BOROUGH COUNCIL,http://opendatacommunities.org/id/unitary-authority/warrington ,HOL,Insurance Fund,91100,Insurance Claims,443400,19-Mar-15,1900168140,12440,Zurich Insurance Company,105263
WARRINGTON BOROUGH COUNCIL,http://opendatacommunities.org/id/unitary-authority/warrington ,CYP,Primary,81001,ICT Comms - Equipment Purchase,450100,09-Mar-15,1900167344,12374,GBM Digital Technologies Ltd,110909
WARRINGTON BOROUGH COUNCIL,http://opendatacommunities.org/id/unitary-authority/warrington ,CYP,Childrens Other,81004,Specific Work,200200,11-Mar-15,1900167604,12350,Pentagon Sport,108264
WARRINGTON BOROUGH COUNCIL,http://opendatacommunities.org/id/unitary-authority/warrington ,FWB,Care Purchase - Learning Disability,54450,CP-LongStayExternal,441150,23-Mar-15,1900168389,12348,Griffin Care Ltd,101672
WARRINGTON BOROUGH COUNCIL,http://opendatacommunities.org/id/unitary-authority/warrington ,FWB,Care Purchase - Learning Disability,54450,CP-LongStayExternal,441150,23-Mar-15,1900168390,12348,Griffin Care Ltd,101672
WARRINGTON BOROUGH COUNCIL,http://opendatacommunities.org/id/unitary-authority/warrington ,FWB,Care Purchase - PD,54440,CP-Domicil.External,440950,04-Mar-15,1900166618,12239,Premier Care Cheshire Ltd,105142
WARRINGTON BOROUGH COUNCIL,http://opendatacommunities.org/id/unitary-authority/warrington ,FWB,Care Purchase Budget,54490,CP ExternalOther Exp,440800,25-Mar-15,1900169256,12183,Minster Care Management Ltd,105179
WARRINGTON BOROUGH COUNCIL,http://opendatacommunities.org/id/unitary-authority/warrington ,FWB,Care Purchase Budget,54490,CP ExternalOther Exp,440800,06-Mar-15,1900167290,12121,WCL - Warrington Community Living,105230
WARRINGTON BOROUGH COUNCIL,http://opendatacommunities.org/id/unitary-authority/warrington ,FWB,Care Purchase -OP & OT East,54430,CP-Domicil.External,440950,06-Mar-15,1900167289,12057,Nightingales Homecare Services Agen,104972
WARRINGTON BOROUGH COUNCIL,http://opendatacommunities.org/id/unitary-authority/warrington ,FWB,Care Purchase - PD,54440,CP-Domicil.External,440950,27-Mar-15,1900169484,12051,Premier Care Cheshire Ltd,105142
WARRINGTON BOROUGH COUNCIL,http://opendatacommunities.org/id/unitary-authority/warrington ,FWB,DSG 2 Year Old Trajectory Fund,31602,Learning Resources,400100,31-Mar-15,1900169709,12000,Dunky's Day Nursery Warrington,113903
WARRINGTON BOROUGH COUNCIL,http://opendatacommunities.org/id/unitary-authority/warrington ,FWB,Care Purchase - Learning Disability,54450,CP-LongStayExternal,441150,23-Mar-15,1900168317,11896,Progress Care and Education Ltd,108888
WARRINGTON BOROUGH COUNCIL,http://opendatacommunities.org/id/unitary-authority/warrington ,FWB,Care Purchase - Learning Disability,54450,CP-Domicil.External,440950,18-Mar-15,1900167980,11824,Zeno Limited,111080
WARRINGTON BOROUGH COUNCIL,http://opendatacommunities.org/id/unitary-authority/warrington ,ENP,Environment & Regeneration,82000,ICT Comms - Line Rental,450200,13-Mar-15,1900167710,11667,Virgin Media Business,106824
WARRINGTON BOROUGH COUNCIL,http://opendatacommunities.org/id/unitary-authority/warrington ,RSC,Schools & Libraries Internet Project,23030,ICT Comms - Line Rental,450200,13-Mar-15,1900167713,11413,Virgin Media Business,106824
WARRINGTON BOROUGH COUNCIL,http://opendatacommunities.org/id/unitary-authority/warrington ,FWB,Care Purchase - ABI,54260,CP-Domicil.External,440950,04-Mar-15,1900166725,11378,Aspirations Care Limited,113707
WARRINGTON BOROUGH COUNCIL,http://opendatacommunities.org/id/unitary-authority/warrington ,FWB,Care Purchase - ABI,54260,CP-Domicil.External,440950,24-Mar-15,1900168633,11378,Aspirations Care Limited,113707
WARRINGTON BOROUGH COUNCIL,http://opendatacommunities.org/id/unitary-authority/warrington ,CYP,Childrens Other,81004,ICT Comms - Equipment Purchase,450100,26-Mar-15,1900169391,11366,Pc World Currys Warrington,100216
WARRINGTON BOROUGH COUNCIL,http://opendatacommunities.org/id/unitary-authority/warrington ,FWB,Care Purchase - Learning Disability,54450,CP-LongStayExternal,441150,23-Mar-15,1900168302,11238,Progress Adult Services Ltd,101817
WARRINGTON BOROUGH COUNCIL,http://opendatacommunities.org/id/unitary-authority/warrington ,FWB,Care Purchase - Learning Disability,54450,CP-LongStayExternal,441150,23-Mar-15,1900168319,11238,Progress Adult Services Ltd,101817
WARRINGTON BOROUGH COUNCIL,http://opendatacommunities.org/id/unitary-authority/warrington ,CYP,Childrens Other,81004,ICT Comms - Equipment Purchase,450100,05-Mar-15,1900167174,10935,GBM Digital Technologies Ltd,110909
WARRINGTON BOROUGH COUNCIL,http://opendatacommunities.org/id/unitary-authority/warrington ,FWB,SLA - Grant Account,53920,Payment of Grants,470050,23-Mar-15,1900168376,10805,Salvation Army Band,100437
WARRINGTON BOROUGH COUNCIL,http://opendatacommunities.org/id/unitary-authority/warrington ,FWB,Care Purchase - Learning Disability,54450,CP-LongStayExternal,441150,25-Mar-15,1900169238,10800,WCL - Warrington Community Living,105230
WARRINGTON BOROUGH COUNCIL,http://opendatacommunities.org/id/unitary-authority/warrington ,FWB,Older Peoples South Team,54421,CP-Nursing Care-External,441200,25-Mar-15,1900169248,10644,Barchester Homes Westvale House,105246
WARRINGTON BOROUGH COUNCIL,http://opendatacommunities.org/id/unitary-authority/warrington ,FWB,Contracts - OM K & I Team,55950,Public Health Contract Payments,540000,24-Mar-15,1900168538,7200,Alan Gillies (Learning Consultancy),113028
WARRINGTON BOROUGH COUNCIL,http://opendatacommunities.org/id/unitary-authority/warrington ,HOL,Single Billing Holding Account,91130,Specific Work,200200,23-Mar-15,1900168411,7185,Manchester Working Limited,105646
WARRINGTON BOROUGH COUNCIL,http://opendatacommunities.org/id/unitary-authority/warrington ,ENP,Environment & Regeneration,82000,Consult.& Prof. Serv,440000,03-Mar-15,1900166587,7100,Lambert Smith Hampton,100591
WARRINGTON BOROUGH COUNCIL,http://opendatacommunities.org/id/unitary-authority/warrington ,FWB,Care Purchase - Learning Disability,54450,Supporting People - External,441250,12-Mar-15,1900167619,7097,Future Directions Community Interes,111498
WARRINGTON BOROUGH COUNCIL,http://opendatacommunities.org/id/unitary-authority/warrington ,FWB,Care Purchase - Learning Disability,54450,Supporting People - External,441250,27-Mar-15,1900169410,7097,Future Directions Community Interes,111498
WARRINGTON BOROUGH COUNCIL,http://opendatacommunities.org/id/unitary-authority/warrington ,FWB,Care Purchase - Learning Disability,54450,CP-LongStayExternal,441150,24-Mar-15,1900168697,7096,HWCGS Care Ltd,108619
WARRINGTON BOROUGH COUNCIL,http://opendatacommunities.org/id/unitary-authority/warrington ,FWB,Care Purchase - PD,54440,CP-LongStayExternal,441150,25-Mar-15,1900168705,7087,Voyage Care,100099
WARRINGTON BOROUGH COUNCIL,http://opendatacommunities.org/id/unitary-authority/warrington ,FWB,Catalyst Choices,54495,Insurance Premium,443350,23-Mar-15,1900168464,7074,Aon Ltd,102117
WARRINGTON BOROUGH COUNCIL,http://opendatacommunities.org/id/unitary-authority/warrington ,FWB,Adoption Team,31107,Consult.& Prof. Serv,440000,10-Mar-15,1900167426,7050,Baltimore Consulting Ltd,113735
WARRINGTON BOROUGH COUNCIL,http://opendatacommunities.org/id/unitary-authority/warrington ,ENP,Environment & Regeneration,82000,Consult.& Prof. Serv,440000,31-Mar-15,1900169659,7041,Seddon Construction Ltd,109299
WARRINGTON BOROUGH COUNCIL,http://opendatacommunities.org/id/unitary-authority/warrington ,FWB,Care Purchase - PD,54440,CP-LongStayExternal,441150,23-Mar-15,1900168308,7037,Cotebrook,104638
WARRINGTON BOROUGH COUNCIL,http://opendatacommunities.org/id/unitary-authority/warrington ,ENO,Highways Other,82005,Consult.& Prof. Serv,440000,02-Mar-15,1900166550,7003,Urban Roots Planning Limited,113015
WARRINGTON BOROUGH COUNCIL,http://opendatacommunities.org/id/unitary-authority/warrington ,FWB,Care Purchase - Learning Disability,54450,CP-Domicil.External,440950,06-Mar-15,1900167300,6997,WCL - Warrington Community Living,105230
WARRINGTON BOROUGH COUNCIL,http://opendatacommunities.org/id/unitary-authority/warrington ,CYP,Childrens Other,81004,ICT Comms - Equipment Purchase,450100,23-Mar-15,1900168469,6968,JTRS Ltd,112925
WARRINGTON BOROUGH COUNCIL,http://opendatacommunities.org/id/unitary-authority/warrington ,FWB,Care Purchase - Learning Disability,54450,CP-LongStayExternal,441150,24-Mar-15,1900168687,6947,HWCGS Care Ltd,108619
WARRINGTON BOROUGH COUNCIL,http://opendatacommunities.org/id/unitary-authority/warrington ,FWB,Care Purchase Budget,54490,CP ExternalOther Exp,440800,26-Mar-15,1900169295,6936,W H Investments Ltd,111422
WARRINGTON BOROUGH COUNCIL,http://opendatacommunities.org/id/unitary-authority/warrington ,CYP,Childrens Other,81004,Specific Work,200200,03-Mar-15,1900166575,6928,SplusB Uk Ltd,114224
WARRINGTON BOROUGH COUNCIL,http://opendatacommunities.org/id/unitary-authority/warrington ,FWB,Care Purchase - Learning Disability,54450,CP-Domicil.External,440950,20-Mar-15,1900168206,6926,Autism Initiatives,104503
WARRINGTON BOROUGH COUNCIL,http://opendatacommunities.org/id/unitary-authority/warrington ,FWB,Care Purchase - Learning Disability,54450,CP-LongStayExternal,441150,17-Mar-15,1900167951,6920,Clervaux Trust Ltd,110288
WARRINGTON BOROUGH COUNCIL,http://opendatacommunities.org/id/unitary-authority/warrington ,FWB,Care Purchase - PD,54440,CP-Domicil.External,440950,23-Mar-15,1900168440,6859,Redline Business Ta Ashwood Care,113381
WARRINGTON BOROUGH COUNCIL,http://opendatacommunities.org/id/unitary-authority/warrington ,FWB,Care Purchase - Learning Disability,54450,Supporting People - External,441250,25-Mar-15,1900169247,6850,Alternative Futures Group,104468
WARRINGTON BOROUGH COUNCIL,http://opendatacommunities.org/id/unitary-authority/warrington ,CYP,Childrens Other,81004,ICT Comms - Equipment Purchase,450100,24-Mar-15,1900168539,6837,Arena Group Ltd,111535
WARRINGTON BOROUGH COUNCIL,http://opendatacommunities.org/id/unitary-authority/warrington ,FWB,Care Purchase - Learning Disability,54450,Supporting People - External,441250,27-Mar-15,1900169405,6787,Creative Support Ltd,100902
WARRINGTON BOROUGH COUNCIL,http://opendatacommunities.org/id/unitary-authority/warrington ,FWB,Care Purchase - ABI,54260,CP-Nursing Care-External,441200,17-Mar-15,1900167946,6780,Berkeley House,113955
WARRINGTON BOROUGH COUNCIL,http://opendatacommunities.org/id/unitary-authority/warrington ,HOL,Single Billing Holding Account,91130,Specific Work,200200,23-Mar-15,1900168410,6744,Manchester Working Limited,105646
WARRINGTON BOROUGH COUNCIL,http://opendatacommunities.org/id/unitary-authority/warrington ,HOL,Single Billing Holding Account,91130,Non BMP General Repairs,200050,23-Mar-15,1900168412,6708,Manchester Working Limited,105646
WARRINGTON BOROUGH COUNCIL,http://opendatacommunities.org/id/unitary-authority/warrington ,FWB,Equipment Store,54930,Gas,210050,04-Mar-15,1900166735,6694,Scottish Power Manweb,103031
WARRINGTON BOROUGH COUNCIL,http://opendatacommunities.org/id/unitary-authority/warrington ,FWB,Older Peoples South Team,54421,CP-Domicil.External,440950,18-Mar-15,1900167983,6689,Dh Homecare,101961
WARRINGTON BOROUGH COUNCIL,http://opendatacommunities.org/id/unitary-authority/warrington ,FWB,Care Purchase AMH,54135,CP-Domicil.External,440950,18-Mar-15,1900167969,6654,Next Stage A Way Forward Ltd,101217
WARRINGTON BOROUGH COUNCIL,http://opendatacommunities.org/id/unitary-authority/warrington ,FWB,Care Purchase - PD,54440,CP-LongStayExternal,441150,23-Mar-15,1900168288,6624,Cotebrook,104638
WARRINGTON BOROUGH COUNCIL,http://opendatacommunities.org/id/unitary-authority/warrington ,FWB,Care Purchase - Learning Disability,54450,CP-Nursing Care-External,441200,23-Mar-15,1900168307,6600,Health & Social Care Partnerships,107996
WARRINGTON BOROUGH COUNCIL,http://opendatacommunities.org/id/unitary-authority/warrington ,RSC,Business Improvement,20010,Consult.& Prof. Serv,440000,23-Mar-15,1900168437,6500,Overbury Plc,114278
WARRINGTON BOROUGH COUNCIL,http://opendatacommunities.org/id/unitary-authority/warrington ,FWB,Care Purchase - ABI,54260,CP-LongStayExternal,441150,25-Mar-15,1900168706,6467,Voyage Care,100099
WARRINGTON BOROUGH COUNCIL,http://opendatacommunities.org/id/unitary-authority/warrington ,RSC,Sports Development,51200,Payment of Grants,470050,23-Mar-15,1900168378,6450,University Academy Warrington,111431
WARRINGTON BOROUGH COUNCIL,http://opendatacommunities.org/id/unitary-authority/warrington ,FWB,Care Purchase - ABI,54260,CP-LongStayExternal,441150,25-Mar-15,1900168711,6428,Voyage Care,100099
WARRINGTON BOROUGH COUNCIL,http://opendatacommunities.org/id/unitary-authority/warrington ,FWB,Older Peoples North Team,54422,CP-Domicil.External,440950,18-Mar-15,1900167985,6416,Select Community Support Services,112799
WARRINGTON BOROUGH COUNCIL,http://opendatacommunities.org/id/unitary-authority/warrington ,FWB,Care Purchase - OP & OT West,54470,CP-Domicil.External,440950,06-Mar-15,1900167289,6408,Nightingales Homecare Services Agen,104972
WARRINGTON BOROUGH COUNCIL,http://opendatacommunities.org/id/unitary-authority/warrington ,FWB,Care Purchase - Learning Disability,54450,CP-Domicil.External,440950,27-Mar-15,1900169409,6397,Future Directions Community Interes,111498
WARRINGTON BOROUGH COUNCIL,http://opendatacommunities.org/id/unitary-authority/warrington ,FWB,Care Purchase AMH,54135,CP-LongStayExternal,441150,23-Mar-15,1900168395,6381,HWCGS Care Ltd,108619
WARRINGTON BOROUGH COUNCIL,http://opendatacommunities.org/id/unitary-authority/warrington ,FWB,Care Purchase AMH,54135,CP-LongStayExternal,441150,04-Mar-15,1900166657,6359,Church Walk Health Care Ltd,112505
WARRINGTON BOROUGH COUNCIL,http://opendatacommunities.org/id/unitary-authority/warrington ,FWB,Care Purchase AMH,54135,CP-Domicil.External,440950,18-Mar-15,1900168000,6352,Next Stage A Way Forward Ltd,101217
WARRINGTON BOROUGH COUNCIL,http://opendatacommunities.org/id/unitary-authority/warrington ,FWB,Older Peoples North Team,54422,CP-Domicil.External,440950,23-Mar-15,1900168440,6288,Redline Business Ta Ashwood Care,113381
WARRINGTON BOROUGH COUNCIL,http://opendatacommunities.org/id/unitary-authority/warrington ,FWB,Care Purchase - Learning Disability,54450,Supporting People - External,441250,25-Mar-15,1900169251,6287,Creative Support Ltd,100902
WARRINGTON BOROUGH COUNCIL,http://opendatacommunities.org/id/unitary-authority/warrington ,FWB,Older Peoples South Team,54421,CP-Domicil.External,440950,24-Mar-15,1900168645,6280,Alternative Futures Group,104468
WARRINGTON BOROUGH COUNCIL,http://opendatacommunities.org/id/unitary-authority/warrington ,FWB,Care Purchase - OP & OT Central,54420,CP-Domicil.External,440950,18-Mar-15,1900167983,6269,Dh Homecare,101961
WARRINGTON BOROUGH COUNCIL,http://opendatacommunities.org/id/unitary-authority/warrington ,FWB,Older Peoples North Team,54422,CP-Day Care-External,441100,31-Mar-15,1900169631,6201,CareConcepts (Appleton) Ltd,105804
WARRINGTON BOROUGH COUNCIL,http://opendatacommunities.org/id/unitary-authority/warrington ,FWB,Care Purchase - Learning Disability,54450,CP-Domicil.External,440950,12-Mar-15,1900167616,6190,Future Directions Community Interes,111498
WARRINGTON BOROUGH COUNCIL,http://opendatacommunities.org/id/unitary-authority/warrington ,FWB,Older Peoples North Team,54422,CP-Domicil.External,440950,25-Mar-15,1900169255,6072,Housing & Care 21,100060
WARRINGTON BOROUGH COUNCIL,http://opendatacommunities.org/id/unitary-authority/warrington ,FWB,Care Purchase - Learning Disability,54450,CP-Nursing Care-External,441200,23-Mar-15,1900168295,6000,Health & Social Care Partnerships,107996
WARRINGTON BOROUGH COUNCIL,http://opendatacommunities.org/id/unitary-authority/warrington ,ENP,Environment & Regeneration,82000,Specific Work,200200,27-Mar-15,1900169496,6000,Helena Partnerships,109566
WARRINGTON BOROUGH COUNCIL,http://opendatacommunities.org/id/unitary-authority/warrington ,FWB,Care Purchase Budget,54490,CP Free Nursing Care External,443500,31-Mar-15,1900169629,5988,CareConcepts (Appleton) Ltd,105804
WARRINGTON BOROUGH COUNCIL,http://opendatacommunities.org/id/unitary-authority/warrington ,FWB,Care Purchase Budget,54490,CP - Cont Care - External,441350,18-Mar-15,1900167967,5890,The Extracare Charitable Trust,100497
WARRINGTON BOROUGH COUNCIL,http://opendatacommunities.org/id/unitary-authority/warrington ,FWB,Care Purchase - PD,54440,CP-Domicil.External,440950,18-Mar-15,1900167985,5858,Select Community Support Services,112799
WARRINGTON BOROUGH COUNCIL,http://opendatacommunities.org/id/unitary-authority/warrington ,FWB,Care Purchase - OP & OT South,54480,CP-Domicil.External,440950,24-Mar-15,1900168665,5829,Mayfield Home Care Agency,104928
WARRINGTON BOROUGH COUNCIL,http://opendatacommunities.org/id/unitary-authority/warrington ,FWB,Older Peoples South Team,54421,CP-LongStayExternal,441150,25-Mar-15,1900168714,5800,Voyage Care,100099
WARRINGTON BOROUGH COUNCIL,http://opendatacommunities.org/id/unitary-authority/warrington ,FWB,Music Education Grant,32220,Events Costs,490000,18-Mar-15,1900168028,5750,Northern Chamber Orchestra,103752
WARRINGTON BOROUGH COUNCIL,http://opendatacommunities.org/id/unitary-authority/warrington ,FWB,Halton Music Grant - EXP,32219,Events Costs,490000,18-Mar-15,1900168028,5750,Northern Chamber Orchestra,103752
WARRINGTON BOROUGH COUNCIL,http://opendatacommunities.org/id/unitary-authority/warrington ,FWB,Care Purchase Budget,54490,Voids,515150,25-Mar-15,1900169247,5745,Alternative Futures Group,104468
WARRINGTON BOROUGH COUNCIL,http://opendatacommunities.org/id/unitary-authority/warrington ,FWB,Care Purchase - Learning Disability,54450,CP-Domicil.External,440950,20-Mar-15,1900168226,5685,Autism Initiatives,104503
WARRINGTON BOROUGH COUNCIL,http://opendatacommunities.org/id/unitary-authority/warrington ,FWB,Care Purchase - PD,54440,CP-Nursing Care-External,441200,25-Mar-15,1900168712,5680,Voyage Care,100099
WARRINGTON BOROUGH COUNCIL,http://opendatacommunities.org/id/unitary-authority/warrington ,FWB,Care Purchase - OP & OT South,54480,CP-Nursing Care-External,441200,03-Mar-15,1900166589,5635,Barchester Homes Westvale House,105246
WARRINGTON BOROUGH COUNCIL,http://opendatacommunities.org/id/unitary-authority/warrington ,FWB,Care Purchase ,54440,Supporting People - External,441250,24-Mar-15,1900168664,5613,Creative Support Ltd,100902
WARRINGTON BOROUGH COUNCIL,http://opendatacommunities.org/id/unitary-authority/warrington ,FWB,Care Purchase AMH,54135,CP-Domicil.External,440950,24-Mar-15,1900168638,5523,Alternative Futures Group,104468
WARRINGTON BOROUGH COUNCIL,http://opendatacommunities.org/id/unitary-authority/warrington ,FWB,Care Purchase - OP & OT South,54480,CP-Domicil.External,440950,23-Mar-15,1900168287,5520,Safehands Network Ltd,103226
WARRINGTON BOROUGH COUNCIL,http://opendatacommunities.org/id/unitary-authority/warrington ,FWB,Care Purchase AMH,54135,Supporting People - External,441250,27-Mar-15,1900169418,5453,Independent Living Alliance,100726
WARRINGTON BOROUGH COUNCIL,http://opendatacommunities.org/id/unitary-authority/warrington ,ENO,Housing Projects,82008,Disabled Persons Grant 1996,554000,11-Mar-15,1900167586,5366,Showering Solutions,105490
WARRINGTON BOROUGH COUNCIL,http://opendatacommunities.org/id/unitary-authority/warrington ,FWB,Care Purchase - OP & OT South,54480,CP-Nursing Care-External,441200,12-Mar-15,1900167623,5360,Bondcare St Andrews,109634
WARRINGTON BOROUGH COUNCIL,http://opendatacommunities.org/id/unitary-authority/warrington ,FWB,Older Peoples North Team,54422,CP-Domicil.External,440950,23-Mar-15,1900168287,5350,Safehands Network Ltd,103226
WARRINGTON BOROUGH COUNCIL,http://opendatacommunities.org/id/unitary-authority/warrington ,FWB,Care Purchase - Learning Disability,54450,CP-Domicil.External,440950,31-Mar-15,1900169624,5342,Macintyre Care,104907
WARRINGTON BOROUGH COUNCIL,http://opendatacommunities.org/id/unitary-authority/warrington ,ENO,Housing Projects,82008,Disabled Persons Grant 1996,554000,11-Mar-15,1900167484,5334,AMW Lift & Mobility Services Ltd,112766
WARRINGTON BOROUGH COUNCIL,http://opendatacommunities.org/id/unitary-authority/warrington ,FWB,Care Purchase AMH,54135,Supporting People - External,441250,27-Mar-15,1900169420,5329,Independent Living Alliance,100726
WARRINGTON BOROUGH COUNCIL,http://opendatacommunities.org/id/unitary-authority/warrington ,FWB,Care Purchase AMH,54135,CP-Domicil.External,440950,24-Mar-15,1900168644,5323,Alternative Futures Group,104468
WARRINGTON BOROUGH COUNCIL,http://opendatacommunities.org/id/unitary-authority/warrington ,FWB,CYPS - Rents & Charges,32422,Consult.& Prof. Serv,440000,02-Mar-15,1900166537,5235,Uniqwin UK,105210
WARRINGTON BOROUGH COUNCIL,http://opendatacommunities.org/id/unitary-authority/warrington ,FWB,Care Purchase AMH,54135,CP-Domicil.External,440950,31-Mar-15,1900169621,5230,SLC Raglin Ltd,111037
WARRINGTON BOROUGH COUNCIL,http://opendatacommunities.org/id/unitary-authority/warrington ,RSC,Head of Integrated Commissioning,53500,Transitional Beds,443800,11-Mar-15,1900167493,5220,HC-One Limited Callands,109640
WARRINGTON BOROUGH COUNCIL,http://opendatacommunities.org/id/unitary-authority/warrington ,RSC,Head of Integrated Commissioning,53500,Transitional Beds,443800,11-Mar-15,1900167496,5220,HC-One Limited Callands,109640
WARRINGTON BOROUGH COUNCIL,http://opendatacommunities.org/id/unitary-authority/warrington ,RSC,Head of Integrated Commissioning,53500,Transitional Beds,443800,11-Mar-15,1900167497,5220,HC-One Limited Callands,109640
WARRINGTON BOROUGH COUNCIL,http://opendatacommunities.org/id/unitary-authority/warrington ,RSC,Head of Integrated Commissioning,53500,Transitional Beds,443800,11-Mar-15,1900167492,5220,HC-One Limited Callands,109640
WARRINGTON BOROUGH COUNCIL,http://opendatacommunities.org/id/unitary-authority/warrington ,FWB,Care Purchase - Learning Disability,54450,CP-Domicil.External,440950,27-Mar-15,1900169399,5213,Carewatch North Cheshire,104573
WARRINGTON BOROUGH COUNCIL,http://opendatacommunities.org/id/unitary-authority/warrington ,FWB,Care Purchase - PD,54440,CP-LongStayExternal,441150,25-Mar-15,1900168715,5200,Voyage Care,100099
WARRINGTON BOROUGH COUNCIL,http://opendatacommunities.org/id/unitary-authority/warrington ,FWB,DSG Independent School Fees,32011,Independent School Fees,490200,09-Mar-15,1900167381,5186,Nugent Care,101082
WARRINGTON BOROUGH COUNCIL,http://opendatacommunities.org/id/unitary-authority/warrington ,FWB,Care Purchase - Learning Disability,54450,CP-Domicil.External,440950,04-Mar-15,1900166656,5152,Carewatch North Cheshire,104573
WARRINGTON BOROUGH COUNCIL,http://opendatacommunities.org/id/unitary-authority/warrington ,FWB,Older Peoples South Team,54421,CP-Domicil.External,440950,25-Mar-15,1900169255,5133,Housing & Care 21,100060
WARRINGTON BOROUGH COUNCIL,http://opendatacommunities.org/id/unitary-authority/warrington ,FWB,Care Purchase - Learning Disability,54450,CP-Day Care-External,441100,25-Mar-15,1900168707,5133,Icare Service Limited,110435
WARRINGTON BOROUGH COUNCIL,http://opendatacommunities.org/id/unitary-authority/warrington ,FWB,Care Purchase Budget,54490,CP - Cont Care - External,441350,31-Mar-15,1900169636,5132,Hope School,111653
WARRINGTON BOROUGH COUNCIL,http://opendatacommunities.org/id/unitary-authority/warrington ,FWB,Care Purchase -OP & OT East,54430,CP-LongStayExternal,441150,06-Mar-15,1900167301,5089,WCL - Warrington Community Living,105230
WARRINGTON BOROUGH COUNCIL,http://opendatacommunities.org/id/unitary-authority/warrington ,FWB,Care Purchase - Learning Disability,54450,CP-LongStayExternal,441150,23-Mar-15,1900168314,5076,Macintyre Care,104907
WARRINGTON BOROUGH COUNCIL,http://opendatacommunities.org/id/unitary-authority/warrington ,FWB,Older Peoples South Team,54421,CP-Domicil.External,440950,20-Mar-15,1900168173,5061,Allied Healthcare Group Ltd,100796
WARRINGTON BOROUGH COUNCIL,http://opendatacommunities.org/id/unitary-authority/warrington ,CYP,Primary,81001,Specific Work,200200,05-Mar-15,1900167196,5027,Creative Play UK Ltd,111392
WARRINGTON BOROUGH COUNCIL,http://opendatacommunities.org/id/unitary-authority/warrington ,FWB,Care Purchase AMH,54135,CP-Domicil.External,440950,24-Mar-15,1900168646,5025,Alternative Futures Group,104468
WARRINGTON BOROUGH COUNCIL,http://opendatacommunities.org/id/unitary-authority/warrington ,FWB,Care Purchase - Learning Disability,54450,CP Adult Placement,443450,24-Mar-15,1900168673,5021,Macintyre Care,104907
WARRINGTON BOROUGH COUNCIL,http://opendatacommunities.org/id/unitary-authority/warrington ,EE0,Finance Office Services,42110,Consult.& Prof. Serv,440000,02-Mar-15,1900166546,5000,Aecom Ltd,106088
WARRINGTON BOROUGH COUNCIL,http://opendatacommunities.org/id/unitary-authority/warrington ,FWB,Catalyst Choices,54495,Insurance Premium,443350,23-Mar-15,1900168463,5000,Aon Ltd,102117
WARRINGTON BOROUGH COUNCIL,http://opendatacommunities.org/id/unitary-authority/warrington ,COR,Fees & Subscriptions,60020,Subscriptions,470000,23-Mar-15,1900168450,5000,CIPFA,104607
WARRINGTON BOROUGH COUNCIL,http://opendatacommunities.org/id/unitary-authority/warrington ,COR,Fees & Subscriptions,60020,Subscriptions,470000,23-Mar-15,1900168453,5000,CIPFA Business Limited,103650
WARRINGTON BOROUGH COUNCIL,http://opendatacommunities.org/id/unitary-authority/warrington ,EE0,Urban Traffic Management Control,44370,Signal Management,531600,09-Mar-15,1900167369,5000,O2,101259
WARRINGTON BOROUGH COUNCIL,http://opendatacommunities.org/id/unitary-authority/warrington ,FWB,Care Purchase - ABI,54260,CP-Nursing Care-External,441200,18-Mar-15,1900167973,5000,St Marys Care Centre,101503
WARRINGTON BOROUGH COUNCIL,http://opendatacommunities.org/id/unitary-authority/warrington ,FWB,Neighbourhood Co-o East,51306,ICT Comms - Line Rental,450200,13-Mar-15,1900167713,4948,Virgin Media Business,106824
WARRINGTON BOROUGH COUNCIL,http://opendatacommunities.org/id/unitary-authority/warrington ,HOL,Insurance Fund,91100,Insurance Premium,443350,13-Mar-15,1900167660,4921,Standard Securities,105156
WARRINGTON BOROUGH COUNCIL,http://opendatacommunities.org/id/unitary-authority/warrington ,FWB,Care Purchase - PD,54440,CP-Nursing Care-External,441200,23-Mar-15,1900168398,4899,Leonard Cheshire Disability,100370
WARRINGTON BOROUGH COUNCIL,http://opendatacommunities.org/id/unitary-authority/warrington ,COR,Car Leasing Scheme - Salary Sacrifice,52126,Car Leasing Charges,350000,02-Mar-15,1900166539,4898,NHS Foundation Trust,110359
WARRINGTON BOROUGH COUNCIL,http://opendatacommunities.org/id/unitary-authority/warrington ,ENO,Housing Projects,82008,Disabled Persons Grant 1996,554000,11-Mar-15,1900167502,4867,Accessible Bathroom Solutions Ltd,109769
WARRINGTON BOROUGH COUNCIL,http://opendatacommunities.org/id/unitary-authority/warrington ,FWB,Care Purchase - OP & OT West,54470,CP-Domicil.External,440950,23-Mar-15,1900168287,4805,Safehands Network Ltd,103226
WARRINGTON BOROUGH COUNCIL,http://opendatacommunities.org/id/unitary-authority/warrington ,FWB,Care Purchase - Learning Disability,54450,CP-Nursing Care-External,441200,23-Mar-15,1900168282,4800,Health & Social Care Partnerships,107996
WARRINGTON BOROUGH COUNCIL,http://opendatacommunities.org/id/unitary-authority/warrington ,FWB,Care Purchase - Learning Disability,54450,CP-Nursing Care-External,441200,23-Mar-15,1900168286,4800,Health & Social Care Partnerships,107996
WARRINGTON BOROUGH COUNCIL,http://opendatacommunities.org/id/unitary-authority/warrington ,FWB,Care Purchase - Learning Disability,54450,CP-Nursing Care-External,441200,23-Mar-15,1900168299,4800,Health & Social Care Partnerships,107996
WARRINGTON BOROUGH COUNCIL,http://opendatacommunities.org/id/unitary-authority/warrington ,FWB,Care Purchase - Learning Disability,54450,CP-Nursing Care-External,441200,23-Mar-15,1900168303,4800,Health & Social Care Partnerships,107996
WARRINGTON BOROUGH COUNCIL,http://opendatacommunities.org/id/unitary-authority/warrington ,EE0,Urban Traffic Management Control,44370,Signal Management,531600,06-Mar-15,1900167308,4786,Bt Red Care,100411
WARRINGTON BOROUGH COUNCIL,http://opendatacommunities.org/id/unitary-authority/warrington ,HOL,Single Billing Holding Account,91130,Electricity,210000,06-Mar-15,1900167226,4752,Npower Electricity,101884
WARRINGTON BOROUGH COUNCIL,http://opendatacommunities.org/id/unitary-authority/warrington ,COR,Car Leasing Scheme - Salary Sacrifice,52126,Car Leasing Charges,350000,11-Mar-15,1900167544,4734,NHS Foundation Trust,110359
WARRINGTON BOROUGH COUNCIL,http://opendatacommunities.org/id/unitary-authority/warrington ,FWB,Care Purchase - Learning Disability,54450,CP-Domicil.External,440950,25-Mar-15,1900169251,4680,Creative Support Ltd,100902
WARRINGTON BOROUGH COUNCIL,http://opendatacommunities.org/id/unitary-authority/warrington ,FWB,Catalyst Choices,54495,Insurance Premium,443350,23-Mar-15,1900168462,4664,Aon Ltd,102117
WARRINGTON BOROUGH COUNCIL,http://opendatacommunities.org/id/unitary-authority/warrington ,CYP,Childrens Other,81004,Equipment Purchase & Contract,400000,11-Mar-15,1900167580,4656,Elite Digital Systems,114251
WARRINGTON BOROUGH COUNCIL,http://opendatacommunities.org/id/unitary-authority/warrington ,FWB,Care Purchase Budget,54490,CP - Cont Care - External,441350,31-Mar-15,1900169623,4605,Hope School,111653
WARRINGTON BOROUGH COUNCIL,http://opendatacommunities.org/id/unitary-authority/warrington ,FWB,Care Purchase - Learning Disability,54450,CP-Domicil.External,440950,27-Mar-15,1900169427,4601,M-Power Activity Services Ltd,102186
WARRINGTON BOROUGH COUNCIL,http://opendatacommunities.org/id/unitary-authority/warrington ,ENO,Housing Projects,82008,Disabled Persons Grant 1996,554000,18-Mar-15,1900168030,4596,R Hough & Co,102596
WARRINGTON BOROUGH COUNCIL,http://opendatacommunities.org/id/unitary-authority/warrington ,FWB,Care Purchase,54440,CP-LongStayExternal,441150,18-Mar-15,1900167982,4584,Scope,105109
WARRINGTON BOROUGH COUNCIL,http://opendatacommunities.org/id/unitary-authority/warrington ,FWB,Care Purchase - Learning Disability,54450,CP-Domicil.External,440950,27-Mar-15,1900169419,4538,Independent Living Alliance,100726
WARRINGTON BOROUGH COUNCIL,http://opendatacommunities.org/id/unitary-authority/warrington ,COR,Car Leasing Scheme - Salary Sacrifice,52126,Car Leasing Charges,350000,09-Mar-15,1900167316,4529,NHS Foundation Trust,110359
WARRINGTON BOROUGH COUNCIL,http://opendatacommunities.org/id/unitary-authority/warrington ,COR,Car Leasing Scheme - Salary Sacrifice,52126,Car Leasing Charges,350000,11-Mar-15,1900167539,4522,NHS Foundation Trust,110359
WARRINGTON BOROUGH COUNCIL,http://opendatacommunities.org/id/unitary-authority/warrington ,FWB,Art Project,32020,Sponsorship,710400,30-Mar-15,1900169526,4500,REDACTED PERSONAL DATA,113603
WARRINGTON BOROUGH COUNCIL,http://opendatacommunities.org/id/unitary-authority/warrington ,FWB,Music Education Grant,32220,Events Costs,490000,02-Mar-15,1900166531,4500,Score Creative Education,102343
WARRINGTON BOROUGH COUNCIL,http://opendatacommunities.org/id/unitary-authority/warrington ,CYP,Childrens Other,81004,Furniture & Fittings,400150,02-Mar-15,1900166535,4500,Trinity Facilities Management LTD,105614
WARRINGTON BOROUGH COUNCIL,http://opendatacommunities.org/id/unitary-authority/warrington ,FWB,Care Purchase - Learning Disability,54450,CP-LongStayExternal,441150,20-Mar-15,1900168188,4496,Autism Initiatives,104503
WARRINGTON BOROUGH COUNCIL,http://opendatacommunities.org/id/unitary-authority/warrington ,FWB,Care Purchase - PD,54440,CP-Domicil.External,440950,31-Mar-15,1900169651,4488,Community Integrated Care (Cic),100171
WARRINGTON BOROUGH COUNCIL,http://opendatacommunities.org/id/unitary-authority/warrington ,ENO,Housing Projects,82008,Disabled Persons Grant 1996,554000,18-Mar-15,1900168046,4486,ThyssenKrupp Encasa Ltd,105382
WARRINGTON BOROUGH COUNCIL,http://opendatacommunities.org/id/unitary-authority/warrington ,CYP,Primary,81001,ICT Comms - Equipment Purchase,450100,12-Mar-15,1900167637,4453,Pc World Currys Warrington,100216
WARRINGTON BOROUGH COUNCIL,http://opendatacommunities.org/id/unitary-authority/warrington ,COR,Car Leasing Scheme - Salary Sacrifice,52126,Car Leasing Charges,350000,11-Mar-15,1900167542,4428,NHS Foundation Trust,110359
WARRINGTON BOROUGH COUNCIL,http://opendatacommunities.org/id/unitary-authority/warrington ,FWB,Care Purchase Budget,54490,CP ExternalOther Exp,440800,06-Mar-15,1900167293,4404,Old Rectory Private Nursing Home,104990
WARRINGTON BOROUGH COUNCIL,http://opendatacommunities.org/id/unitary-authority/warrington ,FWB,Care Purchase - Learning Disability,54450,CP-LongStayExternal,441150,25-Mar-15,1900168702,4379,Icare Service Limited,110435
WARRINGTON BOROUGH COUNCIL,http://opendatacommunities.org/id/unitary-authority/warrington ,FWB,Care Purchase Budget,54490,CP ExternalOther Exp,440800,06-Mar-15,1900167292,4375,Four Seasons ta St Oswalds Care Hom,109422
WARRINGTON BOROUGH COUNCIL,http://opendatacommunities.org/id/unitary-authority/warrington ,ENO,Housing Projects,82008,Disabled Persons Grant 1996,554000,25-Mar-15,1900169196,4356,Domestic Services And Installations,105462
WARRINGTON BOROUGH COUNCIL,http://opendatacommunities.org/id/unitary-authority/warrington ,FWB,Care Purchase - Learning Disability,54450,CP-Domicil.External,440950,20-Mar-15,1900168215,4316,Autism Initiatives,104503
WARRINGTON BOROUGH COUNCIL,http://opendatacommunities.org/id/unitary-authority/warrington ,RSC,Coroners Service,11100,Reimbursement for Deputy Coroner,440400,04-Mar-15,1900166743,4316,REDACTED PERSONAL DATA,111176
WARRINGTON BOROUGH COUNCIL,http://opendatacommunities.org/id/unitary-authority/warrington ,FWB,Older Peoples South Team,54421,CP-Day Care-External,441100,31-Mar-15,1900169631,4287,CareConcepts (Appleton) Ltd,105804
WARRINGTON BOROUGH COUNCIL,http://opendatacommunities.org/id/unitary-authority/warrington ,COR,Car Leasing Scheme - Salary Sacrifice,52126,Car Leasing Charges,350000,11-Mar-15,1900167538,4286,NHS Foundation Trust,110359
WARRINGTON BOROUGH COUNCIL,http://opendatacommunities.org/id/unitary-authority/warrington ,ENO,Housing Projects,82008,Disabled Persons Grant 1996,554000,27-Mar-15,1900169433,4283,ThyssenKrupp Encasa Ltd,105382
WARRINGTON BOROUGH COUNCIL,http://opendatacommunities.org/id/unitary-authority/warrington ,COR,Car Leasing Scheme - Salary Sacrifice,52126,Car Leasing Charges,350000,02-Mar-15,1900166544,4264,NHS Foundation Trust,110359
WARRINGTON BOROUGH COUNCIL,http://opendatacommunities.org/id/unitary-authority/warrington ,FWB,Care Purchase - PD,54440,CP-Domicil.External,440950,03-Mar-15,1900166590,4258,Allied Healthcare Group Ltd,100796
WARRINGTON BOROUGH COUNCIL,http://opendatacommunities.org/id/unitary-authority/warrington ,FWB,Care Purchase - PD,54440,CP-Domicil.External,440950,27-Mar-15,1900169395,4258,Allied Healthcare Group Ltd,100796
WARRINGTON BOROUGH COUNCIL,http://opendatacommunities.org/id/unitary-authority/warrington ,COR,Car Leasing Scheme - Salary Sacrifice,52126,Car Leasing Charges,350000,09-Mar-15,1900167317,4246,NHS Foundation Trust,110359
WARRINGTON BOROUGH COUNCIL,http://opendatacommunities.org/id/unitary-authority/warrington ,EE0,Development Control,43430,Planning Appl. Fees,721400,20-Mar-15,1900168239,4235,Morris Homes North Limited,114274
WARRINGTON BOROUGH COUNCIL,http://opendatacommunities.org/id/unitary-authority/warrington ,FWB,Care Purchase - Learning Disability,54450,CP-Nursing Care-External,441200,23-Mar-15,1900168275,4200,Health & Social Care Partnerships,107996
WARRINGTON BOROUGH COUNCIL,http://opendatacommunities.org/id/unitary-authority/warrington ,FWB,Care Purchase - Learning Disability,54450,CP-LongStayExternal,441150,23-Mar-15,1900168315,4200,Health & Social Care Partnerships,107996
WARRINGTON BOROUGH COUNCIL,http://opendatacommunities.org/id/unitary-authority/warrington ,FWB,Care Purchase - Learning Disability,54450,CP-Nursing Care-External,441200,23-Mar-15,1900168291,4200,Health & Social Care Partnerships,107996
WARRINGTON BOROUGH COUNCIL,http://opendatacommunities.org/id/unitary-authority/warrington ,FWB,Care Purchase - Learning Disability,54450,CP-Nursing Care-External,441200,23-Mar-15,1900168311,4200,Health & Social Care Partnerships,107996
WARRINGTON BOROUGH COUNCIL,http://opendatacommunities.org/id/unitary-authority/warrington ,ENO,Housing Projects,82008,Disabled Persons Grant 1996,554000,18-Mar-15,1900168044,4146,ThyssenKrupp Encasa Ltd,105382
WARRINGTON BOROUGH COUNCIL,http://opendatacommunities.org/id/unitary-authority/warrington ,FWB,Care Purchase - PD,54440,CP-Nursing Care-External,441200,18-Mar-15,1900167981,4136,Abbey Lawns Care Home Ltd,101816
WARRINGTON BOROUGH COUNCIL,http://opendatacommunities.org/id/unitary-authority/warrington ,FWB,Care Purchase Budget,54490,CP ExternalOther Exp,440800,26-Mar-15,1900169285,4089,St Marys Care Centre,101503
WARRINGTON BOROUGH COUNCIL,http://opendatacommunities.org/id/unitary-authority/warrington ,FWB,DSG Independent School Fees,32011,Independent School Fees,490200,09-Mar-15,1900167376,4083,Thomasson Memorial School,112297
WARRINGTON BOROUGH COUNCIL,http://opendatacommunities.org/id/unitary-authority/warrington ,CYP,Primary,81001,Specific Work,200200,12-Mar-15,1900167638,4078,ThyssenKrupp Encasa Ltd,105382
WARRINGTON BOROUGH COUNCIL,http://opendatacommunities.org/id/unitary-authority/warrington ,FWB,Older Peoples South Team,54421,CP-LongStayExternal,441150,31-Mar-15,1900169627,4064,Ashley House Residential Home,103045
WARRINGTON BOROUGH COUNCIL,http://opendatacommunities.org/id/unitary-authority/warrington ,EE0,Urban Traffic Management Control,44370,Signal Management,531600,09-Mar-15,1900167377,4062,O2,101259
WARRINGTON BOROUGH COUNCIL,http://opendatacommunities.org/id/unitary-authority/warrington ,ENO,Housing Projects,82008,Disabled Persons Grant 1996,554000,18-Mar-15,1900168034,4036,Stannah Lift Services,101099
WARRINGTON BOROUGH COUNCIL,http://opendatacommunities.org/id/unitary-authority/warrington ,FWB,Care Purchase AMH,54135,CP-Domicil.External,440950,31-Mar-15,1900169643,4023,Next Stage A Way Forward Ltd,101217
WARRINGTON BOROUGH COUNCIL,http://opendatacommunities.org/id/unitary-authority/warrington ,EE0,Urban Traffic Management Control,44370,Signal Management,531600,09-Mar-15,1900167367,4022,O2,101259
WARRINGTON BOROUGH COUNCIL,http://opendatacommunities.org/id/unitary-authority/warrington ,FWB,Care Purchase - OP & OT South,54480,CP-Domicil.External,440950,25-Mar-15,1900169255,4015,Housing & Care 21,100060
WARRINGTON BOROUGH COUNCIL,http://opendatacommunities.org/id/unitary-authority/warrington ,FWB,Care Purchase - Learning Disability,54450,CP-Day Care-External,441100,25-Mar-15,1900168699,4010,Icare Service Limited,110435
WARRINGTON BOROUGH COUNCIL,http://opendatacommunities.org/id/unitary-authority/warrington ,FWB,Virtual School,32311,Materials,400500,05-Mar-15,1900167171,4000,Baltimore Consulting Ltd,113735
WARRINGTON BOROUGH COUNCIL,http://opendatacommunities.org/id/unitary-authority/warrington ,FWB,Care Purchase AMH,54135,CP-Domicil.External,440950,04-Mar-15,1900166677,4000,East Cheshire Housing Consortium,110170
WARRINGTON BOROUGH COUNCIL,http://opendatacommunities.org/id/unitary-authority/warrington ,FWB,Care Purchase AMH,54135,CP-Domicil.External,440950,03-Mar-15,1900166578,4000,East Cheshire Housing Consortium,110170
WARRINGTON BOROUGH COUNCIL,http://opendatacommunities.org/id/unitary-authority/warrington ,FWB,Care Purchase AMH,54135,CP-Domicil.External,440950,24-Mar-15,1900168654,4000,East Cheshire Housing Consortium,110170
WARRINGTON BOROUGH COUNCIL,http://opendatacommunities.org/id/unitary-authority/warrington ,FWB,Care Purchase AMH,54135,CP-Domicil.External,440950,24-Mar-15,1900168656,4000,East Cheshire Housing Consortium,110170
WARRINGTON BOROUGH COUNCIL,http://opendatacommunities.org/id/unitary-authority/warrington ,FWB,International Links,32132,Consult.& Prof. Serv,440000,13-Mar-15,1900167697,4000,REDACTED PERSONAL DATA,114126
WARRINGTON BOROUGH COUNCIL,http://opendatacommunities.org/id/unitary-authority/warrington ,FWB,DSG Independent School Fees,32011,Independent School Fees,490200,09-Mar-15,1900167361,3992,Cedar House School,111289
WARRINGTON BOROUGH COUNCIL,http://opendatacommunities.org/id/unitary-authority/warrington ,FWB,DSG Independent School Fees,32011,Independent School Fees,490200,09-Mar-15,1900167360,3992,Cedar House School,111289
WARRINGTON BOROUGH COUNCIL,http://opendatacommunities.org/id/unitary-authority/warrington ,FWB,Care Purchase -OP & OT East,54430,CP-Nursing Care-External,441200,03-Mar-15,1900166589,3966,Barchester Homes Westvale House,105246
WARRINGTON BOROUGH COUNCIL,http://opendatacommunities.org/id/unitary-authority/warrington ,ENO,Housing Projects,82008,Disabled Persons Grant 1996,554000,24-Mar-15,1900168616,3916,M&Acare,112918
WARRINGTON BOROUGH COUNCIL,http://opendatacommunities.org/id/unitary-authority/warrington ,FWB,Care Purchase - OP & OT Central,54420,CP-Nursing Care-External,441200,03-Mar-15,1900166589,3896,Barchester Homes Westvale House,105246
WARRINGTON BOROUGH COUNCIL,http://opendatacommunities.org/id/unitary-authority/warrington ,COR,Car Leasing Scheme - Salary Sacrifice,52126,Car Leasing Charges,350000,09-Mar-15,1900167319,3859,NHS Foundation Trust,110359
WARRINGTON BOROUGH COUNCIL,http://opendatacommunities.org/id/unitary-authority/warrington ,FWB,CIN Team 1,31001,Agency Supply - GF,180000,19-Mar-15,1900168055,3850,Hamptons Resourcing,112852
WARRINGTON BOROUGH COUNCIL,http://opendatacommunities.org/id/unitary-authority/warrington ,ENO,Housing Projects,82008,Disabled Persons Grant 1996,554000,24-Mar-15,1900168620,3846,R Hough & Co,102596
WARRINGTON BOROUGH COUNCIL,http://opendatacommunities.org/id/unitary-authority/warrington ,FWB,Care Purchase Budget,54490,CP - Cont Care - External,441350,31-Mar-15,1900169647,3816,Hope School,111653
WARRINGTON BOROUGH COUNCIL,http://opendatacommunities.org/id/unitary-authority/warrington ,FWB,Adoption Team,31107,Consult.& Prof. Serv,440000,26-Mar-15,1900169307,3812,Hamptons Resourcing,112852
WARRINGTON BOROUGH COUNCIL,http://opendatacommunities.org/id/unitary-authority/warrington ,FWB,Care Purchase - PD,54440,CP-Domicil.External,440950,18-Mar-15,1900167983,3807,Dh Homecare,101961
WARRINGTON BOROUGH COUNCIL,http://opendatacommunities.org/id/unitary-authority/warrington ,CYP,Childrens Other,81004,ICT Comms - Equipment Purchase,450100,05-Mar-15,1900167167,3792,Abtec Computer Solutions Ltd,107132
WARRINGTON BOROUGH COUNCIL,http://opendatacommunities.org/id/unitary-authority/warrington ,CYP,Childrens Other,81004,Specific Work,200200,05-Mar-15,1900167196,3723,Creative Play UK Ltd,111392
WARRINGTON BOROUGH COUNCIL,http://opendatacommunities.org/id/unitary-authority/warrington ,COR,Car Leasing Scheme - Salary Sacrifice,52126,Car Leasing Charges,350000,09-Mar-15,1900167314,3706,NHS Foundation Trust,110359
WARRINGTON BOROUGH COUNCIL,http://opendatacommunities.org/id/unitary-authority/warrington ,FWB,Older Peoples South Team,54421,CP-Domicil.External,440950,18-Mar-15,1900167972,3654,St Monica Trust,104021
WARRINGTON BOROUGH COUNCIL,http://opendatacommunities.org/id/unitary-authority/warrington ,FWB,Care Purchase - Learning Disability,54450,CP-Day Care-External,441100,20-Mar-15,1900168171,3651,Autism Initiatives,104503
WARRINGTON BOROUGH COUNCIL,http://opendatacommunities.org/id/unitary-authority/warrington ,FWB,Care Purchase - Learning Disability,54450,CP-Domicil.External,440950,24-Mar-15,1900168688,3643,Macintyre Care,104907
WARRINGTON BOROUGH COUNCIL,http://opendatacommunities.org/id/unitary-authority/warrington ,CYP,Primary,81001,ICT Comms - Equipment Purchase,450100,16-Mar-15,1900167746,3612,Novus Networks,114215
WARRINGTON BOROUGH COUNCIL,http://opendatacommunities.org/id/unitary-authority/warrington ,FWB,Care Purchase - Learning Disability,54450,CP-LongStayExternal,441150,23-Mar-15,1900168409,3606,Manor Care Centre,103831
WARRINGTON BOROUGH COUNCIL,http://opendatacommunities.org/id/unitary-authority/warrington ,FWB,Older Peoples South Team,54421,CP-Nursing Care-External,441200,18-Mar-15,1900168015,3600,Cherry Hinton Care Home,112195
WARRINGTON BOROUGH COUNCIL,http://opendatacommunities.org/id/unitary-authority/warrington ,FWB,Care Purchase - Learning Disability,54450,CP-Nursing Care-External,441200,23-Mar-15,1900168290,3588,Stocks Hall Care Homes Ltd,102512
WARRINGTON BOROUGH COUNCIL,http://opendatacommunities.org/id/unitary-authority/warrington ,ENO,Housing Projects,82008,Disabled Facilities Safe & Secure Grants,554300,13-Mar-15,1900167663,3580,The Excellent Ramp System,100407
WARRINGTON BOROUGH COUNCIL,http://opendatacommunities.org/id/unitary-authority/warrington ,RSC,One - Off ICT Costs,23200,Computer Software - Purchase,450800,18-Mar-15,1900167990,3566,Service Point Uk,105117
WARRINGTON BOROUGH COUNCIL,http://opendatacommunities.org/id/unitary-authority/warrington ,FWB,Care Purchase - Learning Disability,54450,CP-Domicil.External,440950,24-Mar-15,1900168682,3551,Icare Service Limited,110435
WARRINGTON BOROUGH COUNCIL,http://opendatacommunities.org/id/unitary-authority/warrington ,FWB,Care Purchase - Learning Disability,54450,CP-LongStayExternal,441150,23-Mar-15,1900168288,3549,Cotebrook,104638
WARRINGTON BOROUGH COUNCIL,http://opendatacommunities.org/id/unitary-authority/warrington ,HOL,Single Billing Holding Account,91130,Electricity,210000,23-Mar-15,1900168382,3536,Npower Electricity,101884
WARRINGTON BOROUGH COUNCIL,http://opendatacommunities.org/id/unitary-authority/warrington ,COR,Car Leasing Scheme - Salary Sacrifice,52126,Car Leasing Charges,350000,31-Mar-15,1900169689,3527,NHS Foundation Trust,110359
WARRINGTON BOROUGH COUNCIL,http://opendatacommunities.org/id/unitary-authority/warrington ,ENO,Housing Projects,82008,Disabled Persons Grant 1996,554000,24-Mar-15,1900168553,3500,Reilly Brothers Builders,111223
WARRINGTON BOROUGH COUNCIL,http://opendatacommunities.org/id/unitary-authority/warrington ,FWB,Care Purchase - Learning Disability,54450,CP-Domicil.External,440950,25-Mar-15,1900168707,3480,Icare Service Limited,110435
WARRINGTON BOROUGH COUNCIL,http://opendatacommunities.org/id/unitary-authority/warrington ,FWB,Foster Allowances,31106,Car Leasing Charges,350000,17-Mar-15,1900167881,3478,Lex Autolease Ltd,103319
WARRINGTON BOROUGH COUNCIL,http://opendatacommunities.org/id/unitary-authority/warrington ,ENO,Housing Projects,82008,Disabled Persons Grant 1996,554000,03-Mar-15,1900166582,3471,M&Acare,112918
WARRINGTON BOROUGH COUNCIL,http://opendatacommunities.org/id/unitary-authority/warrington ,COR,Car Leasing Scheme - Salary Sacrifice,52126,Car Leasing Charges,350000,11-Mar-15,1900167541,3470,NHS Foundation Trust,110359
WARRINGTON BOROUGH COUNCIL,http://opendatacommunities.org/id/unitary-authority/warrington ,ENO,Housing Projects,82008,Disabled Persons Grant 1996,554000,03-Mar-15,1900166565,3461,AMW Lift & Mobility Services Ltd,112766
WARRINGTON BOROUGH COUNCIL,http://opendatacommunities.org/id/unitary-authority/warrington ,FWB,Contracts - OM HPHL Team,55940,Public Health Contract Payments,540000,25-Mar-15,1900169235,3454,Terrence Higgins Trust,113887
WARRINGTON BOROUGH COUNCIL,http://opendatacommunities.org/id/unitary-authority/warrington ,FWB,Contracts - OM HPHL Team,55940,Public Health Contract Payments,540000,25-Mar-15,1900169228,3454,Terrence Higgins Trust,113887
WARRINGTON BOROUGH COUNCIL,http://opendatacommunities.org/id/unitary-authority/warrington ,FWB,Care Purchase -OP & OT East,54430,CP-LongStayExternal,441150,17-Mar-15,1900167956,3400,Orchard Care Homes,102524
WARRINGTON BOROUGH COUNCIL,http://opendatacommunities.org/id/unitary-authority/warrington ,FWB,Care Purchase - OP & OT South,54480,CP-Domicil.External,440950,20-Mar-15,1900168173,3378,Allied Healthcare Group Ltd,100796
WARRINGTON BOROUGH COUNCIL,http://opendatacommunities.org/id/unitary-authority/warrington ,ENO,Housing Projects,82008,Disabled Persons Grant 1996,554000,25-Mar-15,1900169198,3376,Total Hygiene Ltd,105424
WARRINGTON BOROUGH COUNCIL,http://opendatacommunities.org/id/unitary-authority/warrington ,ENO,Housing Projects,82008,Disabled Persons Grant 1996,554000,24-Mar-15,1900168615,3370,M&Acare,112918
WARRINGTON BOROUGH COUNCIL,http://opendatacommunities.org/id/unitary-authority/warrington ,RSC,Coroners Service,11100,Post Mortem Fees-Rep,440250,19-Mar-15,1900168135,3343,Dr Debdeep Dey,106869
WARRINGTON BOROUGH COUNCIL,http://opendatacommunities.org/id/unitary-authority/warrington ,FWB,Care Purchase - Learning Disability,54450,CP-Domicil.External,440950,23-Mar-15,1900168319,3325,Progress Adult Services Ltd,101817
WARRINGTON BOROUGH COUNCIL,http://opendatacommunities.org/id/unitary-authority/warrington ,RSC,Head of Integrated Commissioning,53500,Transitional Beds,443800,11-Mar-15,1900167495,3314,HC-One Limited Callands,109640
WARRINGTON BOROUGH COUNCIL,http://opendatacommunities.org/id/unitary-authority/warrington ,ENO,Housing Projects,82008,Disabled Persons Grant 1996,554000,25-Mar-15,1900169199,3297,Reilly Brothers Builders,111223
WARRINGTON BOROUGH COUNCIL,http://opendatacommunities.org/id/unitary-authority/warrington ,CYP,Childrens Other,81004,Equipment Purchase & Contract,400000,11-Mar-15,1900167612,3276,G & S Smirthwaite Ltd,100185
WARRINGTON BOROUGH COUNCIL,http://opendatacommunities.org/id/unitary-authority/warrington ,FWB,Care Purchase ,54440,CP-Domicil.External,440950,24-Mar-15,1900168668,3270,Creative Support Ltd,100902
WARRINGTON BOROUGH COUNCIL,http://opendatacommunities.org/id/unitary-authority/warrington ,FWB,Child Disability,32212,CP-Domicil.External,440950,11-Mar-15,1900167606,3252,M-Power Activity Services Ltd,102186
WARRINGTON BOROUGH COUNCIL,http://opendatacommunities.org/id/unitary-authority/warrington ,ENO,Housing Projects,82008,Disabled Persons Grant 1996,554000,03-Mar-15,1900166568,3236,AMW Lift & Mobility Services Ltd,112766
WARRINGTON BOROUGH COUNCIL,http://opendatacommunities.org/id/unitary-authority/warrington ,FWB,Catalyst Choices,54495,Consult.& Prof. Serv,440000,25-Mar-15,1900169270,3231,REDACTED PERSONAL DATA,102249
WARRINGTON BOROUGH COUNCIL,http://opendatacommunities.org/id/unitary-authority/warrington ,COR,Car Leasing Scheme - Salary Sacrifice,52126,Car Leasing Charges,350000,09-Mar-15,1900167318,3212,NHS Foundation Trust,110359
WARRINGTON BOROUGH COUNCIL,http://opendatacommunities.org/id/unitary-authority/warrington ,COR,Car Leasing Scheme - Salary Sacrifice,52126,Car Leasing Charges,350000,31-Mar-15,1900169687,3209,NHS Foundation Trust,110359
WARRINGTON BOROUGH COUNCIL,http://opendatacommunities.org/id/unitary-authority/warrington ,ENO,Housing Projects,82008,Disabled Persons Grant 1996,554000,03-Mar-15,1900166580,3205,Frontis Homes,101685
WARRINGTON BOROUGH COUNCIL,http://opendatacommunities.org/id/unitary-authority/warrington ,FWB,M.C.A / Complaints,54650,Agency Supply - GF,180000,11-Mar-15,1900167488,3200,Baltimore Consulting Ltd,113735
WARRINGTON BOROUGH COUNCIL,http://opendatacommunities.org/id/unitary-authority/warrington ,FWB,Child Disability,32212,CP-Domicil.External,440950,11-Mar-15,1900167607,3199,M-Power Activity Services Ltd,102186
WARRINGTON BOROUGH COUNCIL,http://opendatacommunities.org/id/unitary-authority/warrington ,COR,Concessionary Travel,60000,Support Costs,505100,12-Mar-15,1900167635,3193,Cheshire West And Chester,103357
WARRINGTON BOROUGH COUNCIL,http://opendatacommunities.org/id/unitary-authority/warrington ,FWB,Care Purchase Budget,54490,Voids,515150,06-Mar-15,1900167301,3192,WCL - Warrington Community Living,105230
WARRINGTON BOROUGH COUNCIL,http://opendatacommunities.org/id/unitary-authority/warrington ,COR,Car Leasing Scheme - Salary Sacrifice,52126,Car Leasing Charges,350000,11-Mar-15,1900167543,3180,NHS Foundation Trust,110359
WARRINGTON BOROUGH COUNCIL,http://opendatacommunities.org/id/unitary-authority/warrington ,FWB,Care Purchase Budget,54490,CP Free Nursing Care External,443500,25-Mar-15,1900169238,3162,WCL - Warrington Community Living,105230
WARRINGTON BOROUGH COUNCIL,http://opendatacommunities.org/id/unitary-authority/warrington ,ENP,Environment & Regeneration,82000,Consult.& Prof. Serv,440000,03-Mar-15,1900166588,3150,Lambert Smith Hampton,100591
WARRINGTON BOROUGH COUNCIL,http://opendatacommunities.org/id/unitary-authority/warrington ,FWB,Care Purchase AMH,54135,CP-Domicil.External,440950,24-Mar-15,1900168648,3140,Alternative Futures Group,104468
WARRINGTON BOROUGH COUNCIL,http://opendatacommunities.org/id/unitary-authority/warrington ,FWB,Care Purchase AMH,54135,CP-Domicil.External,440950,24-Mar-15,1900168634,3140,Alternative Futures Group,104468
WARRINGTON BOROUGH COUNCIL,http://opendatacommunities.org/id/unitary-authority/warrington ,FWB,Care Purchase AMH,54135,CP-Domicil.External,440950,24-Mar-15,1900168632,3140,Alternative Futures Group,104468
WARRINGTON BOROUGH COUNCIL,http://opendatacommunities.org/id/unitary-authority/warrington ,FWB,Care Purchase AMH,54135,CP-Domicil.External,440950,24-Mar-15,1900168642,3140,Alternative Futures Group,104468
WARRINGTON BOROUGH COUNCIL,http://opendatacommunities.org/id/unitary-authority/warrington ,COR,Car Leasing Scheme - Salary Sacrifice,52126,Car Leasing Charges,350000,09-Mar-15,1900167315,3127,NHS Foundation Trust,110359
WARRINGTON BOROUGH COUNCIL,http://opendatacommunities.org/id/unitary-authority/warrington ,RSC,Coroners Service,11100,Post Mortem Fees-Rep,440250,19-Mar-15,1900168127,3127,Dr Suboda M Weerasinghe,105924
WARRINGTON BOROUGH COUNCIL,http://opendatacommunities.org/id/unitary-authority/warrington ,FWB,Older Peoples South Team,54421,CP-Domicil.External,440950,31-Mar-15,1900169622,3126,Allied Healthcare Group Ltd,100796
WARRINGTON BOROUGH COUNCIL,http://opendatacommunities.org/id/unitary-authority/warrington ,FWB,Child Disability,32212,CP-Domicil.External,440950,11-Mar-15,1900167599,3120,M-Power Activity Services Ltd,102186
WARRINGTON BOROUGH COUNCIL,http://opendatacommunities.org/id/unitary-authority/warrington ,FWB,Care Purchase - OP & OT South,54480,CP-Domicil.External,440950,23-Mar-15,1900168440,3119,Redline Business Ta Ashwood Care,113381
WARRINGTON BOROUGH COUNCIL,http://opendatacommunities.org/id/unitary-authority/warrington ,FWB,Care Purchase Budget,54490,Voids,515150,25-Mar-15,1900169238,3112,WCL - Warrington Community Living,105230
WARRINGTON BOROUGH COUNCIL,http://opendatacommunities.org/id/unitary-authority/warrington ,FWB,Care Purchase Budget,54490,CP ExternalOther Exp,440800,31-Mar-15,1900169662,3085,Cls Care Services Ltd,104615
WARRINGTON BOROUGH COUNCIL,http://opendatacommunities.org/id/unitary-authority/warrington ,FWB,Care Purchase -OP & OT East,54430,CP-LongStayExternal,441150,17-Mar-15,1900167959,3080,Abbeydale Residential Home,104446
WARRINGTON BOROUGH COUNCIL,http://opendatacommunities.org/id/unitary-authority/warrington ,FWB,Older Peoples North Team,54422,CP-Domicil.External,440950,24-Mar-15,1900168665,3070,Mayfield Home Care Agency,104928
WARRINGTON BOROUGH COUNCIL,http://opendatacommunities.org/id/unitary-authority/warrington ,FWB,Care Purchase Budget,54490,Voids,515150,24-Mar-15,1900168667,3031,Creative Support Ltd,100902
WARRINGTON BOROUGH COUNCIL,http://opendatacommunities.org/id/unitary-authority/warrington ,RSC,Council Tax & Recovery,10320,Court Costs,460100,10-Mar-15,1900167412,3024,Hmcs North Cheshire Collections,102261
WARRINGTON BOROUGH COUNCIL,http://opendatacommunities.org/id/unitary-authority/warrington ,FWB,Care Purchase - OP & OT West,54470,CP-Nursing Care-External,441200,04-Mar-15,1900166615,3024,The Turner Home,102163
WARRINGTON BOROUGH COUNCIL,http://opendatacommunities.org/id/unitary-authority/warrington ,FWB,Older Peoples North Team,54422,CP-Nursing Care-External,441200,27-Mar-15,1900169456,3024,The Turner Home,102163
WARRINGTON BOROUGH COUNCIL,http://opendatacommunities.org/id/unitary-authority/warrington ,FWB,Care Purchase - ABI,54260,CP-LongStayExternal,441150,23-Mar-15,1900168288,3008,Cotebrook,104638
WARRINGTON BOROUGH COUNCIL,http://opendatacommunities.org/id/unitary-authority/warrington ,FWB,Care Purchase - Learning Disability,54450,CP-Domicil.External,440950,04-Mar-15,1900166618,3002,Premier Care Cheshire Ltd,105142
WARRINGTON BOROUGH COUNCIL,http://opendatacommunities.org/id/unitary-authority/warrington ,ENO,Housing Projects,82008,Disabled Persons Grant 1996,554000,24-Mar-15,1900168657,3000,Acorn Building Projects Ltd,105557
WARRINGTON BOROUGH COUNCIL,http://opendatacommunities.org/id/unitary-authority/warrington ,FWB,Local Safeguarding Children Board,31201,Travelling Allowance,330000,05-Mar-15,1900167218,3000,Improvement & Development Agency,104811
WARRINGTON BOROUGH COUNCIL,http://opendatacommunities.org/id/unitary-authority/warrington ,FWB,Music Education Grant,32220,Consult.& Prof. Serv,440000,09-Mar-15,1900167345,3000,Score Creative Education,102343
WARRINGTON BOROUGH COUNCIL,http://opendatacommunities.org/id/unitary-authority/warrington ,COR,General Contingencies,61000,Sundries,410600,17-Mar-15,1900167871,3000,University Of Chester,104599
WARRINGTON BOROUGH COUNCIL,http://opendatacommunities.org/id/unitary-authority/warrington ,ENO,Housing Projects,82008,Disabled Persons Grant 1996,554000,03-Mar-15,1900166583,2990,Total Plumbing Solutions,102587
WARRINGTON BOROUGH COUNCIL,http://opendatacommunities.org/id/unitary-authority/warrington ,FWB,Care Purchase - Learning Disability,54450,Supporting People - External,441250,27-Mar-15,1900169402,2961,Creative Support Ltd,100902
WARRINGTON BOROUGH COUNCIL,http://opendatacommunities.org/id/unitary-authority/warrington ,ENO,Housing Projects,82008,Disabled Persons Grant 1996,554000,25-Mar-15,1900169200,2956,Acorn Building Projects Ltd,105557
WARRINGTON BOROUGH COUNCIL,http://opendatacommunities.org/id/unitary-authority/warrington ,FWB,Care Purchase - Learning Disability,54450,CP-Day Care-External,441100,20-Mar-15,1900168202,2931,Autism Initiatives,104503
WARRINGTON BOROUGH COUNCIL,http://opendatacommunities.org/id/unitary-authority/warrington ,FWB,Care Purchase - Learning Disability,54450,CP-Day Care-External,441100,20-Mar-15,1900168212,2931,Autism Initiatives,104503
WARRINGTON BOROUGH COUNCIL,http://opendatacommunities.org/id/unitary-authority/warrington ,COR,Car Leasing Scheme - Salary Sacrifice,52126,Car Leasing Charges,350000,11-Mar-15,1900167536,2913,NHS Foundation Trust,110359
WARRINGTON BOROUGH COUNCIL,http://opendatacommunities.org/id/unitary-authority/warrington ,COR,Car Leasing Scheme - Salary Sacrifice,52126,Car Leasing Charges,350000,11-Mar-15,1900167546,2909,NHS Foundation Trust,110359
WARRINGTON BOROUGH COUNCIL,http://opendatacommunities.org/id/unitary-authority/warrington ,CYP,Childrens Other,81004,ICT Comms - Equipment Purchase,450100,11-Mar-15,1900167577,2900,Bentham Ltd,114250
WARRINGTON BOROUGH COUNCIL,http://opendatacommunities.org/id/unitary-authority/warrington ,CYP,Childrens Other,81004,Specific Work,200200,10-Mar-15,1900167403,2900,Mike Hall Building Svs Schools Only,114222
WARRINGTON BOROUGH COUNCIL,http://opendatacommunities.org/id/unitary-authority/warrington ,FWB,Child Disability,32212,CP-Domicil.External,440950,11-Mar-15,1900167605,2882,M-Power Activity Services Ltd,102186
WARRINGTON BOROUGH COUNCIL,http://opendatacommunities.org/id/unitary-authority/warrington ,FWB,Care Purchase - Learning Disability,54450,CP-LongStayExternal,441150,23-Mar-15,1900168301,2880,Thornton Manor,107806
WARRINGTON BOROUGH COUNCIL,http://opendatacommunities.org/id/unitary-authority/warrington ,FWB,Contracts - OM HPHL Team,55940,Public Health Contribution Payments,540010,25-Mar-15,1900168746,2875,2 Co Ltd,101952
WARRINGTON BOROUGH COUNCIL,http://opendatacommunities.org/id/unitary-authority/warrington ,FWB,Care Purchase - OP & OT South,54480,CP-Domicil.External,440950,18-Mar-15,1900167985,2873,Select Community Support Services,112799
WARRINGTON BOROUGH COUNCIL,http://opendatacommunities.org/id/unitary-authority/warrington ,ENO,Housing Projects,82008,Disabled Persons Grant 1996,554000,03-Mar-15,1900166567,2851,Frontis Homes,101685
WARRINGTON BOROUGH COUNCIL,http://opendatacommunities.org/id/unitary-authority/warrington ,FWB,Care Purchase - PD,54440,CP-Domicil.External,440950,20-Mar-15,1900168173,2851,Allied Healthcare Group Ltd,100796
WARRINGTON BOROUGH COUNCIL,http://opendatacommunities.org/id/unitary-authority/warrington ,CYP,Childrens Other,81004,ICT Comms - Equipment Purchase,450100,11-Mar-15,1900167486,2829,Edac Solutions North West,100899
WARRINGTON BOROUGH COUNCIL,http://opendatacommunities.org/id/unitary-authority/warrington ,FWB,Care Purchase - Learning Disability,54450,CP-Domicil.External,440950,17-Mar-15,1900167944,2814,The Ormerod Home Trust Ltd,104998
WARRINGTON BOROUGH COUNCIL,http://opendatacommunities.org/id/unitary-authority/warrington ,FWB,Care Purchase - Learning Disability,54450,CP-Domicil.External,440950,26-Mar-15,1900169292,2814,The Ormerod Home Trust Ltd,104998
WARRINGTON BOROUGH COUNCIL,http://opendatacommunities.org/id/unitary-authority/warrington ,FWB,Care Purchase - Learning Disability,54450,CP-Domicil.External,440950,27-Mar-15,1900169484,2804,Premier Care Cheshire Ltd,105142
WARRINGTON BOROUGH COUNCIL,http://opendatacommunities.org/id/unitary-authority/warrington ,RSC,ICT Networks,23400,ICT Comms - Line Rental,450200,27-Mar-15,1900169446,2803,Vodafone Corporate Ltd,105222
WARRINGTON BOROUGH COUNCIL,http://opendatacommunities.org/id/unitary-authority/warrington ,FWB,Care Purchase - PD,54440,CP-Domicil.External,440950,27-Mar-15,1900169396,2803,Medico Nursing and Homecare,105063
WARRINGTON BOROUGH COUNCIL,http://opendatacommunities.org/id/unitary-authority/warrington ,RSC,ICT Centralised Budget,23100,Computer Software - Maintenance,450850,27-Mar-15,1900169474,2800,Management Computer Systems Ltd,104915
WARRINGTON BOROUGH COUNCIL,http://opendatacommunities.org/id/unitary-authority/warrington ,COR,Car Leasing Scheme - Salary Sacrifice,52126,Car Leasing Charges,350000,24-Mar-15,1900168551,2786,NHS Foundation Trust,110359
WARRINGTON BOROUGH COUNCIL,http://opendatacommunities.org/id/unitary-authority/warrington ,FWB,Care Purchase AMH,54135,CP-Domicil.External,440950,27-Mar-15,1900169426,2782,Independent Living Alliance,100726
WARRINGTON BOROUGH COUNCIL,http://opendatacommunities.org/id/unitary-authority/warrington ,FWB,Care Purchase - PD,54440,CP-Nursing Care-External,441200,23-Mar-15,1900168397,2780,Leonard Cheshire Disability,100370
WARRINGTON BOROUGH COUNCIL,http://opendatacommunities.org/id/unitary-authority/warrington ,FWB,Care Purchase - PD,54440,CP-Domicil.External,440950,24-Mar-15,1900168665,2775,Mayfield Home Care Agency,104928
WARRINGTON BOROUGH COUNCIL,http://opendatacommunities.org/id/unitary-authority/warrington ,COR,Car Leasing Scheme - Salary Sacrifice,52126,Car Leasing Charges,350000,02-Mar-15,1900166542,2759,NHS Foundation Trust,110359
WARRINGTON BOROUGH COUNCIL,http://opendatacommunities.org/id/unitary-authority/warrington ,FWB,Catalyst Choices,54495,Consultancy & Professional Curriculum,440100,23-Mar-15,1900168454,2750,Stepping out Business Development,111490
WARRINGTON BOROUGH COUNCIL,http://opendatacommunities.org/id/unitary-authority/warrington ,CYP,Childrens Other,81004,Furniture & Fittings,400150,11-Mar-15,1900167597,2748,Jcm Seating Solutions,104828
WARRINGTON BOROUGH COUNCIL,http://opendatacommunities.org/id/unitary-authority/warrington ,FWB,Adoption Team,31107,Consult.& Prof. Serv,440000,18-Mar-15,1900168023,2722,Hamptons Resourcing,112852
WARRINGTON BOROUGH COUNCIL,http://opendatacommunities.org/id/unitary-authority/warrington ,FWB,Adoption Team,31107,Consult.& Prof. Serv,440000,10-Mar-15,1900167454,2722,Hamptons Resourcing,112852
WARRINGTON BOROUGH COUNCIL,http://opendatacommunities.org/id/unitary-authority/warrington ,FWB,Adoption Team,31107,Consult.& Prof. Serv,440000,26-Mar-15,1900169326,2722,Hamptons Resourcing,112852
WARRINGTON BOROUGH COUNCIL,http://opendatacommunities.org/id/unitary-authority/warrington ,FWB,Adoption Team,31107,Consult.& Prof. Serv,440000,05-Mar-15,1900167217,2722,Hamptons Resourcing,112852
WARRINGTON BOROUGH COUNCIL,http://opendatacommunities.org/id/unitary-authority/warrington ,FWB,SCM St Thomas Primary School,33123,Response Maintenance,200000,25-Mar-15,1900168729,2722,Hoult Group Services,111129
WARRINGTON BOROUGH COUNCIL,http://opendatacommunities.org/id/unitary-authority/warrington ,COR,Car Leasing Scheme - Salary Sacrifice,52126,Car Leasing Charges,350000,17-Mar-15,1900167886,2653,NHS Foundation Trust,110359
WARRINGTON BOROUGH COUNCIL,http://opendatacommunities.org/id/unitary-authority/warrington ,ENO,Housing Projects,82008,Disabled Persons Grant 1996,554000,24-Mar-15,1900168594,2629,Frontis Homes Ltd Your Response,114095
WARRINGTON BOROUGH COUNCIL,http://opendatacommunities.org/id/unitary-authority/warrington ,FWB,Care Purchase - OP & OT West,54470,CP-Nursing Care-External,441200,04-Mar-15,1900166614,2628,The Turner Home,102163
WARRINGTON BOROUGH COUNCIL,http://opendatacommunities.org/id/unitary-authority/warrington ,FWB,Older Peoples North Team,54422,CP-Nursing Care-External,441200,27-Mar-15,1900169457,2628,The Turner Home,102163
WARRINGTON BOROUGH COUNCIL,http://opendatacommunities.org/id/unitary-authority/warrington ,CYP,Childrens & Young People,81000,Consult.& Prof. Serv,440000,31-Mar-15,1900169642,2624,Ian Farmer Associates Ltd,107525
WARRINGTON BOROUGH COUNCIL,http://opendatacommunities.org/id/unitary-authority/warrington ,FWB,Care Purchase - Learning Disability,54450,CP-Domicil.External,440950,23-Mar-15,1900168294,2622,Wirral Autistic Society,105251
WARRINGTON BOROUGH COUNCIL,http://opendatacommunities.org/id/unitary-authority/warrington ,FWB,Care Purchase - OP & OT Central,54420,CP-Domicil.External,440950,23-Mar-15,1900168287,2615,Safehands Network Ltd,103226
WARRINGTON BOROUGH COUNCIL,http://opendatacommunities.org/id/unitary-authority/warrington ,FWB,Older Peoples North Team,54422,CP-LongStayExternal,441150,20-Mar-15,1900168269,2600,Chase House Limited,110786
WARRINGTON BOROUGH COUNCIL,http://opendatacommunities.org/id/unitary-authority/warrington ,FWB,Older Peoples North Team,54422,CP-LongStayExternal,441150,25-Mar-15,1900168709,2580,Potens Ltd TA Heath Lodge,102481
WARRINGTON BOROUGH COUNCIL,http://opendatacommunities.org/id/unitary-authority/warrington ,FWB,Care Purchase -OP & OT East,54430,CP-Nursing Care-External,441200,04-Mar-15,1900166616,2580,The Turner Home,102163
WARRINGTON BOROUGH COUNCIL,http://opendatacommunities.org/id/unitary-authority/warrington ,FWB,Care Purchase -OP & OT East,54430,CP-Nursing Care-External,441200,27-Mar-15,1900169459,2580,The Turner Home,102163
WARRINGTON BOROUGH COUNCIL,http://opendatacommunities.org/id/unitary-authority/warrington ,FWB,Care Purchase - Learning Disability,54450,CP-Nursing Care-External,441200,17-Mar-15,1900167949,2576,Chadderton Total-Care Unit Ltd,100425
WARRINGTON BOROUGH COUNCIL,http://opendatacommunities.org/id/unitary-authority/warrington ,ENO,Housing Projects,82008,Disabled Persons Grant 1996,554000,03-Mar-15,1900166569,2569,AMW Lift & Mobility Services Ltd,112766
WARRINGTON BOROUGH COUNCIL,http://opendatacommunities.org/id/unitary-authority/warrington ,ENO,Housing Projects,82008,Disabled Persons Grant 1996,554000,11-Mar-15,1900167498,2567,Acorn Building Projects Ltd,105557
WARRINGTON BOROUGH COUNCIL,http://opendatacommunities.org/id/unitary-authority/warrington ,FWB,Care Purchase - OP & OT West,54470,CP-LongStayExternal,441150,04-Mar-15,1900166613,2544,The Turner Home,102163
WARRINGTON BOROUGH COUNCIL,http://opendatacommunities.org/id/unitary-authority/warrington ,FWB,Older Peoples North Team,54422,CP-LongStayExternal,441150,27-Mar-15,1900169453,2544,The Turner Home,102163
WARRINGTON BOROUGH COUNCIL,http://opendatacommunities.org/id/unitary-authority/warrington ,FWB,Ross Close,31102,Car Leasing Charges,350000,26-Mar-15,1900169333,2543,Lex Autolease Ltd,103319
WARRINGTON BOROUGH COUNCIL,http://opendatacommunities.org/id/unitary-authority/warrington ,FWB,Child Disability,32212,CP-Domicil.External,440950,24-Mar-15,1900168574,2532,Carewatch North Cheshire,104573
WARRINGTON BOROUGH COUNCIL,http://opendatacommunities.org/id/unitary-authority/warrington ,FWB,Care Purchase Budget,54490,CP - Cont Care - External,441350,24-Mar-15,1900168665,2526,Mayfield Home Care Agency,104928
WARRINGTON BOROUGH COUNCIL,http://opendatacommunities.org/id/unitary-authority/warrington ,FWB,Care Purchase - PD,54440,CP-Domicil.External,440950,23-Mar-15,1900168393,2524,Homelife Leeds Ltd,101794
WARRINGTON BOROUGH COUNCIL,http://opendatacommunities.org/id/unitary-authority/warrington ,CYP,Childrens Other,81004,ICT Comms - Equipment Purchase,450100,11-Mar-15,1900167566,2520,PW Comms UK Ltd,109961
WARRINGTON BOROUGH COUNCIL,http://opendatacommunities.org/id/unitary-authority/warrington ,FWB,Care Purchase AMH,54135,CP-Domicil.External,440950,31-Mar-15,1900169654,2506,Community Integrated Care (Cic),100171
WARRINGTON BOROUGH COUNCIL,http://opendatacommunities.org/id/unitary-authority/warrington ,FWB,Care Purchase - PD,54440,CP-LongStayExternal,441150,06-Mar-15,1900167296,2502,Spinal Unit Action Group,110574
WARRINGTON BOROUGH COUNCIL,http://opendatacommunities.org/id/unitary-authority/warrington ,FWB,Adoption Team,31107,Consult.& Prof. Serv,440000,10-Mar-15,1900167420,2500,Baltimore Consulting Ltd,113735
WARRINGTON BOROUGH COUNCIL,http://opendatacommunities.org/id/unitary-authority/warrington ,FWB,Adoption Team,31107,Consult.& Prof. Serv,440000,18-Mar-15,1900167987,2500,Baltimore Consulting Ltd,113735
WARRINGTON BOROUGH COUNCIL,http://opendatacommunities.org/id/unitary-authority/warrington ,FWB,Adoption Team,31107,Consult.& Prof. Serv,440000,25-Mar-15,1900168721,2500,Baltimore Consulting Ltd,113735
WARRINGTON BOROUGH COUNCIL,http://opendatacommunities.org/id/unitary-authority/warrington ,FWB,Post-16 SEN,32309,Materials,400500,30-Mar-15,1900169530,2494,Macintyre Care,104907
WARRINGTON BOROUGH COUNCIL,http://opendatacommunities.org/id/unitary-authority/warrington ,ENO,Housing Projects,82008,Disabled Persons Grant 1996,554000,10-Mar-15,1900167437,2489,Frontis Homes,101685
WARRINGTON BOROUGH COUNCIL,http://opendatacommunities.org/id/unitary-authority/warrington ,FWB,Child Disability,32212,CP-Domicil.External,440950,11-Mar-15,1900167503,2484,Carewatch North Cheshire,104573
WARRINGTON BOROUGH COUNCIL,http://opendatacommunities.org/id/unitary-authority/warrington ,FWB,Care Purchase AMH,54135,CP-LongStayExternal,441150,17-Mar-15,1900167958,2480,Phoenix House,100085
WARRINGTON BOROUGH COUNCIL,http://opendatacommunities.org/id/unitary-authority/warrington ,ENO,Housing Projects,82008,Disabled Persons Grant 1996,554000,18-Mar-15,1900167992,2479,Acorn Building Projects Ltd,105557
WARRINGTON BOROUGH COUNCIL,http://opendatacommunities.org/id/unitary-authority/warrington ,CYP,Primary,81001,ICT Comms - Equipment Purchase,450100,11-Mar-15,1900167594,2475,GBM Digital Technologies Ltd,110909
WARRINGTON BOROUGH COUNCIL,http://opendatacommunities.org/id/unitary-authority/warrington ,FWB,Care Purchase AMH,54135,Supporting People - External,441250,27-Mar-15,1900169425,2470,Independent Living Alliance,100726
WARRINGTON BOROUGH COUNCIL,http://opendatacommunities.org/id/unitary-authority/warrington ,COR,Car Leasing Scheme - Salary Sacrifice,52126,Car Leasing Charges,350000,11-Mar-15,1900167540,2462,NHS Foundation Trust,110359
WARRINGTON BOROUGH COUNCIL,http://opendatacommunities.org/id/unitary-authority/warrington ,FWB,Care Purchase Budget,54490,CP ExternalOther Exp,440800,24-Mar-15,1900168635,2459,GNR Care Limited,114127
WARRINGTON BOROUGH COUNCIL,http://opendatacommunities.org/id/unitary-authority/warrington ,FWB,Care Purchase - Learning Disability,54450,CP-Domicil.External,440950,25-Mar-15,1900168699,2453,Icare Service Limited,110435
WARRINGTON BOROUGH COUNCIL,http://opendatacommunities.org/id/unitary-authority/warrington ,FWB,Care Purchase AMH,54135,CP-Domicil.External,440950,27-Mar-15,1900169484,2453,Premier Care Cheshire Ltd,105142
WARRINGTON BOROUGH COUNCIL,http://opendatacommunities.org/id/unitary-authority/warrington ,EE0,Markets,43711,Resaleables,400600,10-Mar-15,1900167406,2448,National Express Ltd,104957
WARRINGTON BOROUGH COUNCIL,http://opendatacommunities.org/id/unitary-authority/warrington ,FWB,Care Purchase - Learning Disability,54450,CP-Nursing Care-External,441200,23-Mar-15,1900168322,2445,Thornton Manor,107806
WARRINGTON BOROUGH COUNCIL,http://opendatacommunities.org/id/unitary-authority/warrington ,FWB,Care Purchase Budget,54490,CP ExternalOther Exp,440800,27-Mar-15,1900169417,2427,Keate House Residential Home,104849
WARRINGTON BOROUGH COUNCIL,http://opendatacommunities.org/id/unitary-authority/warrington ,ENO,Highways Other,82005,Consult.& Prof. Serv,440000,31-Mar-15,1900169665,10615,Urban Roots Planning Limited,113015
WARRINGTON BOROUGH COUNCIL,http://opendatacommunities.org/id/unitary-authority/warrington ,FWB,Care Purchase - Learning Disability,54450,CP-LongStayExternal,441150,25-Mar-15,1900168716,10471,Pendleton Care Limited,101213
WARRINGTON BOROUGH COUNCIL,http://opendatacommunities.org/id/unitary-authority/warrington ,FWB,Care Purchase Budget,54490,CP ExternalOther Exp,440800,06-Mar-15,1900167286,10397,Leyton Healthcare,102517
WARRINGTON BOROUGH COUNCIL,http://opendatacommunities.org/id/unitary-authority/warrington ,FWB,Care Purchase Budget,54490,CP - Cont Care - External,441350,23-Mar-15,1900168387,10356,Craegmoor Oxen Barn Priory,112933
WARRINGTON BOROUGH COUNCIL,http://opendatacommunities.org/id/unitary-authority/warrington ,FWB,CYPS - Rents & Charges,32422,Specific Work,200200,20-Mar-15,1900168249,10338,Livewire,110692
WARRINGTON BOROUGH COUNCIL,http://opendatacommunities.org/id/unitary-authority/warrington ,FWB,Care Purchase AMH,54135,CP-Domicil.External,440950,27-Mar-15,1900169418,10257,Independent Living Alliance,100726
WARRINGTON BOROUGH COUNCIL,http://opendatacommunities.org/id/unitary-authority/warrington ,ENO,Highways Other,82005,Consult.& Prof. Serv,440000,02-Mar-15,1900166502,10238,Mott Macdonald Ltd,104950
WARRINGTON BOROUGH COUNCIL,http://opendatacommunities.org/id/unitary-authority/warrington ,FWB,Care Purchase Budget,54490,CP ExternalOther Exp,440800,31-Mar-15,1900169639,10217,WCL - Warrington Community Living,105230
WARRINGTON BOROUGH COUNCIL,http://opendatacommunities.org/id/unitary-authority/warrington ,FWB,Care Purchase - OP & OT South,54480,CP-LongStayExternal,441150,31-Mar-15,1900169629,10180,CareConcepts (Appleton) Ltd,105804
WARRINGTON BOROUGH COUNCIL,http://opendatacommunities.org/id/unitary-authority/warrington ,RSC,Head of Integrated Commissioning,53500,Transitional Beds,443800,27-Mar-15,1900169428,10166,W H Investments Ltd,111422
WARRINGTON BOROUGH COUNCIL,http://opendatacommunities.org/id/unitary-authority/warrington ,ENO,Housing Projects,82008,Disabled Persons Grant 1996,554000,03-Mar-15,1900166585,10136,Pollock Lifts,113504
WARRINGTON BOROUGH COUNCIL,http://opendatacommunities.org/id/unitary-authority/warrington ,CYP,Childrens Other,81004,ICT Comms - Equipment Purchase,450100,24-Mar-15,1900168578,10098,CDEC Limited,109195
WARRINGTON BOROUGH COUNCIL,http://opendatacommunities.org/id/unitary-authority/warrington ,FWB,Care Purchase - Learning Disability,54450,CP-Nursing Care-External,441200,18-Mar-15,1900167965,10016,The David Lewis Centre,104879
WARRINGTON BOROUGH COUNCIL,http://opendatacommunities.org/id/unitary-authority/warrington ,ENO,Housing Projects,82008,Disabled Persons Grant 1996,554000,24-Mar-15,1900168596,10000,Gt Builders,104761
WARRINGTON BOROUGH COUNCIL,http://opendatacommunities.org/id/unitary-authority/warrington ,CYP,Primary,81001,Specific Work,200200,11-Mar-15,1900167571,9965,Cheshire Interiors,110664
WARRINGTON BOROUGH COUNCIL,http://opendatacommunities.org/id/unitary-authority/warrington ,RSC,Sports Development,51200,Payment of Grants,470050,23-Mar-15,1900168428,9938,Warrington Wolves Foundation,101508
WARRINGTON BOROUGH COUNCIL,http://opendatacommunities.org/id/unitary-authority/warrington ,ENO,Housing Projects,82008,Disabled Persons Grant 1996,554000,24-Mar-15,1900168589,9769,Acorn Building Projects Ltd,105557
WARRINGTON BOROUGH COUNCIL,http://opendatacommunities.org/id/unitary-authority/warrington ,FWB,Care Purchase - PD,54440,CP-Domicil.External,440950,25-Mar-15,1900169255,9752,Housing & Care 21,100060
WARRINGTON BOROUGH COUNCIL,http://opendatacommunities.org/id/unitary-authority/warrington ,FWB,Care Purchase -OP & OT East,54430,CP-Domicil.External,440950,04-Mar-15,1900166656,9750,Carewatch North Cheshire,104573
WARRINGTON BOROUGH COUNCIL,http://opendatacommunities.org/id/unitary-authority/warrington ,FWB,Care Purchase - Learning Disability,54450,CP-Domicil.External,440950,18-Mar-15,1900167979,9534,Zeno Limited,111080
WARRINGTON BOROUGH COUNCIL,http://opendatacommunities.org/id/unitary-authority/warrington ,EE0,Public Conveniences,43510,Rent Of Premises,220000,20-Mar-15,1900168198,9522,Jcdecaux Uk Ltd,104827
WARRINGTON BOROUGH COUNCIL,http://opendatacommunities.org/id/unitary-authority/warrington ,EE0,Public Conveniences,43510,Rent Of Premises,220000,20-Mar-15,1900168200,9522,Jcdecaux Uk Ltd,104827
WARRINGTON BOROUGH COUNCIL,http://opendatacommunities.org/id/unitary-authority/warrington ,FWB,Older Peoples South Team,54421,CP-Domicil.External,440950,23-Mar-15,1900168287,9454,Safehands Network Ltd,103226
WARRINGTON BOROUGH COUNCIL,http://opendatacommunities.org/id/unitary-authority/warrington ,FWB,Care Purchase - Learning Disability,54450,CP-LongStayExternal,441150,18-Mar-15,1900167986,9448,The David Lewis Centre,104879
WARRINGTON BOROUGH COUNCIL,http://opendatacommunities.org/id/unitary-authority/warrington ,FWB,Adoption Team,31107,Consult.& Prof. Serv,440000,26-Mar-15,1900169305,9400,Baltimore Consulting Ltd,113735
WARRINGTON BOROUGH COUNCIL,http://opendatacommunities.org/id/unitary-authority/warrington ,FWB,Care Purchase - OP & OT West,54470,CP-Domicil.External,440950,25-Mar-15,1900169255,9398,Housing & Care 21,100060
WARRINGTON BOROUGH COUNCIL,http://opendatacommunities.org/id/unitary-authority/warrington ,FWB,SLA - Grant Account,53920,Payment of Grants,470050,23-Mar-15,1900168431,9250,Alzheimers Society,106508
WARRINGTON BOROUGH COUNCIL,http://opendatacommunities.org/id/unitary-authority/warrington ,FWB,Care Purchase - Learning Disability,54450,CP-Nursing Care-External,441200,23-Mar-15,1900168280,9240,Health & Social Care Partnerships,107996
WARRINGTON BOROUGH COUNCIL,http://opendatacommunities.org/id/unitary-authority/warrington ,FWB,Care Purchase - Learning Disability,54450,CP-LongStayExternal,441150,25-Mar-15,1900168701,9207,Icare Service Limited,110435
WARRINGTON BOROUGH COUNCIL,http://opendatacommunities.org/id/unitary-authority/warrington ,FWB,Care Purchase - OP & OT West,54470,CP-Domicil.External,440950,23-Mar-15,1900168440,9125,Redline Business Ta Ashwood Care,113381
WARRINGTON BOROUGH COUNCIL,http://opendatacommunities.org/id/unitary-authority/warrington ,FWB,Care Purchase - Learning Disability,54450,CP-LongStayExternal,441150,25-Mar-15,1900168700,9091,Icare Service Limited,110435
WARRINGTON BOROUGH COUNCIL,http://opendatacommunities.org/id/unitary-authority/warrington ,FWB,Care Purchase - OP & OT South,54480,CP-Domicil.External,440950,06-Mar-15,1900167289,9063,Nightingales Homecare Services Agen,104972
WARRINGTON BOROUGH COUNCIL,http://opendatacommunities.org/id/unitary-authority/warrington ,FWB,Care Purchase - OP & OT West,54470,CP-Domicil.External,440950,24-Mar-15,1900168665,8986,Mayfield Home Care Agency,104928
WARRINGTON BOROUGH COUNCIL,http://opendatacommunities.org/id/unitary-authority/warrington ,FWB,Older Peoples South Team,54421,CP-LongStayExternal,441150,23-Mar-15,1900168313,8832,Cotebrook,104638
WARRINGTON BOROUGH COUNCIL,http://opendatacommunities.org/id/unitary-authority/warrington ,FWB,DSG SF Dev Fund,32001,Subscriptions,470000,11-Mar-15,1900167535,8800,New Media Learning,114242
WARRINGTON BOROUGH COUNCIL,http://opendatacommunities.org/id/unitary-authority/warrington ,FWB,Care Purchase Budget,54490,Voids,515150,31-Mar-15,1900169631,8700,CareConcepts (Appleton) Ltd,105804
WARRINGTON BOROUGH COUNCIL,http://opendatacommunities.org/id/unitary-authority/warrington ,RSC,Schools & Libraries Internet Project,23030,ICT Comms - Line Rental,450200,13-Mar-15,1900167713,8561,Virgin Media Business,106824
WARRINGTON BOROUGH COUNCIL,http://opendatacommunities.org/id/unitary-authority/warrington ,RSC,Schools & Libraries Internet Project,23030,ICT Comms - Line Rental,450200,13-Mar-15,1900167713,8561,Virgin Media Business,106824
WARRINGTON BOROUGH COUNCIL,http://opendatacommunities.org/id/unitary-authority/warrington ,FWB,Care Purchase - Learning Disability,54450,CP-LongStayExternal,441150,27-Mar-15,1900169400,8464,Community Care Matters Limited,102791
WARRINGTON BOROUGH COUNCIL,http://opendatacommunities.org/id/unitary-authority/warrington ,FWB,DSG Independent School Fees,32011,Independent School Fees,490200,09-Mar-15,1900167380,8459,Nugent Care,101082
WARRINGTON BOROUGH COUNCIL,http://opendatacommunities.org/id/unitary-authority/warrington ,FWB,Care Purchase - OP & OT West,54470,CP-Domicil.External,440950,23-Mar-15,1900168274,8433,Cherish UK Limited,113736
WARRINGTON BOROUGH COUNCIL,http://opendatacommunities.org/id/unitary-authority/warrington ,FWB,Care Purchase - OP & OT Central,54420,CP-Domicil.External,440950,06-Mar-15,1900167289,8431,Nightingales Homecare Services Agen,104972
WARRINGTON BOROUGH COUNCIL,http://opendatacommunities.org/id/unitary-authority/warrington ,FWB,Care Purchase - Learning Disability,54450,CP-LongStayExternal,441150,25-Mar-15,1900168710,8418,Voyage Care,100099
WARRINGTON BOROUGH COUNCIL,http://opendatacommunities.org/id/unitary-authority/warrington ,FWB,Care Purchase Budget,54490,CP ExternalOther Exp,440800,31-Mar-15,1900169628,8392,Bupa Care Homes,104572
WARRINGTON BOROUGH COUNCIL,http://opendatacommunities.org/id/unitary-authority/warrington ,FWB,Care Purchase - Learning Disability,54450,CP-LongStayExternal,441150,25-Mar-15,1900168703,8371,Icare Service Limited,110435
WARRINGTON BOROUGH COUNCIL,http://opendatacommunities.org/id/unitary-authority/warrington ,HOL,Single Billing Holding Account,91130,Non BMP General Repairs,200050,23-Mar-15,1900168418,8277,Manchester Working Limited,105646
WARRINGTON BOROUGH COUNCIL,http://opendatacommunities.org/id/unitary-authority/warrington ,CYP,Childrens Other,81004,Furniture & Fittings,400150,25-Mar-15,1900169264,8194,BookSpace for Schools,100984
WARRINGTON BOROUGH COUNCIL,http://opendatacommunities.org/id/unitary-authority/warrington ,FWB,Care Purchase - OP & OT South,54480,CP-Domicil.External,440950,18-Mar-15,1900167983,8131,Dh Homecare,101961
WARRINGTON BOROUGH COUNCIL,http://opendatacommunities.org/id/unitary-authority/warrington ,RSC,Healthwatch,56150,Consult.& Prof. Serv,440000,30-Mar-15,1900169608,8117,Carers Federation Limited,112653
WARRINGTON BOROUGH COUNCIL,http://opendatacommunities.org/id/unitary-authority/warrington ,ENO,Housing Projects,82008,Disabled Persons Grant 1996,554000,23-Mar-15,1900168523,8110,Pollock Lifts,113504
WARRINGTON BOROUGH COUNCIL,http://opendatacommunities.org/id/unitary-authority/warrington ,RSC,ICT Networks,23400,ICT Comms - Line Rental,450200,13-Mar-15,1900167710,8108,Virgin Media Business,106824
WARRINGTON BOROUGH COUNCIL,http://opendatacommunities.org/id/unitary-authority/warrington ,FWB,Care Purchase - Learning Disability,54450,Supporting People - External,441250,27-Mar-15,1900169406,8035,Creative Support Ltd,100902
WARRINGTON BOROUGH COUNCIL,http://opendatacommunities.org/id/unitary-authority/warrington ,FWB,Care Purchase Budget,54490,CP ExternalOther Exp,440800,27-Mar-15,1900169415,8021,Wcl - Heathside Mews,101742
WARRINGTON BOROUGH COUNCIL,http://opendatacommunities.org/id/unitary-authority/warrington ,FWB,Care Purchase Budget,54490,CP ExternalOther Exp,440800,06-Mar-15,1900167295,7993,Cls Care Services Ltd,104615
WARRINGTON BOROUGH COUNCIL,http://opendatacommunities.org/id/unitary-authority/warrington ,FWB,Care Purchase - PD,54440,CP-Nursing Care-External,441200,04-Mar-15,1900166658,7982,Church Walk Health Care Ltd,112505
WARRINGTON BOROUGH COUNCIL,http://opendatacommunities.org/id/unitary-authority/warrington ,FWB,Older Peoples South Team,54421,CP-Domicil.External,440950,27-Mar-15,1900169396,7980,Medico Nursing and Homecare,105063
WARRINGTON BOROUGH COUNCIL,http://opendatacommunities.org/id/unitary-authority/warrington ,FWB,DSG Inter Authority Recoupment,32009,Recoupment Charges,490700,19-Mar-15,1900168168,7901,Cheshire West And Chester,103357
WARRINGTON BOROUGH COUNCIL,http://opendatacommunities.org/id/unitary-authority/warrington ,FWB,DSG Inter Authority Recoupment,32009,Recoupment Charges,490700,10-Mar-15,1900167456,7901,Hebden Bridge Flamenco,110569
WARRINGTON BOROUGH COUNCIL,http://opendatacommunities.org/id/unitary-authority/warrington ,FWB,Care Purchase AMH,54135,CP-Domicil.External,440950,27-Mar-15,1900169420,7841,Independent Living Alliance,100726
WARRINGTON BOROUGH COUNCIL,http://opendatacommunities.org/id/unitary-authority/warrington ,FWB,Care Purchase - Learning Disability,54450,CP-Domicil.External,440950,24-Mar-15,1900168666,7809,Creative Support Ltd,100902
WARRINGTON BOROUGH COUNCIL,http://opendatacommunities.org/id/unitary-authority/warrington ,FWB,Care Purchase - PD,54440,CP-Domicil.External,440950,27-Mar-15,1900169430,7801,Nightingales Homecare Services Agen,104972
WARRINGTON BOROUGH COUNCIL,http://opendatacommunities.org/id/unitary-authority/warrington ,FWB,Care Purchase - OP & OT South,54480,CP-Domicil.External,440950,04-Mar-15,1900166618,7792,Premier Care Cheshire Ltd,105142
WARRINGTON BOROUGH COUNCIL,http://opendatacommunities.org/id/unitary-authority/warrington ,RSC,Legal Services,11200,Periodicals & Publ.,430250,13-Mar-15,1900167655,7670,Sweet & Maxwell / Thomson Reuters,101604
WARRINGTON BOROUGH COUNCIL,http://opendatacommunities.org/id/unitary-authority/warrington ,FWB,DSG Independent School Fees,32011,Independent School Fees,490200,11-Mar-15,1900167480,7554,Weston Point College,110596
WARRINGTON BOROUGH COUNCIL,http://opendatacommunities.org/id/unitary-authority/warrington ,CYP,Primary,81001,Contract Works,492550,03-Mar-15,1900166572,7500,Penketh Fencing and Sheds,109428
WARRINGTON BOROUGH COUNCIL,http://opendatacommunities.org/id/unitary-authority/warrington ,FWB,Care Purchase - PD,54440,CP-Domicil.External,440950,06-Mar-15,1900167289,7484,Nightingales Homecare Services Agen,104972
WARRINGTON BOROUGH COUNCIL,http://opendatacommunities.org/id/unitary-authority/warrington ,FWB,Catalyst Choices,54495,Insurance Premium,443350,23-Mar-15,1900168441,7420,Aon Ltd,102117
WARRINGTON BOROUGH COUNCIL,http://opendatacommunities.org/id/unitary-authority/warrington ,EE0,Atlantic Gateway,42150,Consult.& Prof. Serv,440000,31-Mar-15,1900169664,7395,Calderstones Consulting,113372
WARRINGTON BOROUGH COUNCIL,http://opendatacommunities.org/id/unitary-authority/warrington ,FWB,DSG Independent School Fees,32011,Independent School Fees,490200,09-Mar-15,1900167382,7368,Nugent Care,101082
WARRINGTON BOROUGH COUNCIL,http://opendatacommunities.org/id/unitary-authority/warrington ,FWB,Older Peoples South Team,54421,CP-Domicil.External,440950,23-Mar-15,1900168440,7348,Redline Business Ta Ashwood Care,113381
WARRINGTON BOROUGH COUNCIL,http://opendatacommunities.org/id/unitary-authority/warrington ,FWB,Care Purchase - Learning Disability,54450,CP ExternalOther Exp,440800,04-Mar-15,1900166668,2420,G-Map Services,106244
WARRINGTON BOROUGH COUNCIL,http://opendatacommunities.org/id/unitary-authority/warrington ,FWB,Care Purchase AMH,54135,CP-Domicil.External,440950,04-Mar-15,1900166618,2413,Premier Care Cheshire Ltd,105142
WARRINGTON BOROUGH COUNCIL,http://opendatacommunities.org/id/unitary-authority/warrington ,COR,Car Leasing Scheme - Salary Sacrifice,52126,Car Leasing Charges,350000,31-Mar-15,1900169690,2401,NHS Foundation Trust,110359
WARRINGTON BOROUGH COUNCIL,http://opendatacommunities.org/id/unitary-authority/warrington ,FWB,Care Purchase - Learning Disability,54450,CP-Domicil.External,440950,23-Mar-15,1900168282,2400,Health & Social Care Partnerships,107996
WARRINGTON BOROUGH COUNCIL,http://opendatacommunities.org/id/unitary-authority/warrington ,FWB,Care Purchase Budget,54490,CP - Cont Care - External,441350,27-Mar-15,1900169408,2393,The Extracare Charitable Trust,100497
WARRINGTON BOROUGH COUNCIL,http://opendatacommunities.org/id/unitary-authority/warrington ,FWB,Care Purchase - PD,54440,CP - Housing with Care - External,494450,27-Mar-15,1900169408,2393,The Extracare Charitable Trust,100497
WARRINGTON BOROUGH COUNCIL,http://opendatacommunities.org/id/unitary-authority/warrington ,CYP,Special,81003,Specific Work,200200,13-Mar-15,1900167643,2375,Action Partnership,112924
WARRINGTON BOROUGH COUNCIL,http://opendatacommunities.org/id/unitary-authority/warrington ,ENO,Housing Projects,82008,Disabled Persons Grant 1996,554000,03-Mar-15,1900166566,2359,Ford & Meade Electrical,100888
WARRINGTON BOROUGH COUNCIL,http://opendatacommunities.org/id/unitary-authority/warrington ,FWB,Care Purchase AMH,54135,CP-Domicil.External,440950,31-Mar-15,1900169640,2357,Community Integrated Care (Cic),100171
WARRINGTON BOROUGH COUNCIL,http://opendatacommunities.org/id/unitary-authority/warrington ,FWB,Care Purchase - ABI,54260,CP-Domicil.External,440950,27-Mar-15,1900169426,2357,Independent Living Alliance,100726
WARRINGTON BOROUGH COUNCIL,http://opendatacommunities.org/id/unitary-authority/warrington ,FWB,Catalyst Choices,54495,Insurance Premium,443350,23-Mar-15,1900168443,2348,Aon Ltd,102117
WARRINGTON BOROUGH COUNCIL,http://opendatacommunities.org/id/unitary-authority/warrington ,FWB,Care Purchase AMH,54135,CP-Domicil.External,440950,27-Mar-15,1900169421,2335,Independent Living Alliance,100726
WARRINGTON BOROUGH COUNCIL,http://opendatacommunities.org/id/unitary-authority/warrington ,CYP,Childrens Other,81004,Specific Work,200200,10-Mar-15,1900167474,2330,Project Playgrounds,114151
WARRINGTON BOROUGH COUNCIL,http://opendatacommunities.org/id/unitary-authority/warrington ,HOL,Single Billing Holding Account,91130,Electricity,210000,23-Mar-15,1900168381,2310,Npower Electricity,101884
WARRINGTON BOROUGH COUNCIL,http://opendatacommunities.org/id/unitary-authority/warrington ,FWB,Care Purchase AMH,54135,CP-Domicil.External,440950,31-Mar-15,1900169635,2307,Community Integrated Care (Cic),100171
WARRINGTON BOROUGH COUNCIL,http://opendatacommunities.org/id/unitary-authority/warrington ,FWB,Care Purchase AMH,54135,CP-Domicil.External,440950,31-Mar-15,1900169652,2307,Community Integrated Care (Cic),100171
WARRINGTON BOROUGH COUNCIL,http://opendatacommunities.org/id/unitary-authority/warrington ,FWB,Care Purchase AMH,54135,CP-Domicil.External,440950,27-Mar-15,1900169424,2305,Independent Living Alliance,100726
WARRINGTON BOROUGH COUNCIL,http://opendatacommunities.org/id/unitary-authority/warrington ,EE0,Building Control Services,43410,Consult.& Prof. Serv,440000,23-Mar-15,1900168514,2298,Labc,100506
WARRINGTON BOROUGH COUNCIL,http://opendatacommunities.org/id/unitary-authority/warrington ,COR,Car Leasing Scheme - Salary Sacrifice,52126,Car Leasing Charges,350000,09-Mar-15,1900167313,2293,NHS Foundation Trust,110359
WARRINGTON BOROUGH COUNCIL,http://opendatacommunities.org/id/unitary-authority/warrington ,FWB,Care Purchase - PD,54440,CP-Domicil.External,440950,27-Mar-15,1900169399,2292,Carewatch North Cheshire,104573
WARRINGTON BOROUGH COUNCIL,http://opendatacommunities.org/id/unitary-authority/warrington ,COR,Car Leasing Scheme - Salary Sacrifice,52126,Car Leasing Charges,350000,02-Mar-15,1900166540,2259,NHS Foundation Trust,110359
WARRINGTON BOROUGH COUNCIL,http://opendatacommunities.org/id/unitary-authority/warrington ,FWB,Care Purchase AMH,54135,CP-Domicil.External,440950,27-Mar-15,1900169423,2227,Independent Living Alliance,100726
WARRINGTON BOROUGH COUNCIL,http://opendatacommunities.org/id/unitary-authority/warrington ,RSC,Coroners Service,11100,Post Mortem Fees-Rep,440250,19-Mar-15,1900168120,2218,Dr Cheng Li,107950
WARRINGTON BOROUGH COUNCIL,http://opendatacommunities.org/id/unitary-authority/warrington ,FWB,Care Purchase - Learning Disability,54450,CP-Day Care-External,441100,27-Mar-15,1900169407,2217,Deafness Support Network,104657
WARRINGTON BOROUGH COUNCIL,http://opendatacommunities.org/id/unitary-authority/warrington ,FWB,Older Peoples South Team,54421,CP-LongStayExternal,441150,23-Mar-15,1900168288,2208,Cotebrook,104638
WARRINGTON BOROUGH COUNCIL,http://opendatacommunities.org/id/unitary-authority/warrington ,FWB,Care Purchase - OP & OT South,54480,CP-LongStayExternal,441150,23-Mar-15,1900168288,2208,Cotebrook,104638
WARRINGTON BOROUGH COUNCIL,http://opendatacommunities.org/id/unitary-authority/warrington ,ENO,Housing Projects,82008,Disabled Persons Grant 1996,554000,24-Mar-15,1900168558,2206,ThyssenKrupp Encasa Ltd,105382
WARRINGTON BOROUGH COUNCIL,http://opendatacommunities.org/id/unitary-authority/warrington ,EE0,CCTV Operations exp,44380,Equipment Purchase & Contract,400000,06-Mar-15,1900167308,2203,Bt Red Care,100411
WARRINGTON BOROUGH COUNCIL,http://opendatacommunities.org/id/unitary-authority/warrington ,FWB,CIN Team 1,31001,Agency Supply - GF,180000,19-Mar-15,1900168056,2185,Hamptons Resourcing,112852
WARRINGTON BOROUGH COUNCIL,http://opendatacommunities.org/id/unitary-authority/warrington ,FWB,Care Purchase -OP & OT East,54430,CP-Domicil.External,440950,23-Mar-15,1900168283,2182,Select Community Support Services,112799
WARRINGTON BOROUGH COUNCIL,http://opendatacommunities.org/id/unitary-authority/warrington ,FWB,Adoption Team,31107,Consult.& Prof. Serv,440000,26-Mar-15,1900169306,2178,Hamptons Resourcing,112852
WARRINGTON BOROUGH COUNCIL,http://opendatacommunities.org/id/unitary-authority/warrington ,FWB,Care Purchase - Learning Disability,54450,CP-Day Care-External,441100,24-Mar-15,1900168672,2160,Midstream West Lanc Ltd,108365
WARRINGTON BOROUGH COUNCIL,http://opendatacommunities.org/id/unitary-authority/warrington ,ENO,Housing Projects,82008,Disabled Persons Grant 1996,554000,24-Mar-15,1900168604,2138,J Barton Building Plumbing & Electr,111201
WARRINGTON BOROUGH COUNCIL,http://opendatacommunities.org/id/unitary-authority/warrington ,RSC,Coroners Service,11100,Post Mortem Fees-Rep,440250,19-Mar-15,1900168131,2131,REDACTED PERSONAL DATA,100499
WARRINGTON BOROUGH COUNCIL,http://opendatacommunities.org/id/unitary-authority/warrington ,FWB,Care Purchase - PD,54440,CP-Domicil.External,440950,31-Mar-15,1900169622,2130,Allied Healthcare Group Ltd,100796
WARRINGTON BOROUGH COUNCIL,http://opendatacommunities.org/id/unitary-authority/warrington ,COR,Oxygen Finance,60260,Corporate Initiative,491000,10-Mar-15,1700011133,2107,ISG Construction Limited,110824
WARRINGTON BOROUGH COUNCIL,http://opendatacommunities.org/id/unitary-authority/warrington ,FWB,Care Purchase AMH,54135,CP-Domicil.External,440950,31-Mar-15,1900169630,2097,Making Space,104913
WARRINGTON BOROUGH COUNCIL,http://opendatacommunities.org/id/unitary-authority/warrington ,HOL,Single Billing Holding Account,91130,Non BMP General Repairs,200050,23-Mar-15,1900168414,2093,Manchester Working Limited,105646
WARRINGTON BOROUGH COUNCIL,http://opendatacommunities.org/id/unitary-authority/warrington ,FWB,Care Purchase - Learning Disability,54450,CP-Domicil.External,440950,24-Mar-15,1900168665,2093,Mayfield Home Care Agency,104928
WARRINGTON BOROUGH COUNCIL,http://opendatacommunities.org/id/unitary-authority/warrington ,RSC,Accountancy and Financial Planning,10100,Training,190150,18-Mar-15,1900168005,2085,CIPFA,104607
WARRINGTON BOROUGH COUNCIL,http://opendatacommunities.org/id/unitary-authority/warrington ,FWB,Care Purchase - PD,54440,CP-Domicil.External,440950,04-Mar-15,1900166656,2065,Carewatch North Cheshire,104573
WARRINGTON BOROUGH COUNCIL,http://opendatacommunities.org/id/unitary-authority/warrington ,FWB,Older Peoples South Team,54421,CP-Nursing Care-External,441200,18-Mar-15,1900167974,2064,St Monica Trust,104021
WARRINGTON BOROUGH COUNCIL,http://opendatacommunities.org/id/unitary-authority/warrington ,FWB,SCM Thelwall Infants School,33127,Response Maintenance,200000,25-Mar-15,1900168740,2063,Hoult Group Services,111129
WARRINGTON BOROUGH COUNCIL,http://opendatacommunities.org/id/unitary-authority/warrington ,FWB,Older Peoples North Team,54422,CP-Nursing Care-External,441200,23-Mar-15,1900168309,2058,Pendine Park Care Organisation,112763
WARRINGTON BOROUGH COUNCIL,http://opendatacommunities.org/id/unitary-authority/warrington ,FWB,Care Purchase - OP & OT South,54480,CP-Nursing Care-External,441200,03-Mar-15,1900166594,2056,Barchester Healthcare Cheshire Gran,111378
WARRINGTON BOROUGH COUNCIL,http://opendatacommunities.org/id/unitary-authority/warrington ,FWB,Care Purchase - OP & OT South,54480,CP-Nursing Care-External,441200,03-Mar-15,1900166595,2056,Barchester Healthcare Cheshire Gran,111378
WARRINGTON BOROUGH COUNCIL,http://opendatacommunities.org/id/unitary-authority/warrington ,FWB,Older Peoples South Team,54421,CP-Nursing Care-External,441200,24-Mar-15,1900168637,2056,Barchester Healthcare Cheshire Gran,111378
WARRINGTON BOROUGH COUNCIL,http://opendatacommunities.org/id/unitary-authority/warrington ,FWB,Foster Allowances,31106,Consult.& Prof. Serv,440000,04-Mar-15,1900166724,2049,Chadwick Corporate Communications,113101
WARRINGTON BOROUGH COUNCIL,http://opendatacommunities.org/id/unitary-authority/warrington ,FWB,Foster Allowances,31106,Consult.& Prof. Serv,440000,04-Mar-15,1900166745,2049,Chadwick Corporate Communications,113101
WARRINGTON BOROUGH COUNCIL,http://opendatacommunities.org/id/unitary-authority/warrington ,FWB,Foster Allowances,31106,Consult.& Prof. Serv,440000,23-Mar-15,1900168478,2045,REDACTED PERSONAL DATA,112399
WARRINGTON BOROUGH COUNCIL,http://opendatacommunities.org/id/unitary-authority/warrington ,RSC,Coroners Service,11100,Post Mortem Fees-Rep,440250,19-Mar-15,1900168133,2032,Dr D Butterworth,100765
WARRINGTON BOROUGH COUNCIL,http://opendatacommunities.org/id/unitary-authority/warrington ,FWB,Older Peoples South Team,54421,CP-LongStayExternal,441150,18-Mar-15,1900168009,2008,Kingsview Homes Ltd,100614
WARRINGTON BOROUGH COUNCIL,http://opendatacommunities.org/id/unitary-authority/warrington ,FWB,Neighbourhood Co-o West,51307,Payment of Grants,470050,30-Mar-15,1900169610,2000,Hood Manor Estates Committee,114323
WARRINGTON BOROUGH COUNCIL,http://opendatacommunities.org/id/unitary-authority/warrington ,EE0,Town Centre,43840,Consult.& Prof. Serv,440000,31-Mar-15,1900169697,2000,Warrington Cultural Trust,100957
WARRINGTON BOROUGH COUNCIL,http://opendatacommunities.org/id/unitary-authority/warrington ,CYP,Childrens Other,81004,Specific Work,200200,25-Mar-15,1900169259,1999,Tyre Parks,112822
WARRINGTON BOROUGH COUNCIL,http://opendatacommunities.org/id/unitary-authority/warrington ,CYP,Childrens Other,81004,Specific Work,200200,25-Mar-15,1900169258,1999,Tyre Parks,112822
WARRINGTON BOROUGH COUNCIL,http://opendatacommunities.org/id/unitary-authority/warrington ,RSC,Coroners Service,11100,Post Mortem Fees-Rep,440250,19-Mar-15,1900168164,1997,Dr J.S Stafford,100426
WARRINGTON BOROUGH COUNCIL,http://opendatacommunities.org/id/unitary-authority/warrington ,CYP,Childrens Other,81004,Specific Work,200200,25-Mar-15,1900169260,1995,Tyre Parks,112822
WARRINGTON BOROUGH COUNCIL,http://opendatacommunities.org/id/unitary-authority/warrington ,FWB,Older Peoples North Team,54422,CP-LongStayExternal,441150,18-Mar-15,1900167975,1984,St Georges Residential Care Home,110495
WARRINGTON BOROUGH COUNCIL,http://opendatacommunities.org/id/unitary-authority/warrington ,HOL,Single Billing Holding Account,91130,Electricity,210000,06-Mar-15,1900167227,1979,Npower Electricity,101884
WARRINGTON BOROUGH COUNCIL,http://opendatacommunities.org/id/unitary-authority/warrington ,FWB,Older Peoples North Team,54422,CP-Nursing Care-External,441200,17-Mar-15,1900167955,1976,Tabley House Nursing Home,112807
WARRINGTON BOROUGH COUNCIL,http://opendatacommunities.org/id/unitary-authority/warrington ,ENO,Housing Projects,82008,Disabled Persons Grant 1996,554000,24-Mar-15,1900168617,1974,Manchester & District Housing Assoc,114289
WARRINGTON BOROUGH COUNCIL,http://opendatacommunities.org/id/unitary-authority/warrington ,FWB,Older Peoples South Team,54421,CP-Nursing Care-External,441200,23-Mar-15,1900168312,1965,Meridian Healthcare Ltd,101845
WARRINGTON BOROUGH COUNCIL,http://opendatacommunities.org/id/unitary-authority/warrington ,FWB,Child Disability,32212,CP-Domicil.External,440950,24-Mar-15,1900168576,1954,Castlerock Recruitment Group,105279
WARRINGTON BOROUGH COUNCIL,http://opendatacommunities.org/id/unitary-authority/warrington ,FWB,Care Purchase - OP & OT South,54480,CP-Domicil.External,440950,03-Mar-15,1900166579,1953,Allied Healthcare Group Ltd,100796
WARRINGTON BOROUGH COUNCIL,http://opendatacommunities.org/id/unitary-authority/warrington ,FWB,Care Purchase - OP & OT Central,54420,CP-Domicil.External,440950,17-Mar-15,1900167943,1951,Castlerock Recruitment Group,105279
WARRINGTON BOROUGH COUNCIL,http://opendatacommunities.org/id/unitary-authority/warrington ,FWB,Care Purchase - PD,54440,CP-Nursing Care-External,441200,03-Mar-15,1900166589,1948,Barchester Homes Westvale House,105246
WARRINGTON BOROUGH COUNCIL,http://opendatacommunities.org/id/unitary-authority/warrington ,FWB,Care Purchase - PD,54440,CP-Nursing Care-External,441200,25-Mar-15,1900169248,1948,Barchester Homes Westvale House,105246
WARRINGTON BOROUGH COUNCIL,http://opendatacommunities.org/id/unitary-authority/warrington ,FWB,Older Peoples North Team,54422,CP-Nursing Care-External,441200,31-Mar-15,1900169629,1948,CareConcepts (Appleton) Ltd,105804
WARRINGTON BOROUGH COUNCIL,http://opendatacommunities.org/id/unitary-authority/warrington ,FWB,Care Purchase - OP & OT South,54480,CP-Nursing Care-External,441200,20-Mar-15,1900168260,1948,HC One (Beechcroft Nursing Home),114145
WARRINGTON BOROUGH COUNCIL,http://opendatacommunities.org/id/unitary-authority/warrington ,FWB,CIN Team 1,31001,Agency Supply - GF,180000,11-Mar-15,1900167490,1925,Hamptons Resourcing,112852
WARRINGTON BOROUGH COUNCIL,http://opendatacommunities.org/id/unitary-authority/warrington ,FWB,CIN Team 1,31001,Agency Supply - GF,180000,12-Mar-15,1900167636,1925,Hamptons Resourcing,112852
WARRINGTON BOROUGH COUNCIL,http://opendatacommunities.org/id/unitary-authority/warrington ,FWB,CIN Team 1,31001,Agency Supply - GF,180000,24-Mar-15,1900168590,1925,Hamptons Resourcing,112852
WARRINGTON BOROUGH COUNCIL,http://opendatacommunities.org/id/unitary-authority/warrington ,FWB,CIN Team 1,31001,Agency Supply - GF,180000,30-Mar-15,1900169592,1925,Hamptons Resourcing,112852
WARRINGTON BOROUGH COUNCIL,http://opendatacommunities.org/id/unitary-authority/warrington ,FWB,Older Peoples South Team,54421,CP-LongStayExternal,441150,18-Mar-15,1900167999,1912,Sanctuary Care Limited,109765
WARRINGTON BOROUGH COUNCIL,http://opendatacommunities.org/id/unitary-authority/warrington ,FWB,Care Purchase - OP & OT Central,54420,CP-Domicil.External,440950,17-Mar-15,1900167937,1904,Castlerock Recruitment Group,105279
WARRINGTON BOROUGH COUNCIL,http://opendatacommunities.org/id/unitary-authority/warrington ,CYP,Special,81003,Specific Work,200200,12-Mar-15,1900167624,1901,Davison Fencing Limited,114254
WARRINGTON BOROUGH COUNCIL,http://opendatacommunities.org/id/unitary-authority/warrington ,FWB,SCM Oughtrington Primary School,33131,Response Maintenance,200000,25-Mar-15,1900168727,1893,Hoult Group Services,111129
WARRINGTON BOROUGH COUNCIL,http://opendatacommunities.org/id/unitary-authority/warrington ,FWB,Care Purchase - OP & OT Central,54420,CP-Domicil.External,440950,17-Mar-15,1900167941,1891,Castlerock Recruitment Group,105279
WARRINGTON BOROUGH COUNCIL,http://opendatacommunities.org/id/unitary-authority/warrington ,FWB,Care Purchase - OP & OT Central,54420,CP-Domicil.External,440950,17-Mar-15,1900167939,1883,Castlerock Recruitment Group,105279
WARRINGTON BOROUGH COUNCIL,http://opendatacommunities.org/id/unitary-authority/warrington ,CYP,Childrens Other,81004,ICT Comms - Equipment Purchase,450100,05-Mar-15,1900167168,1875,Abtec Computer Solutions Ltd,107132
WARRINGTON BOROUGH COUNCIL,http://opendatacommunities.org/id/unitary-authority/warrington ,FWB,Intermediate Care at Home,54520,Equipment Purchase & Contract,400000,30-Mar-15,1900169590,1875,Care Monitoring 2000 Ltd,112298
WARRINGTON BOROUGH COUNCIL,http://opendatacommunities.org/id/unitary-authority/warrington ,FWB,Care Purchase AMH,54135,CP-Domicil.External,440950,31-Mar-15,1900169656,1867,Community Integrated Care (Cic),100171
WARRINGTON BOROUGH COUNCIL,http://opendatacommunities.org/id/unitary-authority/warrington ,FWB,Care Purchase - PD,54440,CP-Domicil.External,440950,03-Mar-15,1900166579,1845,Allied Healthcare Group Ltd,100796
WARRINGTON BOROUGH COUNCIL,http://opendatacommunities.org/id/unitary-authority/warrington ,FWB,Care Purchase AMH,54135,CP-Domicil.External,440950,31-Mar-15,1900169649,1838,Community Integrated Care (Cic),100171
WARRINGTON BOROUGH COUNCIL,http://opendatacommunities.org/id/unitary-authority/warrington ,EE0,Highways Cont. Serv.,44220,Training,190150,31-Mar-15,1900169721,1832,Keelagher Okey Klein,102651
WARRINGTON BOROUGH COUNCIL,http://opendatacommunities.org/id/unitary-authority/warrington ,FWB,Care Purchase,54135,CP-Domicil.External,440950,27-Mar-15,1900169406,1822,Creative Support Ltd,100902
WARRINGTON BOROUGH COUNCIL,http://opendatacommunities.org/id/unitary-authority/warrington ,FWB,Older Peoples North Team,54422,CP-Domicil.External,440950,25-Mar-15,1900168709,1820,Potens Ltd TA Heath Lodge,102481
WARRINGTON BOROUGH COUNCIL,http://opendatacommunities.org/id/unitary-authority/warrington ,ENO,Housing Projects,82008,Disabled Persons Grant 1996,554000,23-Mar-15,1900168391,1819,A A Moving Solutions,100287
WARRINGTON BOROUGH COUNCIL,http://opendatacommunities.org/id/unitary-authority/warrington ,FWB,Care Purchase AMH,54135,CP-Domicil.External,440950,31-Mar-15,1900169658,1817,Community Integrated Care (Cic),100171
WARRINGTON BOROUGH COUNCIL,http://opendatacommunities.org/id/unitary-authority/warrington ,FWB,Care Purchase - OP & OT Central,54420,CP-LongStayExternal,441150,17-Mar-15,1900167954,1800,Copperdown Rest Home,113179
WARRINGTON BOROUGH COUNCIL,http://opendatacommunities.org/id/unitary-authority/warrington ,FWB,Older Peoples South Team,54421,CP-LongStayExternal,441150,24-Mar-15,1900168643,1798,Stonedale Lodge Residential & Nursi,113173
WARRINGTON BOROUGH COUNCIL,http://opendatacommunities.org/id/unitary-authority/warrington ,CYP,Childrens Other,81004,Equipment Purchase & Contract,400000,02-Mar-15,1900166524,1785,G M Electrical,114084
WARRINGTON BOROUGH COUNCIL,http://opendatacommunities.org/id/unitary-authority/warrington ,NEO,IT Projects,83003,Building Work,200850,10-Mar-15,1900167433,1785,Kitchen Solutions,113930
WARRINGTON BOROUGH COUNCIL,http://opendatacommunities.org/id/unitary-authority/warrington ,FWB,Care Purchase ,54260,CP-Domicil.External,440950,24-Mar-15,1900168650,1784,Creative Support Ltd,100902
WARRINGTON BOROUGH COUNCIL,http://opendatacommunities.org/id/unitary-authority/warrington ,ENO,Housing Projects,82008,Disabled Persons Grant 1996,554000,18-Mar-15,1900168047,1781,ThyssenKrupp Encasa Ltd,105382
WARRINGTON BOROUGH COUNCIL,http://opendatacommunities.org/id/unitary-authority/warrington ,RSC,Third Sector,51202,Payment of Grants,470050,11-Mar-15,1900167592,1775,Ethnic Over 50s Yoga Group,106123
WARRINGTON BOROUGH COUNCIL,http://opendatacommunities.org/id/unitary-authority/warrington ,FWB,Care Purchase Budget,54490,CP Free Nursing Care External,443500,25-Mar-15,1900169250,1774,CareConcepts (Appleton) Ltd,105804
WARRINGTON BOROUGH COUNCIL,http://opendatacommunities.org/id/unitary-authority/warrington ,FWB,Care Purchase - OP & OT West,54470,CP-LongStayExternal,441150,18-Mar-15,1900167998,1774,Simonsfield Care Home,110134
WARRINGTON BOROUGH COUNCIL,http://opendatacommunities.org/id/unitary-authority/warrington ,FWB,Older Peoples North Team,54422,CP-LongStayExternal,441150,20-Mar-15,1900168182,1768,Barchester Healthcare Brookfield,104548
WARRINGTON BOROUGH COUNCIL,http://opendatacommunities.org/id/unitary-authority/warrington ,FWB,Older Peoples South Team,54421,CP-LongStayExternal,441150,20-Mar-15,1900168209,1768,Barchester Healthcare Brookfield,104548
WARRINGTON BOROUGH COUNCIL,http://opendatacommunities.org/id/unitary-authority/warrington ,FWB,Older Peoples South Team,54421,CP-LongStayExternal,441150,20-Mar-15,1900168225,1768,Barchester Healthcare Brookfield,104548
WARRINGTON BOROUGH COUNCIL,http://opendatacommunities.org/id/unitary-authority/warrington ,FWB,Care Purchase - OP & OT South,54480,CP-LongStayExternal,441150,03-Mar-15,1900166599,1768,Barchester Healthcare Cheshire Gran,111378
WARRINGTON BOROUGH COUNCIL,http://opendatacommunities.org/id/unitary-authority/warrington ,FWB,Older Peoples South Team,54421,CP-LongStayExternal,441150,24-Mar-15,1900168651,1768,Barchester Healthcare Cheshire Gran,111378
WARRINGTON BOROUGH COUNCIL,http://opendatacommunities.org/id/unitary-authority/warrington ,FWB,Older Peoples South Team,54421,CP-LongStayExternal,441150,23-Mar-15,1900168321,1765,Bondcare (Spinney),102023
WARRINGTON BOROUGH COUNCIL,http://opendatacommunities.org/id/unitary-authority/warrington ,FWB,Older Peoples South Team,54421,CP-LongStayExternal,441150,24-Mar-15,1900168647,1764,Bupa Care Homes - Broadoak Manor,104546
WARRINGTON BOROUGH COUNCIL,http://opendatacommunities.org/id/unitary-authority/warrington ,FWB,Child Disability,32212,CP-Domicil.External,440950,24-Mar-15,1900168603,1764,Icare Service Limited,110435
WARRINGTON BOROUGH COUNCIL,http://opendatacommunities.org/id/unitary-authority/warrington ,FWB,Care Purchase - Learning Disability,54450,CP-Day Care-External,441100,20-Mar-15,1900168204,1759,Autism Initiatives,104503
WARRINGTON BOROUGH COUNCIL,http://opendatacommunities.org/id/unitary-authority/warrington ,FWB,Older Peoples North Team,54422,CP-LongStayExternal,441150,24-Mar-15,1900168680,1752,Linear Park (Housing With Care),100897
WARRINGTON BOROUGH COUNCIL,http://opendatacommunities.org/id/unitary-authority/warrington ,RSC,Head of Integrated Commissioning,53500,Transitional Beds,443800,11-Mar-15,1900167494,1740,HC-One Limited Callands,109640
WARRINGTON BOROUGH COUNCIL,http://opendatacommunities.org/id/unitary-authority/warrington ,RSC,ICT Networks,23400,ICT Comms - Line Rental,450200,27-Mar-15,1900169470,1728,Intrinsic Technology Limited,108170
WARRINGTON BOROUGH COUNCIL,http://opendatacommunities.org/id/unitary-authority/warrington ,RSC,ICT Networks,23400,ICT Comms - Line Rental,450200,27-Mar-15,1900169468,1728,Intrinsic Technology Limited,108170
WARRINGTON BOROUGH COUNCIL,http://opendatacommunities.org/id/unitary-authority/warrington ,FWB,Neighbourhood Co-o South,51308,Payment of Grants,470050,26-Mar-15,1900169288,1725,Friends of Alexandra Park,106251
WARRINGTON BOROUGH COUNCIL,http://opendatacommunities.org/id/unitary-authority/warrington ,FWB,Care Purchase -OP & OT East,54430,CP-LongStayExternal,441150,04-Mar-15,1900166673,1720,Boulters Lock,113001
WARRINGTON BOROUGH COUNCIL,http://opendatacommunities.org/id/unitary-authority/warrington ,FWB,Older Peoples North Team,54422,CP-LongStayExternal,441150,18-Mar-15,1900167976,1720,Boulters Lock,113001
WARRINGTON BOROUGH COUNCIL,http://opendatacommunities.org/id/unitary-authority/warrington ,FWB,Care Purchase - PD,54440,CP-Domicil.External,440950,31-Mar-15,1900169626,1715,Alternative Futures Group,104468
WARRINGTON BOROUGH COUNCIL,http://opendatacommunities.org/id/unitary-authority/warrington ,FWB,Older Peoples North Team,54422,CP-Nursing Care-External,441200,23-Mar-15,1900168289,1712,St Nicholas Nursing Home,110287
WARRINGTON BOROUGH COUNCIL,http://opendatacommunities.org/id/unitary-authority/warrington ,EE0,Street Lighting Client,44241,Lighting Energy Char,531550,31-Mar-15,1900169725,1705,Npower Electricity,101884
WARRINGTON BOROUGH COUNCIL,http://opendatacommunities.org/id/unitary-authority/warrington ,FWB,Care Purchase - OP & OT West,54470,CP-Domicil.External,440950,18-Mar-15,1900167985,1697,Select Community Support Services,112799
WARRINGTON BOROUGH COUNCIL,http://opendatacommunities.org/id/unitary-authority/warrington ,FWB,Care Purchase AMH,54135,CP-Domicil.External,440950,18-Mar-15,1900167970,1688,Next Stage A Way Forward Ltd,101217
WARRINGTON BOROUGH COUNCIL,http://opendatacommunities.org/id/unitary-authority/warrington ,FWB,Adults Safeguarding Board,53180,Consult.& Prof. Serv,440000,31-Mar-15,1900169680,1686,REDACTED PERSONAL DATA,111172
WARRINGTON BOROUGH COUNCIL,http://opendatacommunities.org/id/unitary-authority/warrington ,FWB,Care Purchase -OP & OT East,54430,CP-Nursing Care-External,441200,20-Mar-15,1900168197,1679,BUPA - Bedford Res,104569
WARRINGTON BOROUGH COUNCIL,http://opendatacommunities.org/id/unitary-authority/warrington ,RSC,Coroners Service,11100,Post Mortem Fees-Rep,440250,19-Mar-15,1900168138,1669,Dr W E Kenyon,104851
WARRINGTON BOROUGH COUNCIL,http://opendatacommunities.org/id/unitary-authority/warrington ,FWB,Care Purchase AMH,54135,CP-Domicil.External,440950,31-Mar-15,1900169655,1669,Community Integrated Care (Cic),100171
WARRINGTON BOROUGH COUNCIL,http://opendatacommunities.org/id/unitary-authority/warrington ,FWB,Children with Disabilities,31005,Agency Supply - GF,180000,19-Mar-15,1900168058,1646,Caritas Recruitment,113819
WARRINGTON BOROUGH COUNCIL,http://opendatacommunities.org/id/unitary-authority/warrington ,FWB,Children with Disabilities,31005,Agency Supply - GF,180000,19-Mar-15,1900168064,1646,Caritas Recruitment,113819
WARRINGTON BOROUGH COUNCIL,http://opendatacommunities.org/id/unitary-authority/warrington ,FWB,Children with Disabilities,31005,Agency Supply - GF,180000,12-Mar-15,1900167634,1646,Caritas Recruitment,113819
WARRINGTON BOROUGH COUNCIL,http://opendatacommunities.org/id/unitary-authority/warrington ,FWB,Children with Disabilities,31005,Agency Supply - GF,180000,19-Mar-15,1900168063,1646,Caritas Recruitment,113819
WARRINGTON BOROUGH COUNCIL,http://opendatacommunities.org/id/unitary-authority/warrington ,FWB,Children with Disabilities,31005,Agency Supply - GF,180000,19-Mar-15,1900168057,1646,Caritas Recruitment,113819
WARRINGTON BOROUGH COUNCIL,http://opendatacommunities.org/id/unitary-authority/warrington ,FWB,Children with Disabilities,31005,Agency Supply - GF,180000,19-Mar-15,1900168061,1646,Caritas Recruitment,113819
WARRINGTON BOROUGH COUNCIL,http://opendatacommunities.org/id/unitary-authority/warrington ,FWB,Children with Disabilities,31005,Agency Supply - GF,180000,19-Mar-15,1900168066,1646,Caritas Recruitment,113819
WARRINGTON BOROUGH COUNCIL,http://opendatacommunities.org/id/unitary-authority/warrington ,FWB,Care Purchase - OP & OT Central,54420,CP-LongStayExternal,441150,24-Mar-15,1900168696,1640,Ideal Carehomes (Number One) Ltd,108328
WARRINGTON BOROUGH COUNCIL,http://opendatacommunities.org/id/unitary-authority/warrington ,FWB,Care Purchase - PD,54440,CP-Domicil.External,440950,20-Mar-15,1900168245,1635,Bridgewater Home Care,113753
WARRINGTON BOROUGH COUNCIL,http://opendatacommunities.org/id/unitary-authority/warrington ,FWB,Care Purchase Budget,54490,CP - Cont Care - External,441350,25-Mar-15,1900169255,1630,Housing & Care 21,100060
WARRINGTON BOROUGH COUNCIL,http://opendatacommunities.org/id/unitary-authority/warrington ,FWB,Care Purchase - OP & OT Central,54420,CP-Nursing Care-External,441200,20-Mar-15,1900168267,1628,BUPA - Bedford Res,104569
WARRINGTON BOROUGH COUNCIL,http://opendatacommunities.org/id/unitary-authority/warrington ,FWB,Catalyst Choices,54495,Insurance Premium,443350,23-Mar-15,1900168407,1624,Aon Ltd,102117
WARRINGTON BOROUGH COUNCIL,http://opendatacommunities.org/id/unitary-authority/warrington ,FWB,DSG Inter Authority Recoupment,32009,Recoupment Charges,490700,09-Mar-15,1900167372,1617,St Helens Mbc,105097
WARRINGTON BOROUGH COUNCIL,http://opendatacommunities.org/id/unitary-authority/warrington ,FWB,Older Peoples South Team,54421,CP-LongStayExternal,441150,25-Mar-15,1900169249,1615,Burrswood House Nursing & Residenti,109619
WARRINGTON BOROUGH COUNCIL,http://opendatacommunities.org/id/unitary-authority/warrington ,FWB,Care Purchase - ABI,54260,CP-Domicil.External,440950,27-Mar-15,1900169423,1605,Independent Living Alliance,100726
WARRINGTON BOROUGH COUNCIL,http://opendatacommunities.org/id/unitary-authority/warrington ,FWB,Older Peoples North Team,54422,CP-Nursing Care-External,441200,24-Mar-15,1900168681,1600,Bowerfield House MMCG,111713
WARRINGTON BOROUGH COUNCIL,http://opendatacommunities.org/id/unitary-authority/warrington ,COR,Oxygen Finance,60260,Consult.& Prof. Serv,440000,31-Mar-15,1900169675,1599,Oxygen Finance Ltd,113784
WARRINGTON BOROUGH COUNCIL,http://opendatacommunities.org/id/unitary-authority/warrington ,RSC,Postal & Courier Services,52130,Postages,450000,24-Mar-15,1900168544,1585,Royal Mail,101445
WARRINGTON BOROUGH COUNCIL,http://opendatacommunities.org/id/unitary-authority/warrington ,FWB,Older Peoples North Team,54422,CP-Domicil.External,440950,31-Mar-15,1900169622,1571,Allied Healthcare Group Ltd,100796
WARRINGTON BOROUGH COUNCIL,http://opendatacommunities.org/id/unitary-authority/warrington ,FWB,Care Purchase -OP & OT East,54430,CP-Domicil.External,440950,03-Mar-15,1900166579,1569,Allied Healthcare Group Ltd,100796
WARRINGTON BOROUGH COUNCIL,http://opendatacommunities.org/id/unitary-authority/warrington ,FWB,Child Disability,32212,CP-Domicil.External,440950,11-Mar-15,1900167553,1568,Icare Service Limited,110435
WARRINGTON BOROUGH COUNCIL,http://opendatacommunities.org/id/unitary-authority/warrington ,FWB,Care Purchase AMH,54135,CP-LongStayExternal,441150,17-Mar-15,1900167961,1564,Hilton Residential Homes Ltd,104783
WARRINGTON BOROUGH COUNCIL,http://opendatacommunities.org/id/unitary-authority/warrington ,FWB,Care Purchase AMH,54135,CP-LongStayExternal,441150,24-Mar-15,1900168685,1564,Hilton Residential Homes Ltd,104783
WARRINGTON BOROUGH COUNCIL,http://opendatacommunities.org/id/unitary-authority/warrington ,FWB,Catalyst Choices,54495,Rent Of Premises,220000,26-Mar-15,1900169294,1556,REDACTED PERSONAL DATA,101175
WARRINGTON BOROUGH COUNCIL,http://opendatacommunities.org/id/unitary-authority/warrington ,FWB,Catalyst Choices,54495,Consult.& Prof. Serv,440000,25-Mar-15,1900169271,1556,REDACTED PERSONAL DATA,100044
WARRINGTON BOROUGH COUNCIL,http://opendatacommunities.org/id/unitary-authority/warrington ,FWB,Care Purchase - Learning Disability,54450,CP Adult Placement,443450,12-Mar-15,1900167627,1556,REDACTED PERSONAL DATA,101175
WARRINGTON BOROUGH COUNCIL,http://opendatacommunities.org/id/unitary-authority/warrington ,FWB,Care Purchase - ABI,54260,CP-Domicil.External,440950,12-Mar-15,1900167616,1554,Future Directions Community Interes,111498
WARRINGTON BOROUGH COUNCIL,http://opendatacommunities.org/id/unitary-authority/warrington ,FWB,Care Purchase Budget,54490,CP - Cont Care - External,441350,27-Mar-15,1900169426,1554,Independent Living Alliance,100726
WARRINGTON BOROUGH COUNCIL,http://opendatacommunities.org/id/unitary-authority/warrington ,FWB,Older Peoples South Team,54421,CP-LongStayExternal,441150,20-Mar-15,1900168170,1540,Alexandra Care Home,100708
WARRINGTON BOROUGH COUNCIL,http://opendatacommunities.org/id/unitary-authority/warrington ,FWB,Care Purchase - Learning Disability,54450,CP-Domicil.External,440950,06-Mar-15,1900167299,1539,WCL - Warrington Community Living,105230
WARRINGTON BOROUGH COUNCIL,http://opendatacommunities.org/id/unitary-authority/warrington ,FWB,Older Peoples South Team,54421,CP-Nursing Care-External,441200,20-Mar-15,1900168190,1527,Barton Brook Residential Nursing Ho,111874
WARRINGTON BOROUGH COUNCIL,http://opendatacommunities.org/id/unitary-authority/warrington ,ENO,Housing Projects,82008,Disabled Persons Grant 1996,554000,11-Mar-15,1900167501,1520,A1 Roof Seal Ltd,105313
WARRINGTON BOROUGH COUNCIL,http://opendatacommunities.org/id/unitary-authority/warrington ,FWB,Care Purchase - OP & OT Central,54420,CP-Domicil.External,440950,03-Mar-15,1900166579,1514,Allied Healthcare Group Ltd,100796
WARRINGTON BOROUGH COUNCIL,http://opendatacommunities.org/id/unitary-authority/warrington ,FWB,Children with Disabilities,31005,Agency Supply - GF,180000,19-Mar-15,1900168059,1513,Caritas Recruitment,113819
WARRINGTON BOROUGH COUNCIL,http://opendatacommunities.org/id/unitary-authority/warrington ,FWB,Care Purchase Budget,54490,Voids,515150,27-Mar-15,1900169402,1506,Creative Support Ltd,100902
WARRINGTON BOROUGH COUNCIL,http://opendatacommunities.org/id/unitary-authority/warrington ,FWB,Care Purchase - ABI,54260,CP-Domicil.External,440950,27-Mar-15,1900169409,1502,Future Directions Community Interes,111498
WARRINGTON BOROUGH COUNCIL,http://opendatacommunities.org/id/unitary-authority/warrington ,FWB,DSG Early Years PVI Settings,32417,Private & Voluntary 3 Year Olds,470100,27-Mar-15,1900169516,1500,Butterflys Nursery,107718
WARRINGTON BOROUGH COUNCIL,http://opendatacommunities.org/id/unitary-authority/warrington ,FWB,DSG Early Years PVI Settings,32417,Private & Voluntary 3 Year Olds,470100,27-Mar-15,1900169511,1500,Croft Village Pre School,109167
WARRINGTON BOROUGH COUNCIL,http://opendatacommunities.org/id/unitary-authority/warrington ,FWB,DSG Early Years PVI Settings,32417,Private & Voluntary 3 Year Olds,470100,27-Mar-15,1900169509,1500,Kids Planet Warrington,105710
WARRINGTON BOROUGH COUNCIL,http://opendatacommunities.org/id/unitary-authority/warrington ,FWB,Neighbourhood Co-o South,51308,Payment of Grants,470050,31-Mar-15,1900169700,1500,Stockton Heath Festival Trusst,103499
WARRINGTON BOROUGH COUNCIL,http://opendatacommunities.org/id/unitary-authority/warrington ,ENO,Housing Projects,82008,Safe & Secure Energy House Assistance,554100,11-Mar-15,1900167500,1495,Acorn Building Projects Ltd,105557
WARRINGTON BOROUGH COUNCIL,http://opendatacommunities.org/id/unitary-authority/warrington ,FWB,Care Purchase -OP & OT East,54430,CP-LongStayExternal,441150,04-Mar-15,1900166612,1494,Sun Hill,110568
WARRINGTON BOROUGH COUNCIL,http://opendatacommunities.org/id/unitary-authority/warrington ,FWB,Older Peoples North Team,54422,CP-LongStayExternal,441150,23-Mar-15,1900168293,1494,Sun Hill,110568
WARRINGTON BOROUGH COUNCIL,http://opendatacommunities.org/id/unitary-authority/warrington ,FWB,Care Purchase - PD,54440,CP-Domicil.External,440950,23-Mar-15,1900168287,1492,Safehands Network Ltd,103226
WARRINGTON BOROUGH COUNCIL,http://opendatacommunities.org/id/unitary-authority/warrington ,FWB,Care Purchase - Learning Disability,54450,CP-LongStayExternal,441150,24-Mar-15,1900168690,1482,Inclusive Lifestyles Ltd,101840
WARRINGTON BOROUGH COUNCIL,http://opendatacommunities.org/id/unitary-authority/warrington ,FWB,Catalyst Choices,54495,Consult.& Prof. Serv,440000,25-Mar-15,1900169268,1481,REDACTED PERSONAL DATA,100052
WARRINGTON BOROUGH COUNCIL,http://opendatacommunities.org/id/unitary-authority/warrington ,FWB,Legal Fees - Safeguarding,30100,Legal Costs Incurred,440200,10-Mar-15,1900167401,1475,REDACTED PERSONAL DATA,113661
WARRINGTON BOROUGH COUNCIL,http://opendatacommunities.org/id/unitary-authority/warrington ,FWB,SCM Statham Primary School,33128,Response Maintenance,200000,10-Mar-15,1900167393,1465,Hoult Group Services,111129
WARRINGTON BOROUGH COUNCIL,http://opendatacommunities.org/id/unitary-authority/warrington ,RSC,Coroners Service,11100,Post Mortem Fees-Rep,440250,19-Mar-15,1900168132,1461,Dr B.N.A Hamid,100354
WARRINGTON BOROUGH COUNCIL,http://opendatacommunities.org/id/unitary-authority/warrington ,FWB,Care Purchase - PD,54440,CP-LongStayExternal,441150,25-Mar-15,1900168708,1452,Voyage Care,100099
WARRINGTON BOROUGH COUNCIL,http://opendatacommunities.org/id/unitary-authority/warrington ,RSC,Postal & Courier Services,52130,Postages,450000,10-Mar-15,1900167469,1440,Logistex Express Ltd,100946
WARRINGTON BOROUGH COUNCIL,http://opendatacommunities.org/id/unitary-authority/warrington ,RSC,ICT Networks,23400,ICT Comms - Line Usage,450300,27-Mar-15,1900169470,1438,Intrinsic Technology Limited,108170
WARRINGTON BOROUGH COUNCIL,http://opendatacommunities.org/id/unitary-authority/warrington ,FWB,Care Purchase ,54135,CP-Domicil.External,440950,24-Mar-15,1900168652,1433,Creative Support Ltd,100902
WARRINGTON BOROUGH COUNCIL,http://opendatacommunities.org/id/unitary-authority/warrington ,FWB,CIN Team 3,31003,Agency Supply - GF,180000,19-Mar-15,1900168068,1432,Caritas Recruitment,113819
WARRINGTON BOROUGH COUNCIL,http://opendatacommunities.org/id/unitary-authority/warrington ,FWB,Care Purchase - OP & OT West,54470,CP-Nursing Care-External,441200,06-Mar-15,1900167285,1427,Four Seasons Ta Cherry Trees,103592
WARRINGTON BOROUGH COUNCIL,http://opendatacommunities.org/id/unitary-authority/warrington ,FWB,Care Purchase - OP & OT West,54470,CP-Nursing Care-External,441200,23-Mar-15,1900168281,1427,Four Seasons Ta Cherry Trees,103592
WARRINGTON BOROUGH COUNCIL,http://opendatacommunities.org/id/unitary-authority/warrington ,HOL,Single Billing Holding Account,91130,Agency Supply - GF,180000,30-Mar-15,1900169522,1422,Hays Specialist Recruitment Ltd,107512
WARRINGTON BOROUGH COUNCIL,http://opendatacommunities.org/id/unitary-authority/warrington ,FWB,CIN Team 3,31003,Agency Supply - GF,180000,19-Mar-15,1900168083,1419,Caritas Recruitment,113819
WARRINGTON BOROUGH COUNCIL,http://opendatacommunities.org/id/unitary-authority/warrington ,FWB,CIN Team 3,31003,Agency Supply - GF,180000,19-Mar-15,1900168081,1419,Caritas Recruitment,113819
WARRINGTON BOROUGH COUNCIL,http://opendatacommunities.org/id/unitary-authority/warrington ,FWB,Care Purchase Budget,54490,Voids,515150,24-Mar-15,1900168664,1419,Creative Support Ltd,100902
WARRINGTON BOROUGH COUNCIL,http://opendatacommunities.org/id/unitary-authority/warrington ,FWB,DSG Independent School Fees,32011,Independent School Fees,490200,09-Mar-15,1900167383,1413,North Cestrian Grammar School,102297
WARRINGTON BOROUGH COUNCIL,http://opendatacommunities.org/id/unitary-authority/warrington ,FWB,Care Purchase -OP & OT East,54430,CP-Domicil.External,440950,23-Mar-15,1900168287,1412,Safehands Network Ltd,103226
WARRINGTON BOROUGH COUNCIL,http://opendatacommunities.org/id/unitary-authority/warrington ,RSC,Coroners Service,11100,Post Mortem Fees-Rep,440250,06-Mar-15,1900167309,1409,Dr D Butterworth,100765
WARRINGTON BOROUGH COUNCIL,http://opendatacommunities.org/id/unitary-authority/warrington ,FWB,Care Purchase - Learning Disability,54450,Supporting People - External,441250,23-Mar-15,1900168278,1400,Macintyre Care,104907
WARRINGTON BOROUGH COUNCIL,http://opendatacommunities.org/id/unitary-authority/warrington ,FWB,Children with Disabilities,31005,People with Physical or Sensory Disabili,535250,11-Mar-15,1900167509,1400,Semaphore Psychology Ltd,112738
WARRINGTON BOROUGH COUNCIL,http://opendatacommunities.org/id/unitary-authority/warrington ,FWB,Older Peoples North Team,54422,CP-LongStayExternal,441150,17-Mar-15,1900167957,1392,The Nugent Care Society,100277
WARRINGTON BOROUGH COUNCIL,http://opendatacommunities.org/id/unitary-authority/warrington ,FWB,Care Purchase - PD,54440,Supporting People - External,441250,31-Mar-15,1900169626,1379,Alternative Futures Group,104468
WARRINGTON BOROUGH COUNCIL,http://opendatacommunities.org/id/unitary-authority/warrington ,FWB,Care Purchase - PD,54440,CP-Domicil.External,440950,23-Mar-15,1900168274,1367,Cherish UK Limited,113736
WARRINGTON BOROUGH COUNCIL,http://opendatacommunities.org/id/unitary-authority/warrington ,COR,Oxygen Finance,60260,Consult.& Prof. Serv,440000,31-Mar-15,1900169676,1361,Oxygen Finance Ltd,113784
WARRINGTON BOROUGH COUNCIL,http://opendatacommunities.org/id/unitary-authority/warrington ,FWB,Carers Co-ordinator,53240,CP - Cont Care - External,441350,25-Mar-15,1900169248,1336,Barchester Homes Westvale House,105246
WARRINGTON BOROUGH COUNCIL,http://opendatacommunities.org/id/unitary-authority/warrington ,FWB,Children with Disabilities,31005,Agency Supply - GF,180000,19-Mar-15,1900168060,1335,Caritas Recruitment,113819
WARRINGTON BOROUGH COUNCIL,http://opendatacommunities.org/id/unitary-authority/warrington ,COR,Oxygen Finance,60260,Consult.& Prof. Serv,440000,31-Mar-15,1900169678,1328,Oxygen Finance Ltd,113784
WARRINGTON BOROUGH COUNCIL,http://opendatacommunities.org/id/unitary-authority/warrington ,FWB,CIN Team 3,31003,Agency Supply - GF,180000,19-Mar-15,1900168074,1319,Caritas Recruitment,113819
WARRINGTON BOROUGH COUNCIL,http://opendatacommunities.org/id/unitary-authority/warrington ,FWB,CIN Team 3,31003,Agency Supply - GF,180000,06-Mar-15,1900167302,1319,Caritas Recruitment,113819
WARRINGTON BOROUGH COUNCIL,http://opendatacommunities.org/id/unitary-authority/warrington ,FWB,CIN Team 3,31003,Agency Supply - GF,180000,19-Mar-15,1900168073,1319,Caritas Recruitment,113819
WARRINGTON BOROUGH COUNCIL,http://opendatacommunities.org/id/unitary-authority/warrington ,FWB,CIN Team 3,31003,Agency Supply - GF,180000,19-Mar-15,1900168067,1319,Caritas Recruitment,113819
WARRINGTON BOROUGH COUNCIL,http://opendatacommunities.org/id/unitary-authority/warrington ,FWB,Placement Support Team,31103,Agency Supply - GF,180000,06-Mar-15,1900167294,1319,Caritas Recruitment,113819
WARRINGTON BOROUGH COUNCIL,http://opendatacommunities.org/id/unitary-authority/warrington ,FWB,CIN Team 3,31003,Agency Supply - GF,180000,06-Mar-15,1900167303,1319,Caritas Recruitment,113819
WARRINGTON BOROUGH COUNCIL,http://opendatacommunities.org/id/unitary-authority/warrington ,FWB,CIN Team 3,31003,Agency Supply - GF,180000,19-Mar-15,1900168072,1319,Caritas Recruitment,113819
WARRINGTON BOROUGH COUNCIL,http://opendatacommunities.org/id/unitary-authority/warrington ,FWB,CIN Team 3,31003,Agency Supply - GF,180000,19-Mar-15,1900168071,1319,Caritas Recruitment,113819
WARRINGTON BOROUGH COUNCIL,http://opendatacommunities.org/id/unitary-authority/warrington ,FWB,CIN Team 3,31003,Agency Supply - GF,180000,19-Mar-15,1900168070,1319,Caritas Recruitment,113819
WARRINGTON BOROUGH COUNCIL,http://opendatacommunities.org/id/unitary-authority/warrington ,FWB,CIN Team 3,31003,Agency Supply - GF,180000,19-Mar-15,1900168098,1319,Caritas Recruitment,113819
WARRINGTON BOROUGH COUNCIL,http://opendatacommunities.org/id/unitary-authority/warrington ,FWB,CIN Team 3,31003,Agency Supply - GF,180000,19-Mar-15,1900168095,1319,Caritas Recruitment,113819
WARRINGTON BOROUGH COUNCIL,http://opendatacommunities.org/id/unitary-authority/warrington ,FWB,CIN Team 3,31003,Agency Supply - GF,180000,19-Mar-15,1900168090,1319,Caritas Recruitment,113819
WARRINGTON BOROUGH COUNCIL,http://opendatacommunities.org/id/unitary-authority/warrington ,FWB,CIN Team 3,31003,Agency Supply - GF,180000,19-Mar-15,1900168077,1319,Caritas Recruitment,113819
WARRINGTON BOROUGH COUNCIL,http://opendatacommunities.org/id/unitary-authority/warrington ,FWB,CIN Team 3,31003,Agency Supply - GF,180000,19-Mar-15,1900168100,1319,Caritas Recruitment,113819
WARRINGTON BOROUGH COUNCIL,http://opendatacommunities.org/id/unitary-authority/warrington ,FWB,CIN Team 3,31003,Agency Supply - GF,180000,19-Mar-15,1900168096,1319,Caritas Recruitment,113819
WARRINGTON BOROUGH COUNCIL,http://opendatacommunities.org/id/unitary-authority/warrington ,FWB,CIN Team 3,31003,Agency Supply - GF,180000,19-Mar-15,1900168075,1319,Caritas Recruitment,113819
WARRINGTON BOROUGH COUNCIL,http://opendatacommunities.org/id/unitary-authority/warrington ,FWB,CIN Team 3,31003,Agency Supply - GF,180000,19-Mar-15,1900168093,1319,Caritas Recruitment,113819
WARRINGTON BOROUGH COUNCIL,http://opendatacommunities.org/id/unitary-authority/warrington ,FWB,CIN Team 3,31003,Agency Supply - GF,180000,19-Mar-15,1900168088,1319,Caritas Recruitment,113819
WARRINGTON BOROUGH COUNCIL,http://opendatacommunities.org/id/unitary-authority/warrington ,FWB,Care Purchase AMH,54135,CP-Domicil.External,440950,20-Mar-15,1900168173,1312,Allied Healthcare Group Ltd,100796
WARRINGTON BOROUGH COUNCIL,http://opendatacommunities.org/id/unitary-authority/warrington ,FWB,Operational Manager  - Intermediate Care,53210,Agency Supply - GF,180000,06-Mar-15,1900167267,1294,Rig Medical Recruit Ltd,114141
WARRINGTON BOROUGH COUNCIL,http://opendatacommunities.org/id/unitary-authority/warrington ,FWB,Operational Manager  - Intermediate Care,53210,Agency Supply - GF,180000,06-Mar-15,1900167250,1294,Rig Medical Recruit Ltd,114141
WARRINGTON BOROUGH COUNCIL,http://opendatacommunities.org/id/unitary-authority/warrington ,FWB,Operational Manager  - Intermediate Care,53210,Agency Supply - GF,180000,06-Mar-15,1900167255,1294,Rig Medical Recruit Ltd,114141
WARRINGTON BOROUGH COUNCIL,http://opendatacommunities.org/id/unitary-authority/warrington ,FWB,Halton Music Grant - EXP,32219,Consult.& Prof. Serv,440000,06-Mar-15,1900167305,1293,REDACTED PERSONAL DATA,113675
WARRINGTON BOROUGH COUNCIL,http://opendatacommunities.org/id/unitary-authority/warrington ,FWB,CYPS - Rents & Charges,32422,Water Meter Charges,240050,27-Mar-15,1900169503,1287,United Utilities Water Limited,104982
WARRINGTON BOROUGH COUNCIL,http://opendatacommunities.org/id/unitary-authority/warrington ,FWB,Care Purchase - OP & OT West,54470,CP-LongStayExternal,441150,20-Mar-15,1900168256,1285,Ennerdale Nursing & Residential Hom,108529
WARRINGTON BOROUGH COUNCIL,http://opendatacommunities.org/id/unitary-authority/warrington ,FWB,Care Purchase AMH,54135,CP-Domicil.External,440950,27-Mar-15,1900169396,1280,Medico Nursing and Homecare,105063
WARRINGTON BOROUGH COUNCIL,http://opendatacommunities.org/id/unitary-authority/warrington ,FWB,Neighbourhood Co-o South,51308,Payment of Grants,470050,31-Mar-15,1900169708,1280,Lumb Brook Millennium Green,109869
WARRINGTON BOROUGH COUNCIL,http://opendatacommunities.org/id/unitary-authority/warrington ,FWB,Neighbourhood Co-o South,51308,Payment of Grants,470050,31-Mar-15,1900169710,1280,Lumb Brook Millennium Green,109869
WARRINGTON BOROUGH COUNCIL,http://opendatacommunities.org/id/unitary-authority/warrington ,FWB,Operational Manager  - Intermediate Care,53210,Agency Supply - GF,180000,06-Mar-15,1900167269,1275,Rig Medical Recruit Ltd,114141
WARRINGTON BOROUGH COUNCIL,http://opendatacommunities.org/id/unitary-authority/warrington ,FWB,Operational Manager  - Intermediate Care,53210,Agency Supply - GF,180000,06-Mar-15,1900167251,1275,Rig Medical Recruit Ltd,114141
WARRINGTON BOROUGH COUNCIL,http://opendatacommunities.org/id/unitary-authority/warrington ,FWB,Operational Manager  - Intermediate Care,53210,Agency Supply - GF,180000,06-Mar-15,1900167254,1275,Rig Medical Recruit Ltd,114141
WARRINGTON BOROUGH COUNCIL,http://opendatacommunities.org/id/unitary-authority/warrington ,FWB,Operational Manager  - Intermediate Care,53210,Agency Supply - GF,180000,06-Mar-15,1900167259,1273,Rig Medical Recruit Ltd,114141
WARRINGTON BOROUGH COUNCIL,http://opendatacommunities.org/id/unitary-authority/warrington ,FWB,CIN Management,30101,Training,190150,10-Mar-15,1900167453,1268,Centerplate UK,107126
WARRINGTON BOROUGH COUNCIL,http://opendatacommunities.org/id/unitary-authority/warrington ,FWB,Care Purchase Budget,54490,CP ExternalOther Exp,440800,27-Mar-15,1900169413,1265,Heathside Elderly Persons Home,104777
WARRINGTON BOROUGH COUNCIL,http://opendatacommunities.org/id/unitary-authority/warrington ,FWB,CIN Team 1,31001,Agency Supply - GF,180000,04-Mar-15,1900166715,1258,AFFINITY WORKFORCE LIMITED,113682
WARRINGTON BOROUGH COUNCIL,http://opendatacommunities.org/id/unitary-authority/warrington ,FWB,CIN Team 1,31001,Sect 17 (Child Act),490950,04-Mar-15,1900166706,1258,AFFINITY WORKFORCE LIMITED,113682
WARRINGTON BOROUGH COUNCIL,http://opendatacommunities.org/id/unitary-authority/warrington ,FWB,CIN Team 1,31001,Sect 17 (Child Act),490950,04-Mar-15,1900166722,1258,AFFINITY WORKFORCE LIMITED,113682
WARRINGTON BOROUGH COUNCIL,http://opendatacommunities.org/id/unitary-authority/warrington ,FWB,CIN Team 1,31001,Sect 17 (Child Act),490950,04-Mar-15,1900166702,1258,AFFINITY WORKFORCE LIMITED,113682
WARRINGTON BOROUGH COUNCIL,http://opendatacommunities.org/id/unitary-authority/warrington ,FWB,Care Purchase - Learning Disability,54450,CP-Domicil.External,440950,27-Mar-15,1900169406,1248,Creative Support Ltd,100902
WARRINGTON BOROUGH COUNCIL,http://opendatacommunities.org/id/unitary-authority/warrington ,FWB,Children with Disabilities,31005,Agency Supply - GF,180000,19-Mar-15,1900168065,1246,Caritas Recruitment,113819
WARRINGTON BOROUGH COUNCIL,http://opendatacommunities.org/id/unitary-authority/warrington ,RSC,Coroners Service,11100,Post Mortem Fees-Rep,440250,19-Mar-15,1900168137,1232,Dr Jackie Elder,101240
WARRINGTON BOROUGH COUNCIL,http://opendatacommunities.org/id/unitary-authority/warrington ,RSC,Borough Elections,11560,Rent Of Premises,220000,11-Mar-15,1900167613,1231,Elliot Group,105151
WARRINGTON BOROUGH COUNCIL,http://opendatacommunities.org/id/unitary-authority/warrington ,FWB,Care Purchase - Learning Disability,54450,CP-Domicil.External,440950,25-Mar-15,1900168713,1227,Icare Service Limited,110435
WARRINGTON BOROUGH COUNCIL,http://opendatacommunities.org/id/unitary-authority/warrington ,FWB,Contracts - SM Commissioning Team 2,55920,Public Health Contract Payments,540000,02-Mar-15,1900166490,1220,Dr R Knill & Partners,102245
WARRINGTON BOROUGH COUNCIL,http://opendatacommunities.org/id/unitary-authority/warrington ,RSC,ICT Networks,23400,ICT Comms - Line Usage,450300,27-Mar-15,1900169468,1217,Intrinsic Technology Limited,108170
WARRINGTON BOROUGH COUNCIL,http://opendatacommunities.org/id/unitary-authority/warrington ,FWB,Legal Fees - Safeguarding,30100,Legal Costs Incurred,440200,23-Mar-15,1900168509,1215,Cartlidge Stewart Ltd,114238
WARRINGTON BOROUGH COUNCIL,http://opendatacommunities.org/id/unitary-authority/warrington ,ENO,Housing Projects,82008,Disabled Persons Grant 1996,554000,18-Mar-15,1900168031,1214,Reilly Brothers Builders,111223
WARRINGTON BOROUGH COUNCIL,http://opendatacommunities.org/id/unitary-authority/warrington ,FWB,CIN Team 3,31003,Agency Supply - GF,180000,19-Mar-15,1900168086,1212,Caritas Recruitment,113819
WARRINGTON BOROUGH COUNCIL,http://opendatacommunities.org/id/unitary-authority/warrington ,RSC,Coroners Service,11100,Post Mortem Fees-Rep,440250,19-Mar-15,1900168134,1207,Dr C M Manson,100080
WARRINGTON BOROUGH COUNCIL,http://opendatacommunities.org/id/unitary-authority/warrington ,RSC,Individual Electoral Registration,11660,Postages,450000,17-Mar-15,1900167868,1204,Royal Mail,101445
WARRINGTON BOROUGH COUNCIL,http://opendatacommunities.org/id/unitary-authority/warrington ,FWB,Children with Disabilities,31005,Agency Supply - GF,180000,19-Mar-15,1900168062,1202,Caritas Recruitment,113819
WARRINGTON BOROUGH COUNCIL,http://opendatacommunities.org/id/unitary-authority/warrington ,COR,Fees & Subscriptions,60020,Subscriptions,470000,23-Mar-15,1900168452,1200,CIPFA Business Limited,103650
WARRINGTON BOROUGH COUNCIL,http://opendatacommunities.org/id/unitary-authority/warrington ,FWB,Neighbourhood Co-o South,51308,Payment of Grants,470050,31-Mar-15,1900169688,1200,Friends of Walton Hall,114332
WARRINGTON BOROUGH COUNCIL,http://opendatacommunities.org/id/unitary-authority/warrington ,FWB,Care Purchase - Learning Disability,54450,Supporting People - External,441250,24-Mar-15,1900168688,1200,Macintyre Care,104907
WARRINGTON BOROUGH COUNCIL,http://opendatacommunities.org/id/unitary-authority/warrington ,FWB,Contracts - OM HPHL Team,55940,Public Health Contribution Payments,540010,25-Mar-15,1900168738,1200,Manchester Mental Health & Social C,114290
WARRINGTON BOROUGH COUNCIL,http://opendatacommunities.org/id/unitary-authority/warrington ,FWB,Care Purchase - Learning Disability,54450,CP-Domicil.External,440950,27-Mar-15,1900169437,1200,Sanctuary Carr-Gomm,109157
WARRINGTON BOROUGH COUNCIL,http://opendatacommunities.org/id/unitary-authority/warrington ,FWB,Private Sector Hsg.,43660,Gen. Personal Needs,490850,23-Mar-15,1900168449,1200,The Energy Audit Company Ltd,103314
WARRINGTON BOROUGH COUNCIL,http://opendatacommunities.org/id/unitary-authority/warrington ,RSC,Coroners Service,11100,Post Mortem Fees-Rep,440250,19-Mar-15,1900168144,1193,Dr P Simcock,102209
WARRINGTON BOROUGH COUNCIL,http://opendatacommunities.org/id/unitary-authority/warrington ,FWB,Halton Music Grant - EXP,32219,Consult.& Prof. Serv,440000,18-Mar-15,1900168032,1190,Score Creative Education,102343
WARRINGTON BOROUGH COUNCIL,http://opendatacommunities.org/id/unitary-authority/warrington ,FWB,Care Purchase AMH,54135,CP-Domicil.External,440950,24-Mar-15,1900168665,1181,Mayfield Home Care Agency,104928
WARRINGTON BOROUGH COUNCIL,http://opendatacommunities.org/id/unitary-authority/warrington ,FWB,Care Purchase - Learning Disability,54450,CP-Day Care-External,441100,23-Mar-15,1900168294,1180,Wirral Autistic Society,105251
WARRINGTON BOROUGH COUNCIL,http://opendatacommunities.org/id/unitary-authority/warrington ,RSC,Coroners Service,11100,Post Mortem Fees-Rep,440250,19-Mar-15,1900168162,1179,Dr A Nicol,104970
WARRINGTON BOROUGH COUNCIL,http://opendatacommunities.org/id/unitary-authority/warrington ,FWB,Care Purchase - Learning Disability,54450,CP-Day Care-External,441100,20-Mar-15,1900168178,1173,Autism Initiatives,104503
WARRINGTON BOROUGH COUNCIL,http://opendatacommunities.org/id/unitary-authority/warrington ,FWB,Music Education Grant,32220,Consult.& Prof. Serv,440000,06-Mar-15,1900167304,1164,REDACTED PERSONAL DATA,113675
WARRINGTON BOROUGH COUNCIL,http://opendatacommunities.org/id/unitary-authority/warrington ,FWB,Care Purchase Budget,54490,CP - Cont Care - External,441350,17-Mar-15,1900167964,1161,The Extracare Charitable Trust,100497
WARRINGTON BOROUGH COUNCIL,http://opendatacommunities.org/id/unitary-authority/warrington ,FWB,Care Purchase Budget,54490,CP Free Nursing Care External,443500,12-Mar-15,1900167623,1156,Bondcare St Andrews,109634
WARRINGTON BOROUGH COUNCIL,http://opendatacommunities.org/id/unitary-authority/warrington ,FWB,CIC Council,31113,Childrens Activities,492900,24-Mar-15,1900168614,1150,Livewire,110692
WARRINGTON BOROUGH COUNCIL,http://opendatacommunities.org/id/unitary-authority/warrington ,RSC,Coroners Service,11100,Post Mortem Fees-Rep,440250,19-Mar-15,1900168117,1126,Dr N Alash,100579
WARRINGTON BOROUGH COUNCIL,http://opendatacommunities.org/id/unitary-authority/warrington ,FWB,Care Purchase - Learning Disability,54450,CP-LongStayExternal,441150,27-Mar-15,1900169443,1113,Seashell Trust,103082
WARRINGTON BOROUGH COUNCIL,http://opendatacommunities.org/id/unitary-authority/warrington ,FWB,Care Purchase - OP & OT South,54480,CP-Domicil.External,440950,23-Mar-15,1900168274,1106,Cherish UK Limited,113736
WARRINGTON BOROUGH COUNCIL,http://opendatacommunities.org/id/unitary-authority/warrington ,RSC,Coroners Service,11100,Consult.& Prof. Serv,440000,19-Mar-15,1900168128,1104,Accent Uk,100435
WARRINGTON BOROUGH COUNCIL,http://opendatacommunities.org/id/unitary-authority/warrington ,FWB,Care Matters / PEAs,31112,Looked after children in Warrington,301000,30-Mar-15,1900169527,1100,Cansfield High School,113393
WARRINGTON BOROUGH COUNCIL,http://opendatacommunities.org/id/unitary-authority/warrington ,FWB,Care Matters / PEAs,31112,Looked after children in Warrington,301000,19-Mar-15,1900168054,1100,Westleigh Methodist Primary,112464
WARRINGTON BOROUGH COUNCIL,http://opendatacommunities.org/id/unitary-authority/warrington ,FWB,Care Purchase - OP & OT West,54470,CP-Domicil.External,440950,04-Mar-15,1900166656,1098,Carewatch North Cheshire,104573
WARRINGTON BOROUGH COUNCIL,http://opendatacommunities.org/id/unitary-authority/warrington ,FWB,Operational Manager  - Intermediate Care,53210,Agency Supply - GF,180000,06-Mar-15,1900167265,1085,Rig Medical Recruit Ltd,114141
WARRINGTON BOROUGH COUNCIL,http://opendatacommunities.org/id/unitary-authority/warrington ,FWB,Care Purchase - OP & OT South,54480,CP-Domicil.External,440950,12-Mar-15,1900167622,1080,Bridgewater Home Care,113753
WARRINGTON BOROUGH COUNCIL,http://opendatacommunities.org/id/unitary-authority/warrington ,FWB,Care Purchase AMH,54135,CP-Domicil.External,440950,25-Mar-15,1900168717,1078,Next Stage A Way Forward Ltd,101217
WARRINGTON BOROUGH COUNCIL,http://opendatacommunities.org/id/unitary-authority/warrington ,FWB,Care Purchase - PD,54440,CP-Domicil.External,440950,17-Mar-15,1900167939,1077,Castlerock Recruitment Group,105279
WARRINGTON BOROUGH COUNCIL,http://opendatacommunities.org/id/unitary-authority/warrington ,FWB,Care Purchase - OP & OT South,54480,CP-LongStayExternal,441150,04-Mar-15,1900166678,1071,Orchard Care Homes,102524
WARRINGTON BOROUGH COUNCIL,http://opendatacommunities.org/id/unitary-authority/warrington ,FWB,M.C.A / Complaints,54650,Agency Supply - GF,180000,11-Mar-15,1900167487,1067,Baltimore Consulting Ltd,113735
WARRINGTON BOROUGH COUNCIL,http://opendatacommunities.org/id/unitary-authority/warrington ,FWB,EIG Funding - Childcare Team,31600,Payment of Grants,470050,10-Mar-15,1900167465,1058,Butterflys Nursery,107718
WARRINGTON BOROUGH COUNCIL,http://opendatacommunities.org/id/unitary-authority/warrington ,COR,Oxygen Finance,60260,Corporate Initiative,491000,17-Mar-15,1700011173,1054,ISG Construction Limited,110824
WARRINGTON BOROUGH COUNCIL,http://opendatacommunities.org/id/unitary-authority/warrington ,FWB,Care Purchase - Learning Disability,54450,Supporting People - External,441250,23-Mar-15,1900168279,1050,Macintyre Care,104907
WARRINGTON BOROUGH COUNCIL,http://opendatacommunities.org/id/unitary-authority/warrington ,FWB,Children with Disabilities,31005,People with Physical or Sensory Disabili,535250,11-Mar-15,1900167507,1050,Semaphore Psychology Ltd,112738
WARRINGTON BOROUGH COUNCIL,http://opendatacommunities.org/id/unitary-authority/warrington ,FWB,Operational Manager  - Intermediate Care,53210,Agency Supply - GF,180000,06-Mar-15,1900167252,1048,Rig Medical Recruit Ltd,114141
WARRINGTON BOROUGH COUNCIL,http://opendatacommunities.org/id/unitary-authority/warrington ,FWB,Care Purchase Budget,54490,CP - Cont Care - External,441350,24-Mar-15,1900168670,1047,The Extracare Charitable Trust,100497
WARRINGTON BOROUGH COUNCIL,http://opendatacommunities.org/id/unitary-authority/warrington ,RSC,Coroners Service,11100,Post Mortem Fees-Rep,440250,19-Mar-15,1900168125,1043,Dr J Krajacevic,100409
WARRINGTON BOROUGH COUNCIL,http://opendatacommunities.org/id/unitary-authority/warrington ,FWB,Operational Manager  - Intermediate Care,53210,Agency Supply - GF,180000,06-Mar-15,1900167256,1040,Rig Medical Recruit Ltd,114141
WARRINGTON BOROUGH COUNCIL,http://opendatacommunities.org/id/unitary-authority/warrington ,FWB,Care Purchase - Learning Disability,54450,CP-Domicil.External,440950,17-Mar-15,1900167941,1037,Castlerock Recruitment Group,105279
WARRINGTON BOROUGH COUNCIL,http://opendatacommunities.org/id/unitary-authority/warrington ,FWB,Operational Manager  - Intermediate Care,53210,Agency Supply - GF,180000,06-Mar-15,1900167271,1034,Rig Medical Recruit Ltd,114141
WARRINGTON BOROUGH COUNCIL,http://opendatacommunities.org/id/unitary-authority/warrington ,FWB,Care Purchase - PD,54440,CP-Domicil.External,440950,17-Mar-15,1900167943,1031,Castlerock Recruitment Group,105279
WARRINGTON BOROUGH COUNCIL,http://opendatacommunities.org/id/unitary-authority/warrington ,FWB,CIN Team 1,31001,Sect 17 (Child Act),490950,04-Mar-15,1900166704,1027,CFAB,106902
WARRINGTON BOROUGH COUNCIL,http://opendatacommunities.org/id/unitary-authority/warrington ,FWB,Contracts - OM HPHL Team,55940,Public Health Contract Payments,540000,02-Mar-15,1900166494,1027,Dr R Knill & Partners,102245
WARRINGTON BOROUGH COUNCIL,http://opendatacommunities.org/id/unitary-authority/warrington ,FWB,Care Purchase - Learning Disability,54450,CP-Day Care-External,441100,25-Mar-15,1900168713,1027,Icare Service Limited,110435
WARRINGTON BOROUGH COUNCIL,http://opendatacommunities.org/id/unitary-authority/warrington ,FWB,Care Purchase AMH,54135,CP-LongStayExternal,441150,06-Mar-15,1900167291,1021,Ttp Counselling Centre Ltd,102499
WARRINGTON BOROUGH COUNCIL,http://opendatacommunities.org/id/unitary-authority/warrington ,FWB,Supporting People Grant Payments,53260,Risk of Homelessness and Floating Suppor,535100,30-Mar-15,1900169615,1021,Muir Housing Association Ltd,100053
WARRINGTON BOROUGH COUNCIL,http://opendatacommunities.org/id/unitary-authority/warrington ,FWB,Operational Manager  - Intermediate Care,53210,Agency Supply - GF,180000,06-Mar-15,1900167274,1020,Rig Medical Recruit Ltd,114141
WARRINGTON BOROUGH COUNCIL,http://opendatacommunities.org/id/unitary-authority/warrington ,FWB,Care Purchase AMH,54135,CP-Domicil.External,440950,06-Mar-15,1900167288,1014,Making Space,104913
WARRINGTON BOROUGH COUNCIL,http://opendatacommunities.org/id/unitary-authority/warrington ,FWB,Care Purchase AMH,54135,CP-Domicil.External,440950,27-Mar-15,1900169429,1014,Making Space,104913
WARRINGTON BOROUGH COUNCIL,http://opendatacommunities.org/id/unitary-authority/warrington ,FWB,Neighbourhood Co-o East,51306,Payment of Grants,470050,31-Mar-15,1900169668,1000,3rd Warrington East Culcheth Scouts,112770
WARRINGTON BOROUGH COUNCIL,http://opendatacommunities.org/id/unitary-authority/warrington ,FWB,Neighbourhood Co-o South,51308,Payment of Grants,470050,31-Mar-15,1900169681,1000,Appleton Cricket Club,114331
WARRINGTON BOROUGH COUNCIL,http://opendatacommunities.org/id/unitary-authority/warrington ,FWB,Neighbourhood Co-o South,51308,Payment of Grants,470050,31-Mar-15,1900169711,1000,Lymm Adivas,114333
WARRINGTON BOROUGH COUNCIL,http://opendatacommunities.org/id/unitary-authority/warrington ,RSC,Asst Director - Int Hlth & Scl Cr Comm,53000,Consult.& Prof. Serv,440000,24-Mar-15,1900168630,1000,North West Employers,102754
WARRINGTON BOROUGH COUNCIL,http://opendatacommunities.org/id/unitary-authority/warrington ,RSC,Reablement/ WP/ ASC Grant c/f,53700,Consult.& Prof. Serv,440000,23-Mar-15,1900168489,1000,REDACTED PERSONAL DATA,111505
WARRINGTON BOROUGH COUNCIL,http://opendatacommunities.org/id/unitary-authority/warrington ,FWB,CiC Team 2,31101,Sect 17 (Child Act),490950,31-Mar-15,1900169663,1000,Tesco Stores Ltd - Gift Card,106271
WARRINGTON BOROUGH COUNCIL,http://opendatacommunities.org/id/unitary-authority/warrington ,FWB,Care Purchase AMH,54135,CP-Domicil.External,440950,18-Mar-15,1900167991,983,Next Stage A Way Forward Ltd,101217
WARRINGTON BOROUGH COUNCIL,http://opendatacommunities.org/id/unitary-authority/warrington ,RSC,Coroners Service,11100,Post Mortem Fees-Rep,440250,19-Mar-15,1900168143,981,Dr Natalie Meara,101727
WARRINGTON BOROUGH COUNCIL,http://opendatacommunities.org/id/unitary-authority/warrington ,COR,Salary Sacrifice Car Leasing,61050,Car Leasing Charges,350000,11-Mar-15,1900167548,978,NHS Foundation Trust,110359
WARRINGTON BOROUGH COUNCIL,http://opendatacommunities.org/id/unitary-authority/warrington ,RSC,Coroners Service,11100,Post Mortem Fees-Rep,440250,19-Mar-15,1900168119,975,Dr H Al Rawi,100745
WARRINGTON BOROUGH COUNCIL,http://opendatacommunities.org/id/unitary-authority/warrington ,FWB,CIC Council,31113,Childrens Activities,492900,11-Mar-15,1900167530,971,Livewire,110692
WARRINGTON BOROUGH COUNCIL,http://opendatacommunities.org/id/unitary-authority/warrington ,FWB,Care Purchase - PD,54440,CP-Domicil.External,440950,17-Mar-15,1900167937,971,Castlerock Recruitment Group,105279
WARRINGTON BOROUGH COUNCIL,http://opendatacommunities.org/id/unitary-authority/warrington ,FWB,Care Purchase AMH,54135,CP-Domicil.External,440950,25-Mar-15,1900169255,965,Housing & Care 21,100060
WARRINGTON BOROUGH COUNCIL,http://opendatacommunities.org/id/unitary-authority/warrington ,FWB,Care Purchase AMH,54135,CP-Domicil.External,440950,27-Mar-15,1900169438,950,Sanctuary Carr-Gomm,109157
WARRINGTON BOROUGH COUNCIL,http://opendatacommunities.org/id/unitary-authority/warrington ,FWB,Care Purchase AMH,54135,CP-LongStayExternal,441150,06-Mar-15,1900167287,929,Ley Community Drug Services,107958
WARRINGTON BOROUGH COUNCIL,http://opendatacommunities.org/id/unitary-authority/warrington ,FWB,DAT Pooled Budget,53860,Drug Action,443600,17-Mar-15,1900167911,928,Medicx Pharmacy Ltd,104278
WARRINGTON BOROUGH COUNCIL,http://opendatacommunities.org/id/unitary-authority/warrington ,FWB,SCM Thelwall Junior School,33126,Response Maintenance,200000,10-Mar-15,1900167394,928,Hoult Group Services,111129
WARRINGTON BOROUGH COUNCIL,http://opendatacommunities.org/id/unitary-authority/warrington ,FWB,Padgate House,54760,Agency Supply - GF,180000,23-Mar-15,1900168493,928,AMBITION 24 HOURS,112600
WARRINGTON BOROUGH COUNCIL,http://opendatacommunities.org/id/unitary-authority/warrington ,CYP,Childrens Other,81004,ICT Comms - Equipment Purchase,450100,23-Mar-15,1900168470,915,JTRS Ltd,112925
WARRINGTON BOROUGH COUNCIL,http://opendatacommunities.org/id/unitary-authority/warrington ,FWB,Care Purchase - Learning Disability,54450,CP-Domicil.External,440950,27-Mar-15,1900169405,911,Creative Support Ltd,100902
WARRINGTON BOROUGH COUNCIL,http://opendatacommunities.org/id/unitary-authority/warrington ,FWB,Care Purchase - Learning Disability,54450,CP ExternalOther Exp,440800,27-Mar-15,1900169449,910,Macintyre Care,104907
WARRINGTON BOROUGH COUNCIL,http://opendatacommunities.org/id/unitary-authority/warrington ,RSC,Coroners Service,11100,Post Mortem Fees-Rep,440250,04-Mar-15,1900166727,908,Dr Debdeep Dey,106869
WARRINGTON BOROUGH COUNCIL,http://opendatacommunities.org/id/unitary-authority/warrington ,FWB,Catalyst Choices,54495,Rent Of Premises,220000,31-Mar-15,1900169707,905,Incom Business Systems Ltd,101300
WARRINGTON BOROUGH COUNCIL,http://opendatacommunities.org/id/unitary-authority/warrington ,FWB,CIN Team 3,31003,Agency Supply - GF,180000,19-Mar-15,1900168076,902,Caritas Recruitment,113819
WARRINGTON BOROUGH COUNCIL,http://opendatacommunities.org/id/unitary-authority/warrington ,FWB,Care Purchase - Learning Disability,54450,CP ExternalOther Exp,440800,04-Mar-15,1900166652,900,Walton Lea Project,102953
WARRINGTON BOROUGH COUNCIL,http://opendatacommunities.org/id/unitary-authority/warrington ,FWB,Care Purchase - Learning Disability,54450,CP ExternalOther Exp,440800,20-Mar-15,1900168172,900,Walton Lea Project,102953
WARRINGTON BOROUGH COUNCIL,http://opendatacommunities.org/id/unitary-authority/warrington ,FWB,Care Purchase - PD,54440,Supporting People - External,441250,23-Mar-15,1900168440,896,Redline Business Ta Ashwood Care,113381
WARRINGTON BOROUGH COUNCIL,http://opendatacommunities.org/id/unitary-authority/warrington ,FWB,Catalyst Choices,54495,Security Systems,250000,10-Mar-15,1900167459,892,Abel Alarm Company Ltd,101027
WARRINGTON BOROUGH COUNCIL,http://opendatacommunities.org/id/unitary-authority/warrington ,FWB,DAT Pooled Budget,53860,Drug Action,443600,17-Mar-15,1900167935,891,Medicx Pharmacy Ltd,104278
WARRINGTON BOROUGH COUNCIL,http://opendatacommunities.org/id/unitary-authority/warrington ,FWB,Domestic Abuse,31206,Payment of Grants,470050,20-Mar-15,1900168241,887,Refuge,111196
WARRINGTON BOROUGH COUNCIL,http://opendatacommunities.org/id/unitary-authority/warrington ,FWB,Domestic Abuse,31206,Payment of Grants,470050,20-Mar-15,1900168207,887,Refuge,111196
WARRINGTON BOROUGH COUNCIL,http://opendatacommunities.org/id/unitary-authority/warrington ,FWB,Care Purchase -OP & OT East,54430,CP-Domicil.External,440950,24-Mar-15,1900168665,885,Mayfield Home Care Agency,104928
WARRINGTON BOROUGH COUNCIL,http://opendatacommunities.org/id/unitary-authority/warrington ,CYP,Childrens Other,81004,Building Work,200850,25-Mar-15,1900169237,885,Wakefield Bros,114062
WARRINGTON BOROUGH COUNCIL,http://opendatacommunities.org/id/unitary-authority/warrington ,FWB,Contracts - OM HPHL Team,55940,Public Health Contract Payments,540000,02-Mar-15,1900166493,883,Dr R Knill & Partners,102245
WARRINGTON BOROUGH COUNCIL,http://opendatacommunities.org/id/unitary-authority/warrington ,FWB,CIC Council,31113,Looked after children in Warrington,301000,17-Mar-15,1900167890,881,Ymca National Centre,104862
WARRINGTON BOROUGH COUNCIL,http://opendatacommunities.org/id/unitary-authority/warrington ,FWB,Care Purchase - OP & OT West,54470,CP-Domicil.External,440950,06-Mar-15,1900167278,878,Bridgewater Home Care,113753
WARRINGTON BOROUGH COUNCIL,http://opendatacommunities.org/id/unitary-authority/warrington ,EE0,Local Sustainable Transport Fund,44511,Payment of Grants,470050,18-Mar-15,1900168040,869,Livewire,110692
WARRINGTON BOROUGH COUNCIL,http://opendatacommunities.org/id/unitary-authority/warrington ,FWB,Care Purchase AMH,54135,CP-LongStayExternal,441150,23-Mar-15,1900168308,867,Cotebrook,104638
WARRINGTON BOROUGH COUNCIL,http://opendatacommunities.org/id/unitary-authority/warrington ,FWB,Care Purchase - Learning Disability,54450,CP-LongStayExternal,441150,23-Mar-15,1900168308,867,Cotebrook,104638
WARRINGTON BOROUGH COUNCIL,http://opendatacommunities.org/id/unitary-authority/warrington ,FWB,Care Purchase - PD,54440,CP-Day Care-External,441100,23-Mar-15,1900168323,854,Cotebrook,104638
WARRINGTON BOROUGH COUNCIL,http://opendatacommunities.org/id/unitary-authority/warrington ,COR,Corporate Planning Items,61020,Consult.& Prof. Serv,440000,30-Mar-15,1900169599,850,Eleni Ltd,113205
WARRINGTON BOROUGH COUNCIL,http://opendatacommunities.org/id/unitary-authority/warrington ,EE0,Time Square,43551,Consult.& Prof. Serv,440000,11-Mar-15,1900167593,850,Forshaws Davies Ridgeway Solicitors,100130
WARRINGTON BOROUGH COUNCIL,http://opendatacommunities.org/id/unitary-authority/warrington ,ENO,Housing Projects,82008,Disabled Persons Grant 1996,554000,19-Mar-15,1900168114,841,Your Housing Group,100233
WARRINGTON BOROUGH COUNCIL,http://opendatacommunities.org/id/unitary-authority/warrington ,EE0,Quattro-New Town House Admin Building,43125,Suspense Code,737300,25-Mar-15,1900169267,840,Storage Management Co,100129
WARRINGTON BOROUGH COUNCIL,http://opendatacommunities.org/id/unitary-authority/warrington ,EE0,New Town House,43119,Suspense Code,737300,25-Mar-15,1900169267,840,Storage Management Co,100129
WARRINGTON BOROUGH COUNCIL,http://opendatacommunities.org/id/unitary-authority/warrington ,FWB,Care Purchase - Learning Disability,54450,CP-Domicil.External,440950,18-Mar-15,1900167983,833,Dh Homecare,101961
WARRINGTON BOROUGH COUNCIL,http://opendatacommunities.org/id/unitary-authority/warrington ,FWB,Older Peoples North Team,54422,CP-Nursing Care-External,441200,24-Mar-15,1900168661,832,Barchester Homes Westvale House,105246
WARRINGTON BOROUGH COUNCIL,http://opendatacommunities.org/id/unitary-authority/warrington ,FWB,Older Peoples North Team,54422,CP-Domicil.External,440950,20-Mar-15,1900168173,814,Allied Healthcare Group Ltd,100796
WARRINGTON BOROUGH COUNCIL,http://opendatacommunities.org/id/unitary-authority/warrington ,FWB,Contracts - OM HPHL Team,55940,Public Health Contribution Payments,540010,25-Mar-15,1900168733,814,2 Co Ltd,101952
WARRINGTON BOROUGH COUNCIL,http://opendatacommunities.org/id/unitary-authority/warrington ,FWB,Care Purchase - PD,54440,CP-Domicil.External,440950,05-Mar-15,1900167193,810,Bridgewater Home Care,113753
WARRINGTON BOROUGH COUNCIL,http://opendatacommunities.org/id/unitary-authority/warrington ,FWB,Care Purchase - OP & OT Central,54420,CP-Domicil.External,440950,24-Mar-15,1900168665,808,Mayfield Home Care Agency,104928
WARRINGTON BOROUGH COUNCIL,http://opendatacommunities.org/id/unitary-authority/warrington ,EE0,Estates & Valuation,43520,Agency Supply - GF,180000,23-Mar-15,1900168419,807,Anderselite,100563
WARRINGTON BOROUGH COUNCIL,http://opendatacommunities.org/id/unitary-authority/warrington ,EE0,New Town House,43119,Trade Refuse Charges,440700,23-Mar-15,1900168373,805,B & M Waste,102293
WARRINGTON BOROUGH COUNCIL,http://opendatacommunities.org/id/unitary-authority/warrington ,FWB,Care Purchase -OP & OT East,54430,CP-Domicil.External,440950,06-Mar-15,1900167275,800,Bridgewater Home Care,113753
WARRINGTON BOROUGH COUNCIL,http://opendatacommunities.org/id/unitary-authority/warrington ,EE0,St Werberghs School Admin Building,43124,Electricity,210000,03-Mar-15,1700011074,799,Npower Electricity,101884
WARRINGTON BOROUGH COUNCIL,http://opendatacommunities.org/id/unitary-authority/warrington ,FWB,Older Peoples North Team,54422,CP-Domicil.External,440950,27-Mar-15,1900169396,797,Medico Nursing and Homecare,105063
WARRINGTON BOROUGH COUNCIL,http://opendatacommunities.org/id/unitary-authority/warrington ,FWB,CIN Team 3,31003,Agency Supply - GF,180000,19-Mar-15,1900168069,784,Caritas Recruitment,113819
WARRINGTON BOROUGH COUNCIL,http://opendatacommunities.org/id/unitary-authority/warrington ,FWB,Care Purchase Budget,54490,CP - Cont Care - External,441350,23-Mar-15,1900168283,783,Select Community Support Services,112799
WARRINGTON BOROUGH COUNCIL,http://opendatacommunities.org/id/unitary-authority/warrington ,FWB,CIN Team 1,31001,Sect 17 (Child Act),490950,13-Mar-15,1900167693,783,Cheshire Day Nursery Guardian St,106265
WARRINGTON BOROUGH COUNCIL,http://opendatacommunities.org/id/unitary-authority/warrington ,FWB,DAT Pooled Budget,53860,Drug Action,443600,17-Mar-15,1900167931,780,Medicx Pharmacy Ltd,104278
WARRINGTON BOROUGH COUNCIL,http://opendatacommunities.org/id/unitary-authority/warrington ,EE0,Estates & Valuation,43520,Agency Supply - GF,180000,26-Mar-15,1900169272,778,Anderselite,100563
WARRINGTON BOROUGH COUNCIL,http://opendatacommunities.org/id/unitary-authority/warrington ,FWB,Older Peoples North Team,54422,CP-Domicil.External,440950,18-Mar-15,1900167983,777,Dh Homecare,101961
WARRINGTON BOROUGH COUNCIL,http://opendatacommunities.org/id/unitary-authority/warrington ,FWB,Care Purchase Budget,54490,CP ExternalOther Exp,440800,27-Mar-15,1900169411,776,Harbour Healthcare 1 Ltd,110527
WARRINGTON BOROUGH COUNCIL,http://opendatacommunities.org/id/unitary-authority/warrington ,FWB,Care Purchase - OP & OT South,54480,CP-Domicil.External,440950,06-Mar-15,1900167283,770,Bridgewater Home Care,113753
WARRINGTON BOROUGH COUNCIL,http://opendatacommunities.org/id/unitary-authority/warrington ,COR,Oxygen Finance,60260,Consult.& Prof. Serv,440000,31-Mar-15,1900169677,765,Oxygen Finance Ltd,113784
WARRINGTON BOROUGH COUNCIL,http://opendatacommunities.org/id/unitary-authority/warrington ,FWB,Equipment Store,54930,Non BMP General Repairs,200050,18-Mar-15,1900167989,755,K L Joinery,105473
WARRINGTON BOROUGH COUNCIL,http://opendatacommunities.org/id/unitary-authority/warrington ,FWB,Care Purchase - OP & OT Central,54420,CP-Domicil.External,440950,23-Mar-15,1900168274,754,Cherish UK Limited,113736
WARRINGTON BOROUGH COUNCIL,http://opendatacommunities.org/id/unitary-authority/warrington ,RSC,Printing & Graphics,23040,Materials,400500,16-Mar-15,1900167716,753,Neopost Finance Ltd Supplies/Top up,100694
WARRINGTON BOROUGH COUNCIL,http://opendatacommunities.org/id/unitary-authority/warrington ,COR,Salary Sacrifice Car Leasing,61050,Car Leasing Charges,350000,24-Mar-15,1900168552,752,NHS Foundation Trust,110359
WARRINGTON BOROUGH COUNCIL,http://opendatacommunities.org/id/unitary-authority/warrington ,FWB,Care Purchase - OP & OT West,54470,CP-Domicil.External,440950,06-Mar-15,1900167279,750,Bridgewater Home Care,113753
WARRINGTON BOROUGH COUNCIL,http://opendatacommunities.org/id/unitary-authority/warrington ,FWB,Care Purchase - OP & OT West,54470,CP-Domicil.External,440950,12-Mar-15,1900167621,750,Bridgewater Home Care,113753
WARRINGTON BOROUGH COUNCIL,http://opendatacommunities.org/id/unitary-authority/warrington ,RSC,Coroners Service,11100,Court Costs,460100,23-Mar-15,1900168531,750,HMCS,105980
WARRINGTON BOROUGH COUNCIL,http://opendatacommunities.org/id/unitary-authority/warrington ,RSC,Coroners Service,11100,Jury Witness Exps,460050,17-Mar-15,1900167783,750,REDACTED PERSONAL DATA,114172
WARRINGTON BOROUGH COUNCIL,http://opendatacommunities.org/id/unitary-authority/warrington ,FWB,Care Purchase - PD,54440,Direct Payments,552000,04-Mar-15,1900166939,749,REDACTED PERSONAL DATA,112510
WARRINGTON BOROUGH COUNCIL,http://opendatacommunities.org/id/unitary-authority/warrington ,FWB,Care Purchase - OP & OT South,54480,CP-Domicil.External,440950,06-Mar-15,1900167282,740,Bridgewater Home Care,113753
WARRINGTON BOROUGH COUNCIL,http://opendatacommunities.org/id/unitary-authority/warrington ,FWB,Care Purchase - PD,54440,Supporting People - External,441250,24-Mar-15,1900168665,740,Mayfield Home Care Agency,104928
WARRINGTON BOROUGH COUNCIL,http://opendatacommunities.org/id/unitary-authority/warrington ,COR,Car Leasing Scheme - Salary Sacrifice,52126,Car Leasing Charges,350000,09-Mar-15,1900167317,739,NHS Foundation Trust,110359
WARRINGTON BOROUGH COUNCIL,http://opendatacommunities.org/id/unitary-authority/warrington ,COR,Car Leasing Scheme - Salary Sacrifice,52126,Car Leasing Charges,350000,02-Mar-15,1900166542,739,NHS Foundation Trust,110359
WARRINGTON BOROUGH COUNCIL,http://opendatacommunities.org/id/unitary-authority/warrington ,COR,Car Leasing Scheme - Salary Sacrifice,52126,Car Leasing Charges,350000,02-Mar-15,1900166544,739,NHS Foundation Trust,110359
WARRINGTON BOROUGH COUNCIL,http://opendatacommunities.org/id/unitary-authority/warrington ,COR,Car Leasing Scheme - Salary Sacrifice,52126,Car Leasing Charges,350000,02-Mar-15,1900166540,739,NHS Foundation Trust,110359
WARRINGTON BOROUGH COUNCIL,http://opendatacommunities.org/id/unitary-authority/warrington ,COR,Car Leasing Scheme - Salary Sacrifice,52126,Car Leasing Charges,350000,02-Mar-15,1900166539,739,NHS Foundation Trust,110359
WARRINGTON BOROUGH COUNCIL,http://opendatacommunities.org/id/unitary-authority/warrington ,COR,Car Leasing Scheme - Salary Sacrifice,52126,Car Leasing Charges,350000,09-Mar-15,1900167313,739,NHS Foundation Trust,110359
WARRINGTON BOROUGH COUNCIL,http://opendatacommunities.org/id/unitary-authority/warrington ,COR,Car Leasing Scheme - Salary Sacrifice,52126,Car Leasing Charges,350000,17-Mar-15,1900167886,739,NHS Foundation Trust,110359
WARRINGTON BOROUGH COUNCIL,http://opendatacommunities.org/id/unitary-authority/warrington ,COR,Car Leasing Scheme - Salary Sacrifice,52126,Car Leasing Charges,350000,24-Mar-15,1900168551,739,NHS Foundation Trust,110359
WARRINGTON BOROUGH COUNCIL,http://opendatacommunities.org/id/unitary-authority/warrington ,COR,Car Leasing Scheme - Salary Sacrifice,52126,Car Leasing Charges,350000,31-Mar-15,1900169690,739,NHS Foundation Trust,110359
